Date spend occurred,Department incurring spend,Beneficiary name,Summary of purpose of spend,Gross Amount,Merchant category
03/07/2023,RODNEY HOUSE STAFF COST,Magnit Global GRI Ltd,Agency Supply Staff,"181,552.50",Soc Care OM Cover
03/07/2023,SCS BUSINESS SUPPORT,Holy Trinity CofE Primary School,Catering,"1,500.00",Schools
03/07/2023,NORTH EAST ALTERNATIVE SEN BUDGET,Merrywood House,Catering,"1,802.00",SEND Agncy Placement
03/07/2023,SW CARE - CARE LEAVERS,Redacted Personal Data,Children's Act S24 Payments,310.00,Invoicing Plan Req.
03/07/2023,NORTH WEST CWD NON-LAC CARE,Angel Cars Woking,Coach Escorts Contracted,462.00,Taxi Hire (SEN Only)
03/07/2023,SEN HOME TO SCHOOL TRANSPORT,Angel Cars Woking,Coach Escorts Contracted,"1,080.00",Taxi Hire (SEN Only)
03/07/2023,SEN HOME TO SCHOOL TRANSPORT,Angel Cars Woking,Coach Escorts Contracted,"1,512.00",Taxi Hire (SEN Only)
03/07/2023,SEN HOME TO SCHOOL TRANSPORT,Angel Cars Woking,Coach Escorts Contracted,"1,512.00",Taxi Hire (SEN Only)
03/07/2023,SEN HOME TO SCHOOL TRANSPORT,Angel Cars Woking,Coach Escorts Contracted,"1,512.00",Taxi Hire (SEN Only)
03/07/2023,SEN HOME TO SCHOOL TRANSPORT,Angel Cars Woking,Coach Escorts Contracted,"1,404.00",Taxi Hire (SEN Only)
03/07/2023,SEN HOME TO SCHOOL TRANSPORT,Angel Cars Woking,Coach Escorts Contracted,"2,052.00",Taxi Hire (SEN Only)
03/07/2023,SEN HOME TO SCHOOL TRANSPORT,Angel Cars Woking,Coach Escorts Contracted,"1,512.00",Taxi Hire (SEN Only)
03/07/2023,SEN HOME TO SCHOOL TRANSPORT,Angel Cars Woking,Coach Escorts Contracted,"1,274.40",Taxi Hire (SEN Only)
03/07/2023,SEN HOME TO SCHOOL TRANSPORT,Angel Cars Woking,Coach Escorts Contracted,972.00,Taxi Hire (SEN Only)
03/07/2023,SEN HOME TO SCHOOL TRANSPORT,Angel Cars Woking,Coach Escorts Contracted,"1,296.00",Taxi Hire (SEN Only)
03/07/2023,SEN HOME TO SCHOOL TRANSPORT,Angel Cars Woking,Coach Escorts Contracted,"1,176.00",Taxi Hire (SEN Only)
03/07/2023,SEN HOME TO SCHOOL TRANSPORT,Angel Cars Woking,Coach Escorts Contracted,"1,512.00",Taxi Hire (SEN Only)
03/07/2023,SEN HOME TO SCHOOL TRANSPORT,Angel Cars Woking,Coach Escorts Contracted,"1,188.00",Taxi Hire (SEN Only)
03/07/2023,SEN HOME TO SCHOOL TRANSPORT,Angel Cars Woking,Coach Escorts Contracted,972.00,Taxi Hire (SEN Only)
03/07/2023,SEN HOME TO SCHOOL TRANSPORT,Angel Cars Woking,Coach Escorts Contracted,972.00,Taxi Hire (SEN Only)
03/07/2023,PLD TRANSITION CARE,Angel Cars Woking,Coach Escorts Contracted,"1,344.00",Taxi Hire (SEN Only)
03/07/2023,SEN HOME TO SCHOOL TRANSPORT,Angel Cars Woking,Coach Escorts Contracted,"1,188.00",Taxi Hire (SEN Only)
03/07/2023,SEN HOME TO SCHOOL TRANSPORT,Angel Cars Woking,Coach Escorts Contracted,"1,188.00",Taxi Hire (SEN Only)
03/07/2023,SEN HOME TO SCHOOL TRANSPORT,Angel Cars Woking,Coach Escorts Contracted,979.20,Taxi Hire (SEN Only)
03/07/2023,SEN HOME TO SCHOOL TRANSPORT,Angel Cars Woking,Coach Escorts Contracted,"1,512.00",Taxi Hire (SEN Only)
03/07/2023,SEN HOME TO SCHOOL TRANSPORT,Angel Cars Woking,Coach Escorts Contracted,"1,224.00",Taxi Hire (SEN Only)
03/07/2023,SEN HOME TO SCHOOL TRANSPORT,Angel Cars Woking,Coach Escorts Contracted,972.00,Taxi Hire (SEN Only)
03/07/2023,SEN HOME TO SCHOOL TRANSPORT,Angel Cars Woking,Coach Escorts Contracted,"1,728.00",Taxi Hire (SEN Only)
03/07/2023,SEN HOME TO SCHOOL TRANSPORT,Blue Arrow Gatwick Ltd,Coach Escorts Contracted,714.00,Multi-purpose Veh
03/07/2023,SEN HOME TO SCHOOL TRANSPORT,Blue Arrow Gatwick Ltd,Coach Escorts Contracted,"1,188.00",Multi-purpose Veh
03/07/2023,SEN HOME TO SCHOOL TRANSPORT,Blue Arrow Gatwick Ltd,Coach Escorts Contracted,"1,188.00",Multi-purpose Veh
03/07/2023,SEN HOME TO SCHOOL TRANSPORT,Deuces Cars Ltd,Coach Escorts Contracted,"1,134.00",Taxi Hire (SEN Only)
03/07/2023,SEN HOME TO SCHOOL TRANSPORT,Deuces Cars Ltd,Coach Escorts Contracted,660.00,Taxi Hire (SEN Only)
03/07/2023,LD-Autism Central Team Care,MP Cars,Coach Escorts Contracted,"1,020.00",Multi-purpose Veh
03/07/2023,LD-Autism Central Team Care,Mums & Sons Ltd,Coach Escorts Contracted,"1,200.00",Multi-purpose Veh
03/07/2023,NW CARE - NON-LAC CP & COURT,Mums & Sons Ltd,Coach Escorts Contracted,"1,020.00",Multi-purpose Veh
03/07/2023,SEN HOME TO SCHOOL TRANSPORT,Mums & Sons Ltd,Coach Escorts Contracted,"1,224.00",Multi-purpose Veh
03/07/2023,SEN HOME TO SCHOOL TRANSPORT,Mums & Sons Ltd,Coach Escorts Contracted,"1,296.00",Multi-purpose Veh
03/07/2023,LD-Autism Central Team Care,Mums & Sons Ltd,Coach Escorts Contracted,756.00,Multi-purpose Veh
03/07/2023,SEN HOME TO SCHOOL TRANSPORT,Mums & Sons Ltd,Coach Escorts Contracted,"1,224.00",Multi-purpose Veh
03/07/2023,SEN HOME TO SCHOOL TRANSPORT,Swan School Services Ltd,Coach Escorts Contracted,"1,080.00",Multi-purpose Veh
03/07/2023,SEN HOME TO SCHOOL TRANSPORT,Swan School Services Ltd,Coach Escorts Contracted,"1,260.00",Multi-purpose Veh
03/07/2023,SEN HOME TO SCHOOL TRANSPORT,Swan School Services Ltd,Coach Escorts Contracted,864.00,Multi-purpose Veh
03/07/2023,PLD TRANSITION CARE,Swan School Services Ltd,Coach Escorts Contracted,"1,200.00",Multi-purpose Veh
03/07/2023,SEN HOME TO SCHOOL TRANSPORT,Xpert Cars Ltd,Coach Escorts Contracted,"1,404.00",Taxi Hire (SEN Only)
03/07/2023,SEN HOME TO SCHOOL TRANSPORT,Xpert Cars Ltd,Coach Escorts Contracted,"1,440.00",Taxi Hire (SEN Only)
03/07/2023,SEN HOME TO SCHOOL TRANSPORT,Xpert Cars Ltd,Coach Escorts Contracted,"1,560.00",Taxi Hire (SEN Only)
03/07/2023,SEN HOME TO SCHOOL TRANSPORT,Xpert Cars Ltd,Coach Escorts Contracted,"1,173.60",Taxi Hire (SEN Only)
03/07/2023,SEN HOME TO SCHOOL TRANSPORT,Xpert Cars Ltd,Coach Escorts Contracted,"1,188.00",Taxi Hire (SEN Only)
03/07/2023,SEN HOME TO SCHOOL TRANSPORT,Xpert Cars Ltd,Coach Escorts Contracted,967.68,Taxi Hire (SEN Only)
03/07/2023,SEN HOME TO SCHOOL TRANSPORT,Xpert Cars Ltd,Coach Escorts Contracted,"1,192.32",Taxi Hire (SEN Only)
03/07/2023,SEN HOME TO SCHOOL TRANSPORT,Xpert Cars Ltd,Coach Escorts Contracted,"1,366.20",Taxi Hire (SEN Only)
03/07/2023,SEN HOME TO SCHOOL TRANSPORT,Xpert Cars Ltd,Coach Escorts Contracted,"1,544.40",Taxi Hire (SEN Only)
03/07/2023,SEN HOME TO SCHOOL TRANSPORT,Xpert Cars Ltd,Coach Escorts Contracted,"1,296.00",Taxi Hire (SEN Only)
03/07/2023,SEN HOME TO SCHOOL TRANSPORT,Xpert Cars Ltd,Coach Escorts Contracted,"1,525.92",Taxi Hire (SEN Only)
03/07/2023,SEN HOME TO SCHOOL TRANSPORT,Xpert Cars Ltd,Coach Escorts Contracted,"1,296.00",Taxi Hire (SEN Only)
03/07/2023,SEN HOME TO SCHOOL TRANSPORT,Xpert Cars Ltd,Coach Escorts Contracted,"1,628.40",Taxi Hire (SEN Only)
03/07/2023,SEN HOME TO SCHOOL TRANSPORT,Xpert Cars Ltd,Coach Escorts Contracted,"1,326.00",Taxi Hire (SEN Only)
03/07/2023,SEN HOME TO SCHOOL TRANSPORT,Xpert Cars Ltd,Coach Escorts Contracted,"1,152.00",Taxi Hire (SEN Only)
03/07/2023,SEN HOME TO SCHOOL TRANSPORT,Xpert Cars Ltd,Coach Escorts Contracted,"1,468.80",Taxi Hire (SEN Only)
03/07/2023,SEN HOME TO SCHOOL TRANSPORT,Xpert Cars Ltd,Coach Escorts Contracted,"1,183.68",Taxi Hire (SEN Only)
03/07/2023,SEN HOME TO SCHOOL TRANSPORT,Xpert Cars Ltd,Coach Escorts Contracted,"1,166.40",Taxi Hire (SEN Only)
03/07/2023,SEN HOME TO SCHOOL TRANSPORT,Xpert Cars Ltd,Coach Escorts Contracted,"1,620.00",Taxi Hire (SEN Only)
03/07/2023,SEN HOME TO SCHOOL TRANSPORT,Xpert Cars Ltd,Coach Escorts Contracted,"1,404.00",Taxi Hire (SEN Only)
03/07/2023,LAND & PROPERTY CAPITAL,CEI Electrical Services Ltd,"Construction, Conversion & Renovation","112,076.54",M&E Maintenance
03/07/2023,LAND & PROPERTY CAPITAL,CEI Electrical Services Ltd,"Construction, Conversion & Renovation","4,236.60",M&E Maintenance
03/07/2023,LAND & PROPERTY CAPITAL,CO2PEC Ltd,"Construction, Conversion & Renovation","18,911.36",Energy Efficiency
03/07/2023,LAND & PROPERTY CAPITAL,CO2PEC Ltd,"Construction, Conversion & Renovation","54,352.18",Energy Efficiency
03/07/2023,LAND & PROPERTY CAPITAL,CO2PEC Ltd,"Construction, Conversion & Renovation","22,726.22",Energy Efficiency
03/07/2023,LAND & PROPERTY CAPITAL,CO2PEC Ltd,"Construction, Conversion & Renovation","55,864.80",Energy Efficiency
03/07/2023,LAND & PROPERTY CAPITAL,Portakabin Ltd,"Construction, Conversion & Renovation","10,720.30",Edu Establishments
03/07/2023,LAND & PROPERTY CAPITAL,Strutt & Parker,"Construction, Conversion & Renovation",629.65,Grants - Community
03/07/2023,LAND & PROPERTY CAPITAL,Tetra Tech Environment Planning,"Construction, Conversion & Renovation","1,678.01",Env Consultancy
03/07/2023,LAND & PROPERTY CAPITAL,WS Atkins Plc T/A Atkins Ltd,"Construction, Conversion & Renovation","15,851.18",Not Applicable
03/07/2023,CEDOS SUPPORT,S4W Ltd,Consultancy Services,"4,216.56",Grants - Community
03/07/2023,EIF 2 YR OLD,Bright Sparks Montessori School,Contributions to third parties,500.00,Schools
03/07/2023,EIF 3 & 4 YR OLD,Caterham Day Nursery & Pre-School,Contributions to third parties,590.00,Nurseries
03/07/2023,EIF 3 & 4 YR OLD,Lee Street Church Playgroup,Contributions to third parties,"1,000.00",Nurseries
03/07/2023,EIF 3 & 4 YR OLD,Leigh Lollipops Nursery,Contributions to third parties,"1,000.00",Nurseries
03/07/2023,EIF 3 & 4 YR OLD,St Joseph Pre School Playgroup,Contributions to third parties,382.80,Nurseries
03/07/2023,EIF 2 YR OLD,St Judes C of E Infant School,Contributions to third parties,385.00,Nursery
03/07/2023,CORONER,Alpha Omega Pathalogy,Coroner's Expenses,280.00,Coroners (Indiv)
03/07/2023,CORONER,Alpha Omega Pathalogy,Coroner's Expenses,280.00,Coroners (Indiv)
03/07/2023,CORONER,Alpha Omega Pathalogy,Coroner's Expenses,280.00,Coroners (Indiv)
03/07/2023,CORONER,Alpha Omega Pathalogy,Coroner's Expenses,280.00,Coroners (Indiv)
03/07/2023,CORONER,Alpha Omega Pathalogy,Coroner's Expenses,280.00,Coroners (Indiv)
03/07/2023,CORONER,Alpha Omega Pathalogy,Coroner's Expenses,280.00,Coroners (Indiv)
03/07/2023,CORONER,Alpha Omega Pathalogy,Coroner's Expenses,280.00,Coroners (Indiv)
03/07/2023,CORONER,Alpha Omega Pathalogy,Coroner's Expenses,280.00,Coroners (Indiv)
03/07/2023,CORONER,Alpha Omega Pathalogy,Coroner's Expenses,280.00,Coroners (Indiv)
03/07/2023,CORONER,Alpha Omega Pathalogy,Coroner's Expenses,280.00,Coroners (Indiv)
03/07/2023,CORONER,Alpha Omega Pathalogy,Coroner's Expenses,280.00,Coroners (Indiv)
03/07/2023,CORONER,Alpha Omega Pathalogy,Coroner's Expenses,280.00,Coroners (Indiv)
03/07/2023,CORONER,Alpha Omega Pathalogy,Coroner's Expenses,280.00,Coroners (Indiv)
03/07/2023,CORONER,Alpha Omega Pathalogy,Coroner's Expenses,280.00,Coroners (Indiv)
03/07/2023,CORONER,Alpha Omega Pathalogy,Coroner's Expenses,280.00,Coroners (Indiv)
03/07/2023,CORONER,Alpha Omega Pathalogy,Coroner's Expenses,280.00,Coroners (Indiv)
03/07/2023,CORONER,Alpha Omega Pathalogy,Coroner's Expenses,280.00,Coroners (Indiv)
03/07/2023,CORONER,Alpha Omega Pathalogy,Coroner's Expenses,280.00,Coroners (Indiv)
03/07/2023,CORONER,Alpha Omega Pathalogy,Coroner's Expenses,280.00,Coroners (Indiv)
03/07/2023,CORONER,Alpha Omega Pathalogy,Coroner's Expenses,280.00,Coroners (Indiv)
03/07/2023,CORONER,Alpha Omega Pathalogy,Coroner's Expenses,280.00,Coroners (Indiv)
03/07/2023,CORONER,Alpha Omega Pathalogy,Coroner's Expenses,280.00,Coroners (Indiv)
03/07/2023,CORONER,Alpha Omega Pathalogy,Coroner's Expenses,280.00,Coroners (Indiv)
03/07/2023,CORONER,Alpha Omega Pathalogy,Coroner's Expenses,280.00,Coroners (Indiv)
03/07/2023,CORONER,Alpha Omega Pathalogy,Coroner's Expenses,280.00,Coroners (Indiv)
03/07/2023,CORONER,Alpha Omega Pathalogy,Coroner's Expenses,280.00,Coroners (Indiv)
03/07/2023,CORONER,Alpha Omega Pathalogy,Coroner's Expenses,280.00,Coroners (Indiv)
03/07/2023,CORONER,Alpha Omega Pathalogy,Coroner's Expenses,280.00,Coroners (Indiv)
03/07/2023,CORONER,Alpha Omega Pathalogy,Coroner's Expenses,280.00,Coroners (Indiv)
03/07/2023,CORONER,Alpha Omega Pathalogy,Coroner's Expenses,280.00,Coroners (Indiv)
03/07/2023,CORONER,Alpha Omega Pathalogy,Coroner's Expenses,280.00,Coroners (Indiv)
03/07/2023,CORONER,Alpha Omega Pathalogy,Coroner's Expenses,280.00,Coroners (Indiv)
03/07/2023,CORONER,Alpha Omega Pathalogy,Coroner's Expenses,280.00,Coroners (Indiv)
03/07/2023,CORONER,Alpha Omega Pathalogy,Coroner's Expenses,280.00,Coroners (Indiv)
03/07/2023,CORONER,Alpha Omega Pathalogy,Coroner's Expenses,280.00,Coroners (Indiv)
03/07/2023,CORONER,Alpha Omega Pathalogy,Coroner's Expenses,280.00,Coroners (Indiv)
03/07/2023,SURREY CHOICES CONTRACT,Surrey Choices Ltd,Day Care Services,"16,079.50",Not Applicable
03/07/2023,SURREY CHOICES CONTRACT,Surrey Choices Ltd,Day Care Services,"16,079.50",Not Applicable
03/07/2023,NORTH WEST AGENCY PLACE (ED),Abbey School Ltd,External Placement Fees,"281,817.12",SEND Agncy Placement
03/07/2023,SOUTH EAST AGENCY PLACE (ED),Aberdour School,External Placement Fees,"2,583.92",Schools
03/07/2023,SW AGENCY/SPI POST 16-EDUC,Ambitious about Autism,External Placement Fees,"59,135.43",Further Education16+
03/07/2023,SOUTH EAST ALTERNATIVE SEN BUDGET,APPEER CiC,External Placement Fees,"1,500.00",Not Applicable
03/07/2023,NORTH WEST ALTERNATIVE SEN BUDGET,APPEER CiC,External Placement Fees,"1,500.00",Not Applicable
03/07/2023,SOUTH WEST ALTERNATIVE SEN BUDGET,APPEER CiC,External Placement Fees,850.00,Not Applicable
03/07/2023,SOUTH WEST AGENCY PLACE (ED),Appleford School,External Placement Fees,"8,291.00",SEN Specialist Supp
03/07/2023,SE AGENCY/SPI POST 16-EDUC,Aurora Boveridge College,External Placement Fees,"5,268,849.60",Further Education16+
03/07/2023,SW AGENCY/SPI POST 16-EDUC,Aurora Boveridge College,External Placement Fees,"113,911.74",Further Education16+
03/07/2023,NORTH EAST ALTERNATIVE SEN BUDGET,Cognus,External Placement Fees,"5,814.00",SEND Agncy Placement
03/07/2023,SE ALTERNATIVE SEN POST 16,Halow Project,External Placement Fees,"2,815.47",Not Applicable
03/07/2023,SE ALTERNATIVE SEN POST 16,Halow Project,External Placement Fees,"16,124.94",Not Applicable
03/07/2023,SE ALTERNATIVE SEN POST 16,Halow Project,External Placement Fees,"2,815.47",Not Applicable
03/07/2023,SE ALTERNATIVE SEN POST 16,Halow Project,External Placement Fees,"2,815.47",Not Applicable
03/07/2023,SE ALTERNATIVE SEN POST 16,Halow Project,External Placement Fees,"2,815.47",Not Applicable
03/07/2023,SW ALTERNATIVE SEN POST 16,Halow Project,External Placement Fees,"2,815.47",Not Applicable
03/07/2023,SW ALTERNATIVE SEN POST 16,Halow Project,External Placement Fees,"16,124.94",Not Applicable
03/07/2023,SW ALTERNATIVE SEN POST 16,Halow Project,External Placement Fees,"2,815.47",Not Applicable
03/07/2023,SW ALTERNATIVE SEN POST 16,Halow Project,External Placement Fees,"2,815.47",Not Applicable
03/07/2023,SW ALTERNATIVE SEN POST 16,Halow Project,External Placement Fees,"13,496.94",Not Applicable
03/07/2023,NE ALTERNATIVE SEN POST 16,Halow Project,External Placement Fees,"16,124.94",Not Applicable
03/07/2023,SW ALTERNATIVE SEN POST 16,Halow Project,External Placement Fees,"16,116.30",Not Applicable
03/07/2023,SW ALTERNATIVE SEN POST 16,Halow Project,External Placement Fees,"13,496.94",Not Applicable
03/07/2023,NW ALTERNATIVE SEN POST 16,Halow Project,External Placement Fees,"2,815.47",Not Applicable
03/07/2023,NW ALTERNATIVE SEN POST 16,Halow Project,External Placement Fees,"16,124.94",Not Applicable
03/07/2023,NW ALTERNATIVE SEN POST 16,Halow Project,External Placement Fees,"2,815.47",Not Applicable
03/07/2023,NW ALTERNATIVE SEN POST 16,Halow Project,External Placement Fees,"2,815.47",Not Applicable
03/07/2023,NW ALTERNATIVE SEN POST 16,Halow Project,External Placement Fees,"2,815.47",Not Applicable
03/07/2023,SW ALTERNATIVE SEN POST 16,Halow Project,External Placement Fees,"2,815.47",Not Applicable
03/07/2023,NE ALTERNATIVE SEN POST 16,Halow Project,External Placement Fees,"7,012.62",Not Applicable
03/07/2023,SW ALTERNATIVE SEN POST 16,Halow Project,External Placement Fees,"8,258.94",Not Applicable
03/07/2023,SW ALTERNATIVE SEN POST 16,Halow Project,External Placement Fees,"2,815.47",Not Applicable
03/07/2023,SE ALTERNATIVE SEN POST 16,Halow Project,External Placement Fees,"16,124.94",Not Applicable
03/07/2023,SW ALTERNATIVE SEN POST 16,Halow Project,External Placement Fees,"2,815.47",Not Applicable
03/07/2023,SW ALTERNATIVE SEN POST 16,Halow Project,External Placement Fees,"2,815.47",Not Applicable
03/07/2023,SW ALTERNATIVE SEN POST 16,Halow Project,External Placement Fees,"2,815.47",Not Applicable
03/07/2023,FAMILY ASSESSMENTS,Jamma Umoja (Residential Services) Ltd,External Placement Fees,"29,753.12",Supervised Contact
03/07/2023,FAMILY ASSESSMENTS,Majestic Family Service Ltd,External Placement Fees,"28,971.42",Parent & Child Asses
03/07/2023,NE PERSONAL BUDGET POST 16,Redacted Personal Data,External Placement Fees,"1,232.37",Adults direct payment
03/07/2023,Send Personal Budgets (SW),Redacted Personal Data,External Placement Fees,"9,531.99",Adults direct payment
03/07/2023,Send Personal Budgets (SW),Redacted Personal Data,External Placement Fees,"9,000.00",Invoicing Plan Req.
03/07/2023,Send Personal Budgets (SW),Redacted Personal Data,External Placement Fees,"4,239.36",Adults direct payment
03/07/2023,NW PERSONAL BUDGET POST 16,Redacted Personal Data,External Placement Fees,"4,154.49",Invoicing Plan Req.
03/07/2023,Send Personal Budgets (NW),Redacted Personal Data,External Placement Fees,"5,007.78",Adults direct payment
03/07/2023,Send Personal Budgets (SE),Redacted Personal Data,External Placement Fees,"51,660.00",Individual - NEC
03/07/2023,Send Personal Budgets (SE),Redacted Personal Data,External Placement Fees,"1,760.22",Adults direct payment
03/07/2023,NE PERSONAL BUDGET POST 16,Redacted Personal Data,External Placement Fees,"2,751.93",Adults direct payment
03/07/2023,NE PERSONAL BUDGET POST 16,Redacted Personal Data,External Placement Fees,810.00,Adults direct payment
03/07/2023,Send Personal Budgets (SW),Redacted Personal Data,External Placement Fees,"4,896.20",Invoicing Plan Req.
03/07/2023,Send Personal Budgets (NE),Redacted Personal Data,External Placement Fees,938.87,Individual - NEC
03/07/2023,Send Personal Budgets (NW),Redacted Personal Data,External Placement Fees,"111,473.10",Adults direct payment
03/07/2023,NW PERSONAL BUDGET POST 16,Redacted Personal Data,External Placement Fees,"2,475.00",Individual - NEC
03/07/2023,SE PERSONAL BUDGET POST 16,Redacted Personal Data,External Placement Fees,"2,159.80",Adults direct payment
03/07/2023,SW PERSONAL BUDGET POST 16,Redacted Personal Data,External Placement Fees,"2,025.70",Individual - NEC
03/07/2023,Send Personal Budgets (SW),Redacted Personal Data,External Placement Fees,286.34,Adults direct payment
03/07/2023,Send Personal Budgets (SW),Redacted Personal Data,External Placement Fees,520.28,Individual - NEC
03/07/2023,NE PERSONAL BUDGET POST 16,Redacted Personal Data,External Placement Fees,870.88,Adults direct payment
03/07/2023,Send Personal Budgets (SE),Redacted Personal Data,External Placement Fees,"2,095.15",Adults direct payment
03/07/2023,Send Personal Budgets (SE),Redacted Personal Data,External Placement Fees,"5,923.80",Adults direct payment
03/07/2023,Send Personal Budgets (SW),Redacted Personal Data,External Placement Fees,"5,017.68",Individual - NEC
03/07/2023,Send Personal Budgets (NE),Redacted Personal Data,External Placement Fees,"3,126.92",Adults direct payment
03/07/2023,SE PERSONAL BUDGET POST 16,Redacted Personal Data,External Placement Fees,"1,437.48",Carers
03/07/2023,Send Personal Budgets (NE),Redacted Personal Data,External Placement Fees,"1,440.00",Adults direct payment
03/07/2023,Send Personal Budgets (SE),Redacted Personal Data,External Placement Fees,"2,909.23",Adults direct payment
03/07/2023,SE PERSONAL BUDGET POST 16,Redacted Personal Data,External Placement Fees,"3,063.69",Individual - NEC
03/07/2023,Send Personal Budgets (NE),Redacted Personal Data,External Placement Fees,"8,373.46",Adults direct payment
03/07/2023,Send Personal Budgets (NW),Redacted Personal Data,External Placement Fees,"91,578.87",Individual - NEC
03/07/2023,Send Personal Budgets (SE),Redacted Personal Data,External Placement Fees,"2,193.75",Individual - NEC
03/07/2023,NE PERSONAL BUDGET POST 16,Redacted Personal Data,External Placement Fees,"2,963.77",Individual - NEC
03/07/2023,Send Personal Budgets (SW),Redacted Personal Data,External Placement Fees,532.50,Individual - NEC
03/07/2023,Send Personal Budgets (SW),Redacted Personal Data,External Placement Fees,"17,550.90",Invoicing Plan Req.
03/07/2023,NE PERSONAL BUDGET POST 16,Redacted Personal Data,External Placement Fees,562.20,Adults direct payment
03/07/2023,Send Personal Budgets (NW),Redacted Personal Data,External Placement Fees,"1,050.00",Adults direct payment
03/07/2023,SE PERSONAL BUDGET POST 16,Redacted Personal Data,External Placement Fees,"1,324.00",Individual - NEC
03/07/2023,NE PERSONAL BUDGET POST 16,Redacted Personal Data,External Placement Fees,"6,795.00",Individual - NEC
03/07/2023,SOUTH EAST AGENCY PLACE (ED),The Childrens Trust Nursery,External Placement Fees,"751,379.28",Residential - MH
03/07/2023,NORTH WEST AGENCY PLACE (ED),The Childrens Trust Nursery,External Placement Fees,"429,769.98",Residential - MH
03/07/2023,NW AGENCY/SPI POST 16-SOCIAL CARE LAC,The Childrens Trust Nursery,External Placement Fees,"674,896.08",Residential - MH
03/07/2023,NORTH EAST AGENCY PLACE (ED),The Childrens Trust Nursery,External Placement Fees,"7,899.00",Residential - MH
03/07/2023,SOUTH EAST AGENCY PLACE (ED),The Childrens Trust Nursery,External Placement Fees,"12,939.84",Residential - MH
03/07/2023,SOUTH EAST AGENCY PLACE (ED),The Childrens Trust Nursery,External Placement Fees,"12,939.84",Residential - MH
03/07/2023,SOUTH EAST AGENCY PLACE (ED),The Childrens Trust Nursery,External Placement Fees,"17,336.46",Residential - MH
03/07/2023,NORTH EAST AGENCY PLACE (ED),The Childrens Trust Nursery,External Placement Fees,"8,205,097.56",Residential - MH
03/07/2023,GREENER FUTURES,Lets Do Business,Fees,"12,000.00",Env Consultancy
03/07/2023,FEASIBILITY FUNDING,Ruskins Tree Consultancy,Fees,780.00,M-D (Property)
03/07/2023,FEASIBILITY FUNDING,Thorncliffe Communications Ltd,Fees,"9,402.12",Org & Bus Consult
03/07/2023,FEASIBILITY FUNDING,Vail Williams LLP - SCC Client Deposit,Fees,"1,200.00",M-D (Property)
03/07/2023,LOOKED AFTER CHILDREN (VIRTUAL HEAD),Welfare Call Ltd,Fees,"159,368.40",SEN Specialist Supp
03/07/2023,FEASIBILITY FUNDING,WS Atkins Plc T/A Atkins Ltd,Fees,"93,270.86",Not Applicable
03/07/2023,FEASIBILTY FUNDING - SCHOOL PROJECTS,WS Atkins Plc T/A Atkins Ltd,Fees,"7,560.00",Not Applicable
03/07/2023,SW FOSTERING CARE,Redacted Personal Data,Friends and Family carers,"12,074.94",Carers
03/07/2023,HQ PAYMENT OF INSURANCE CLAIMS,DWF Law LLP,General Insurance,"1,636.80",General Support
03/07/2023,HQ PAYMENT OF INSURANCE CLAIMS,LACHS,General Insurance,"1,085.38",Not Applicable
03/07/2023,CARERS CONTRACTS,Space 2B You CIC,"Grants, Contributions & Donations","31,300.00",Non Trade Payment
03/07/2023,NORTH WEST CWD NON-LAC CARE,Angel Cars Woking,Hire of Transport - Non Staff,"1,122.00",Taxi Hire (SEN Only)
03/07/2023,SEN HOME TO SCHOOL TRANSPORT,Angel Cars Woking,Hire of Transport - Non Staff,"2,052.00",Taxi Hire (SEN Only)
03/07/2023,SEN HOME TO SCHOOL TRANSPORT,Angel Cars Woking,Hire of Transport - Non Staff,"3,866.40",Taxi Hire (SEN Only)
03/07/2023,SEN HOME TO SCHOOL TRANSPORT,Angel Cars Woking,Hire of Transport - Non Staff,"5,076.00",Taxi Hire (SEN Only)
03/07/2023,SEN HOME TO SCHOOL TRANSPORT,Angel Cars Woking,Hire of Transport - Non Staff,"6,912.00",Taxi Hire (SEN Only)
03/07/2023,TRANSPORT -MAINSTREAM PRIMARY,Angel Cars Woking,Hire of Transport - Non Staff,"1,669.40",Taxi Hire (SEN Only)
03/07/2023,SEN HOME TO SCHOOL TRANSPORT,Angel Cars Woking,Hire of Transport - Non Staff,814.60,Taxi Hire (SEN Only)
03/07/2023,TRANSPORT -MAINSTREAM PRIMARY,Angel Cars Woking,Hire of Transport - Non Staff,"3,672.00",Taxi Hire (SEN Only)
03/07/2023,SW SHORT STAY SCHOOL TRANSPORT,Angel Cars Woking,Hire of Transport - Non Staff,"2,051.68",Taxi Hire (SEN Only)
03/07/2023,SEN HOME TO SCHOOL TRANSPORT,Angel Cars Woking,Hire of Transport - Non Staff,"1,620.32",Taxi Hire (SEN Only)
03/07/2023,SEN HOME TO SCHOOL TRANSPORT,Angel Cars Woking,Hire of Transport - Non Staff,"4,428.00",Taxi Hire (SEN Only)
03/07/2023,SEN HOME TO SCHOOL TRANSPORT,Angel Cars Woking,Hire of Transport - Non Staff,"3,888.00",Taxi Hire (SEN Only)
03/07/2023,SEN HOME TO SCHOOL TRANSPORT,Angel Cars Woking,Hire of Transport - Non Staff,"4,536.00",Taxi Hire (SEN Only)
03/07/2023,SEN HOME TO SCHOOL TRANSPORT,Angel Cars Woking,Hire of Transport - Non Staff,"3,996.00",Taxi Hire (SEN Only)
03/07/2023,SEN HOME TO SCHOOL TRANSPORT,Angel Cars Woking,Hire of Transport - Non Staff,"3,033.00",Taxi Hire (SEN Only)
03/07/2023,LD-Autism Central Team Staff,Angel Cars Woking,Hire of Transport - Non Staff,"1,254.00",Taxi Hire (SEN Only)
03/07/2023,SEN HOME TO SCHOOL TRANSPORT,Angel Cars Woking,Hire of Transport - Non Staff,"3,607.20",Taxi Hire (SEN Only)
03/07/2023,TRANSPORT  MAINSTREAM SECDRY,Angel Cars Woking,Hire of Transport - Non Staff,"2,052.00",Taxi Hire (SEN Only)
03/07/2023,SEN HOME TO SCHOOL TRANSPORT,Angel Cars Woking,Hire of Transport - Non Staff,"3,866.40",Taxi Hire (SEN Only)
03/07/2023,TRANSPORT  MAINSTREAM SECDRY,Angel Cars Woking,Hire of Transport - Non Staff,"2,179.87",Taxi Hire (SEN Only)
03/07/2023,SEN HOME TO SCHOOL TRANSPORT,Angel Cars Woking,Hire of Transport - Non Staff,520.13,Taxi Hire (SEN Only)
03/07/2023,SEN HOME TO SCHOOL TRANSPORT,Angel Cars Woking,Hire of Transport - Non Staff,"4,276.80",Taxi Hire (SEN Only)
03/07/2023,SEN HOME TO SCHOOL TRANSPORT,Angel Cars Woking,Hire of Transport - Non Staff,"4,492.80",Taxi Hire (SEN Only)
03/07/2023,SEN HOME TO SCHOOL TRANSPORT,Angel Cars Woking,Hire of Transport - Non Staff,"5,054.40",Taxi Hire (SEN Only)
03/07/2023,SEN HOME TO SCHOOL TRANSPORT,Angel Cars Woking,Hire of Transport - Non Staff,"5,054.40",Taxi Hire (SEN Only)
03/07/2023,SEN HOME TO SCHOOL TRANSPORT,Angel Cars Woking,Hire of Transport - Non Staff,"3,876.00",Taxi Hire (SEN Only)
03/07/2023,SEN HOME TO SCHOOL TRANSPORT,Angel Cars Woking,Hire of Transport - Non Staff,"3,864.00",Taxi Hire (SEN Only)
03/07/2023,SEN HOME TO SCHOOL TRANSPORT,Angel Cars Woking,Hire of Transport - Non Staff,"4,104.00",Taxi Hire (SEN Only)
03/07/2023,SEN HOME TO SCHOOL TRANSPORT,Angel Cars Woking,Hire of Transport - Non Staff,"3,456.00",Taxi Hire (SEN Only)
03/07/2023,SEN HOME TO SCHOOL TRANSPORT,Angel Cars Woking,Hire of Transport - Non Staff,"4,179.60",Taxi Hire (SEN Only)
03/07/2023,SEN HOME TO SCHOOL TRANSPORT,Angel Cars Woking,Hire of Transport - Non Staff,"5,443.20",Taxi Hire (SEN Only)
03/07/2023,SEN HOME TO SCHOOL TRANSPORT,Angel Cars Woking,Hire of Transport - Non Staff,"3,628.80",Taxi Hire (SEN Only)
03/07/2023,SEN HOME TO SCHOOL TRANSPORT,Angel Cars Woking,Hire of Transport - Non Staff,"3,888.00",Taxi Hire (SEN Only)
03/07/2023,PLD TRANSITION CARE,Angel Cars Woking,Hire of Transport - Non Staff,"3,264.00",Taxi Hire (SEN Only)
03/07/2023,SEN HOME TO SCHOOL TRANSPORT,Angel Cars Woking,Hire of Transport - Non Staff,"3,240.00",Taxi Hire (SEN Only)
03/07/2023,SEN HOME TO SCHOOL TRANSPORT,Angel Cars Woking,Hire of Transport - Non Staff,"3,348.00",Taxi Hire (SEN Only)
03/07/2023,SEN HOME TO SCHOOL TRANSPORT,Angel Cars Woking,Hire of Transport - Non Staff,"3,877.20",Taxi Hire (SEN Only)
03/07/2023,SEN HOME TO SCHOOL TRANSPORT,Angel Cars Woking,Hire of Transport - Non Staff,"2,754.00",Taxi Hire (SEN Only)
03/07/2023,SEN HOME TO SCHOOL TRANSPORT,Angel Cars Woking,Hire of Transport - Non Staff,"4,082.40",Taxi Hire (SEN Only)
03/07/2023,TRANSPORT -MAINSTREAM PRIMARY,Angel Cars Woking,Hire of Transport - Non Staff,"2,030.40",Taxi Hire (SEN Only)
03/07/2023,SEN HOME TO SCHOOL TRANSPORT,Angel Cars Woking,Hire of Transport - Non Staff,"5,832.00",Taxi Hire (SEN Only)
03/07/2023,SEN HOME TO SCHOOL TRANSPORT,Angel Cars Woking,Hire of Transport - Non Staff,"2,239.96",Taxi Hire (SEN Only)
03/07/2023,TRANSPORT  MAINSTREAM SECDRY,Angel Cars Woking,Hire of Transport - Non Staff,"1,258.64",Taxi Hire (SEN Only)
03/07/2023,SEN HOME TO SCHOOL TRANSPORT,Angel Cars Woking,Hire of Transport - Non Staff,"3,909.60",Taxi Hire (SEN Only)
03/07/2023,SEN HOME TO SCHOOL TRANSPORT,Angel Cars Woking,Hire of Transport - Non Staff,"4,020.00",Taxi Hire (SEN Only)
03/07/2023,SEN HOME TO SCHOOL TRANSPORT,Blue Arrow Gatwick Ltd,Hire of Transport - Non Staff,"4,524.52",Multi-purpose Veh
03/07/2023,NE SHORT STAY SCHOOL TRANSPORT,Blue Arrow Gatwick Ltd,Hire of Transport - Non Staff,423.08,Multi-purpose Veh
03/07/2023,SEN HOME TO SCHOOL TRANSPORT,Blue Arrow Gatwick Ltd,Hire of Transport - Non Staff,"1,938.00",Multi-purpose Veh
03/07/2023,SEN HOME TO SCHOOL TRANSPORT,Blue Arrow Gatwick Ltd,Hire of Transport - Non Staff,"3,434.40",Multi-purpose Veh
03/07/2023,SE REIGATE VALLEY COLLEGE TRANSPORT,Blue Arrow Gatwick Ltd,Hire of Transport - Non Staff,"2,019.60",Multi-purpose Veh
03/07/2023,SEN HOME TO SCHOOL TRANSPORT,Blue Arrow Gatwick Ltd,Hire of Transport - Non Staff,"1,944.00",Multi-purpose Veh
03/07/2023,SEN HOME TO SCHOOL TRANSPORT,Blue Arrow Gatwick Ltd,Hire of Transport - Non Staff,"2,092.80",Multi-purpose Veh
03/07/2023,SEN HOME TO SCHOOL TRANSPORT,Blue Arrow Gatwick Ltd,Hire of Transport - Non Staff,"2,581.07",Multi-purpose Veh
03/07/2023,TRANSPORT  MAINSTREAM SECDRY,Blue Arrow Gatwick Ltd,Hire of Transport - Non Staff,486.13,Multi-purpose Veh
03/07/2023,TRANSPORT  MAINSTREAM SECDRY,Blue Arrow Gatwick Ltd,Hire of Transport - Non Staff,"2,520.00",Multi-purpose Veh
03/07/2023,TRANSPORT  MAINSTREAM SECDRY,Blue Arrow Gatwick Ltd,Hire of Transport - Non Staff,"1,181.29",Multi-purpose Veh
03/07/2023,SEN HOME TO SCHOOL TRANSPORT,Blue Arrow Gatwick Ltd,Hire of Transport - Non Staff,603.71,Multi-purpose Veh
03/07/2023,SEN HOME TO SCHOOL TRANSPORT,Blue Arrow Gatwick Ltd,Hire of Transport - Non Staff,"2,786.40",Multi-purpose Veh
03/07/2023,SE REIGATE VALLEY COLLEGE TRANSPORT,Blue Arrow Gatwick Ltd,Hire of Transport - Non Staff,"1,890.00",Multi-purpose Veh
03/07/2023,TRANSPORT -MAINSTREAM PRIMARY,Blue Arrow Gatwick Ltd,Hire of Transport - Non Staff,"4,428.00",Multi-purpose Veh
03/07/2023,SEN HOME TO SCHOOL TRANSPORT,Blue Arrow Gatwick Ltd,Hire of Transport - Non Staff,"3,096.00",Multi-purpose Veh
03/07/2023,SEN HOME TO SCHOOL TRANSPORT,Blue Arrow Gatwick Ltd,Hire of Transport - Non Staff,"3,002.40",Multi-purpose Veh
03/07/2023,TRANSPORT -MAINSTREAM PRIMARY,Blue Arrow Gatwick Ltd,Hire of Transport - Non Staff,"3,132.00",Multi-purpose Veh
03/07/2023,SEN HOME TO SCHOOL TRANSPORT,Blue Arrow Gatwick Ltd,Hire of Transport - Non Staff,576.00,Multi-purpose Veh
03/07/2023,SEN HOME TO SCHOOL TRANSPORT,Deuces Cars Ltd,Hire of Transport - Non Staff,"2,592.00",Taxi Hire (SEN Only)
03/07/2023,TRANSPORT -MAINSTREAM PRIMARY,Deuces Cars Ltd,Hire of Transport - Non Staff,"1,341.60",Taxi Hire (SEN Only)
03/07/2023,TRANSPORT -MAINSTREAM PRIMARY,Deuces Cars Ltd,Hire of Transport - Non Staff,465.60,Taxi Hire (SEN Only)
03/07/2023,SEN HOME TO SCHOOL TRANSPORT,Deuces Cars Ltd,Hire of Transport - Non Staff,655.82,Taxi Hire (SEN Only)
03/07/2023,TRANSPORT -MAINSTREAM PRIMARY,Deuces Cars Ltd,Hire of Transport - Non Staff,"1,303.18",Taxi Hire (SEN Only)
03/07/2023,SEN HOME TO SCHOOL TRANSPORT,Deuces Cars Ltd,Hire of Transport - Non Staff,"2,289.60",Taxi Hire (SEN Only)
03/07/2023,TRANSPORT -MAINSTREAM PRIMARY,Deuces Cars Ltd,Hire of Transport - Non Staff,"1,876.80",Taxi Hire (SEN Only)
03/07/2023,SW SHORT STAY SCHOOL TRANSPORT,Deuces Cars Ltd,Hire of Transport - Non Staff,"3,990.00",Taxi Hire (SEN Only)
03/07/2023,NW SHORT STAY SCHOOL TRANSPORT,Deuces Cars Ltd,Hire of Transport - Non Staff,"2,341.80",Taxi Hire (SEN Only)
03/07/2023,SEN HOME TO SCHOOL TRANSPORT,Deuces Cars Ltd,Hire of Transport - Non Staff,"4,177.80",Taxi Hire (SEN Only)
03/07/2023,SEN HOME TO SCHOOL TRANSPORT,Deuces Cars Ltd,Hire of Transport - Non Staff,840.00,Taxi Hire (SEN Only)
03/07/2023,SURREY CHOICES TRANSPORT,Deuces Cars Ltd,Hire of Transport - Non Staff,"5,040.00",Taxi Hire (SEN Only)
03/07/2023,SEN HOME TO SCHOOL TRANSPORT,Deuces Cars Ltd,Hire of Transport - Non Staff,"3,507.00",Taxi Hire (SEN Only)
03/07/2023,SEN HOME TO SCHOOL TRANSPORT,Deuces Cars Ltd,Hire of Transport - Non Staff,"5,292.00",Taxi Hire (SEN Only)
03/07/2023,SEN HOME TO SCHOOL TRANSPORT,Deuces Cars Ltd,Hire of Transport - Non Staff,"2,721.60",Taxi Hire (SEN Only)
03/07/2023,SEN HOME TO SCHOOL TRANSPORT,Deuces Cars Ltd,Hire of Transport - Non Staff,"3,542.40",Taxi Hire (SEN Only)
03/07/2023,ALTERNATIVE PROVISION TRANSPORT SW,Deuces Cars Ltd,Hire of Transport - Non Staff,"2,300.77",Taxi Hire (SEN Only)
03/07/2023,ALTERNATIVE PROVISION TRANSPORT NE,Deuces Cars Ltd,Hire of Transport - Non Staff,360.00,Taxi Hire (SEN Only)
03/07/2023,SEN HOME TO SCHOOL TRANSPORT,Deuces Cars Ltd,Hire of Transport - Non Staff,"4,074.00",Taxi Hire (SEN Only)
03/07/2023,SEN HOME TO SCHOOL TRANSPORT,Deuces Cars Ltd,Hire of Transport - Non Staff,"3,888.00",Taxi Hire (SEN Only)
03/07/2023,SEN HOME TO SCHOOL TRANSPORT,Deuces Cars Ltd,Hire of Transport - Non Staff,"1,987.20",Taxi Hire (SEN Only)
03/07/2023,SEN HOME TO SCHOOL TRANSPORT,Deuces Cars Ltd,Hire of Transport - Non Staff,"4,600.80",Taxi Hire (SEN Only)
03/07/2023,SEN HOME TO SCHOOL TRANSPORT,Deuces Cars Ltd,Hire of Transport - Non Staff,"1,980.00",Taxi Hire (SEN Only)
03/07/2023,SEN HOME TO SCHOOL TRANSPORT,Deuces Cars Ltd,Hire of Transport - Non Staff,"3,067.20",Taxi Hire (SEN Only)
03/07/2023,SEN HOME TO SCHOOL TRANSPORT,Deuces Cars Ltd,Hire of Transport - Non Staff,"3,736.80",Taxi Hire (SEN Only)
03/07/2023,SEN HOME TO SCHOOL TRANSPORT,Deuces Cars Ltd,Hire of Transport - Non Staff,"4,924.80",Taxi Hire (SEN Only)
03/07/2023,SEN HOME TO SCHOOL TRANSPORT,Deuces Cars Ltd,Hire of Transport - Non Staff,"2,052.00",Taxi Hire (SEN Only)
03/07/2023,SEN HOME TO SCHOOL TRANSPORT,Deuces Cars Ltd,Hire of Transport - Non Staff,"4,095.00",Taxi Hire (SEN Only)
03/07/2023,TRANSPORT -MAINSTREAM PRIMARY,Deuces Cars Ltd,Hire of Transport - Non Staff,"3,024.00",Taxi Hire (SEN Only)
03/07/2023,TRANSPORT -MAINSTREAM PRIMARY,Deuces Cars Ltd,Hire of Transport - Non Staff,"1,814.40",Taxi Hire (SEN Only)
03/07/2023,SEN HOME TO SCHOOL TRANSPORT,Deuces Cars Ltd,Hire of Transport - Non Staff,"3,304.80",Taxi Hire (SEN Only)
03/07/2023,SEN HOME TO SCHOOL TRANSPORT,Deuces Cars Ltd,Hire of Transport - Non Staff,"4,968.00",Taxi Hire (SEN Only)
03/07/2023,LD-Autism Central Team Care,Deuces Cars Ltd,Hire of Transport - Non Staff,"1,152.00",Taxi Hire (SEN Only)
03/07/2023,SEN HOME TO SCHOOL TRANSPORT,Deuces Cars Ltd,Hire of Transport - Non Staff,"2,566.08",Taxi Hire (SEN Only)
03/07/2023,SE REIGATE VALLEY COLLEGE TRANSPORT,Get A Ride Ltd,Hire of Transport - Non Staff,666.00,Taxi Hire (SEN Only)
03/07/2023,SEN HOME TO SCHOOL TRANSPORT,HCL Chauffeurs UK Ltd,Hire of Transport - Non Staff,"4,428.00",Multi-purpose Veh
03/07/2023,SEN HOME TO SCHOOL TRANSPORT,Iconnectcar,Hire of Transport - Non Staff,660.00,Taxi Hire (SEN Only)
03/07/2023,SEN HOME TO SCHOOL TRANSPORT,Iconnectcar,Hire of Transport - Non Staff,"1,693.20",Taxi Hire (SEN Only)
03/07/2023,TRANSPORT  MAINSTREAM SECDRY,Iconnectcar,Hire of Transport - Non Staff,"3,034.80",Taxi Hire (SEN Only)
03/07/2023,SEN HOME TO SCHOOL TRANSPORT,Iconnectcar,Hire of Transport - Non Staff,"3,335.40",Taxi Hire (SEN Only)
03/07/2023,SEN HOME TO SCHOOL TRANSPORT,Iconnectcar,Hire of Transport - Non Staff,"3,002.40",Taxi Hire (SEN Only)
03/07/2023,TRANSPORT  MAINSTREAM SECDRY,Iconnectcar,Hire of Transport - Non Staff,"2,354.40",Taxi Hire (SEN Only)
03/07/2023,SEN HOME TO SCHOOL TRANSPORT,Iconnectcar,Hire of Transport - Non Staff,"3,564.00",Taxi Hire (SEN Only)
03/07/2023,SEN HOME TO SCHOOL TRANSPORT,Iconnectcar,Hire of Transport - Non Staff,"2,473.20",Taxi Hire (SEN Only)
03/07/2023,TRANSPORT -MAINSTREAM PRIMARY,Iconnectcar,Hire of Transport - Non Staff,"1,973.42",Taxi Hire (SEN Only)
03/07/2023,SEN HOME TO SCHOOL TRANSPORT,Iconnectcar,Hire of Transport - Non Staff,510.58,Taxi Hire (SEN Only)
03/07/2023,SEN HOME TO SCHOOL TRANSPORT,Iconnectcar,Hire of Transport - Non Staff,"2,937.60",Taxi Hire (SEN Only)
03/07/2023,TRANSPORT -MAINSTREAM PRIMARY,Iconnectcar,Hire of Transport - Non Staff,864.00,Taxi Hire (SEN Only)
03/07/2023,TRANSPORT  MAINSTREAM SECDRY,Iconnectcar,Hire of Transport - Non Staff,"3,564.00",Taxi Hire (SEN Only)
03/07/2023,SW SHORT STAY SCHOOL TRANSPORT,Iconnectcar,Hire of Transport - Non Staff,"1,035.30",Taxi Hire (SEN Only)
03/07/2023,SEN HOME TO SCHOOL TRANSPORT,Iconnectcar,Hire of Transport - Non Staff,"1,980.00",Taxi Hire (SEN Only)
03/07/2023,SEN HOME TO SCHOOL TRANSPORT,Iconnectcar,Hire of Transport - Non Staff,"2,678.40",Taxi Hire (SEN Only)
03/07/2023,SEN HOME TO SCHOOL TRANSPORT,Iconnectcar,Hire of Transport - Non Staff,"2,462.40",Taxi Hire (SEN Only)
03/07/2023,SEN HOME TO SCHOOL TRANSPORT,Iconnectcar,Hire of Transport - Non Staff,"2,808.00",Taxi Hire (SEN Only)
03/07/2023,SEN HOME TO SCHOOL TRANSPORT,Iconnectcar,Hire of Transport - Non Staff,"3,412.80",Taxi Hire (SEN Only)
03/07/2023,SEN HOME TO SCHOOL TRANSPORT,Iconnectcar,Hire of Transport - Non Staff,"2,040.00",Taxi Hire (SEN Only)
03/07/2023,SEN HOME TO SCHOOL TRANSPORT,Iconnectcar,Hire of Transport - Non Staff,"1,512.00",Taxi Hire (SEN Only)
03/07/2023,SEN HOME TO SCHOOL TRANSPORT,Iconnectcar,Hire of Transport - Non Staff,"2,808.00",Taxi Hire (SEN Only)
03/07/2023,TRANSPORT -MAINSTREAM PRIMARY,Iconnectcar,Hire of Transport - Non Staff,"2,376.00",Taxi Hire (SEN Only)
03/07/2023,TRANSPORT -MAINSTREAM PRIMARY,Iconnectcar,Hire of Transport - Non Staff,"2,752.20",Taxi Hire (SEN Only)
03/07/2023,TRANSPORT  MAINSTREAM SECDRY,Iconnectcar,Hire of Transport - Non Staff,489.02,Taxi Hire (SEN Only)
03/07/2023,SEN HOME TO SCHOOL TRANSPORT,Iconnectcar,Hire of Transport - Non Staff,"2,165.38",Taxi Hire (SEN Only)
03/07/2023,TRANSPORT  MAINSTREAM SECDRY,Iconnectcar,Hire of Transport - Non Staff,"2,184.00",Taxi Hire (SEN Only)
03/07/2023,TRANSPORT  MAINSTREAM SECDRY,Iconnectcar,Hire of Transport - Non Staff,"2,234.40",Taxi Hire (SEN Only)
03/07/2023,TRANSPORT  MAINSTREAM SECDRY,Iconnectcar,Hire of Transport - Non Staff,"3,024.00",Taxi Hire (SEN Only)
03/07/2023,SEN HOME TO SCHOOL TRANSPORT,Iconnectcar,Hire of Transport - Non Staff,"1,884.00",Taxi Hire (SEN Only)
03/07/2023,SW SHORT STAY SCHOOL TRANSPORT,Iconnectcar,Hire of Transport - Non Staff,"2,163.00",Taxi Hire (SEN Only)
03/07/2023,TRANSPORT -MAINSTREAM PRIMARY,Iconnectcar,Hire of Transport - Non Staff,"2,611.20",Taxi Hire (SEN Only)
03/07/2023,SEN HOME TO SCHOOL TRANSPORT,Iconnectcar,Hire of Transport - Non Staff,"2,335.20",Taxi Hire (SEN Only)
03/07/2023,TRANSPORT  MAINSTREAM SECDRY,Iconnectcar,Hire of Transport - Non Staff,"1,031.16",Taxi Hire (SEN Only)
03/07/2023,SE REIGATE VALLEY COLLEGE TRANSPORT,Iconnectcar,Hire of Transport - Non Staff,"2,036.04",Taxi Hire (SEN Only)
03/07/2023,SEN HOME TO SCHOOL TRANSPORT,Iconnectcar,Hire of Transport - Non Staff,"2,310.00",Taxi Hire (SEN Only)
03/07/2023,SW SHORT STAY SCHOOL TRANSPORT,Iconnectcar,Hire of Transport - Non Staff,"2,898.00",Taxi Hire (SEN Only)
03/07/2023,SEN HOME TO SCHOOL TRANSPORT,Iconnectcar,Hire of Transport - Non Staff,"3,420.00",Taxi Hire (SEN Only)
03/07/2023,TRANSPORT  MAINSTREAM SECDRY,Iconnectcar,Hire of Transport - Non Staff,"2,376.00",Taxi Hire (SEN Only)
03/07/2023,TRANSPORT  MAINSTREAM SECDRY,Iconnectcar,Hire of Transport - Non Staff,"1,329.41",Taxi Hire (SEN Only)
03/07/2023,TRANSPORT -MAINSTREAM PRIMARY,Iconnectcar,Hire of Transport - Non Staff,"1,073.59",Taxi Hire (SEN Only)
03/07/2023,LD-Autism Central Team Care,MP Cars,Hire of Transport - Non Staff,"1,584.00",Multi-purpose Veh
03/07/2023,LD-Autism Central Team Care,MP Cars,Hire of Transport - Non Staff,"1,848.00",Multi-purpose Veh
03/07/2023,SEN HOME TO SCHOOL TRANSPORT,MP Cars,Hire of Transport - Non Staff,"1,814.40",Multi-purpose Veh
03/07/2023,SEN HOME TO SCHOOL TRANSPORT,MP Cars,Hire of Transport - Non Staff,765.34,Multi-purpose Veh
03/07/2023,LD-Autism Central Team Care,MP Cars,Hire of Transport - Non Staff,"1,027.46",Multi-purpose Veh
03/07/2023,PLD TRANSITION CARE,MP Cars,Hire of Transport - Non Staff,"3,600.00",Multi-purpose Veh
03/07/2023,LD-Autism Central Team Care,MP Cars,Hire of Transport - Non Staff,"4,356.00",Multi-purpose Veh
03/07/2023,SEN HOME TO SCHOOL TRANSPORT,MP Cars,Hire of Transport - Non Staff,"1,556.28",Multi-purpose Veh
03/07/2023,LD-Autism Central Team Care,MP Cars,Hire of Transport - Non Staff,"1,536.00",Multi-purpose Veh
03/07/2023,SEN HOME TO SCHOOL TRANSPORT,MP Cars,Hire of Transport - Non Staff,"1,080.00",Multi-purpose Veh
03/07/2023,SEN HOME TO SCHOOL TRANSPORT,Mums & Sons Ltd,Hire of Transport - Non Staff,"2,520.00",Multi-purpose Veh
03/07/2023,SEN HOME TO SCHOOL TRANSPORT,Mums & Sons Ltd,Hire of Transport - Non Staff,"3,337.20",Multi-purpose Veh
03/07/2023,LD-Autism Central Team Care,Mums & Sons Ltd,Hire of Transport - Non Staff,"3,480.00",Multi-purpose Veh
03/07/2023,NW CARE - NON-LAC CP & COURT,Mums & Sons Ltd,Hire of Transport - Non Staff,"2,856.00",Multi-purpose Veh
03/07/2023,SEN HOME TO SCHOOL TRANSPORT,Mums & Sons Ltd,Hire of Transport - Non Staff,"4,752.00",Multi-purpose Veh
03/07/2023,SEN HOME TO SCHOOL TRANSPORT,Mums & Sons Ltd,Hire of Transport - Non Staff,"3,060.00",Multi-purpose Veh
03/07/2023,SEN HOME TO SCHOOL TRANSPORT,Mums & Sons Ltd,Hire of Transport - Non Staff,"2,856.00",Multi-purpose Veh
03/07/2023,SEN HOME TO SCHOOL TRANSPORT,Mums & Sons Ltd,Hire of Transport - Non Staff,"5,616.00",Multi-purpose Veh
03/07/2023,LD-Autism Central Team Care,Mums & Sons Ltd,Hire of Transport - Non Staff,"2,484.00",Multi-purpose Veh
03/07/2023,SEN HOME TO SCHOOL TRANSPORT,Mums & Sons Ltd,Hire of Transport - Non Staff,"4,752.00",Multi-purpose Veh
03/07/2023,SEN HOME TO SCHOOL TRANSPORT,Mums & Sons Ltd,Hire of Transport - Non Staff,"3,456.00",Multi-purpose Veh
03/07/2023,TRANSPORT -MAINSTREAM PRIMARY,Mums & Sons Ltd,Hire of Transport - Non Staff,"3,456.00",Multi-purpose Veh
03/07/2023,SEN HOME TO SCHOOL TRANSPORT,Mums & Sons Ltd,Hire of Transport - Non Staff,"3,060.00",Multi-purpose Veh
03/07/2023,TRANSPORT -MAINSTREAM PRIMARY,Swan School Services Ltd,Hire of Transport - Non Staff,716.77,Multi-purpose Veh
03/07/2023,TRANSPORT  MAINSTREAM SECDRY,Swan School Services Ltd,Hire of Transport - Non Staff,"1,593.23",Multi-purpose Veh
03/07/2023,NE SHORT STAY SCHOOL TRANSPORT,Swan School Services Ltd,Hire of Transport - Non Staff,"2,496.00",Multi-purpose Veh
03/07/2023,SEN HOME TO SCHOOL TRANSPORT,Swan School Services Ltd,Hire of Transport - Non Staff,"2,688.00",Multi-purpose Veh
03/07/2023,NE SHORT STAY SCHOOL TRANSPORT,Swan School Services Ltd,Hire of Transport - Non Staff,"4,089.60",Multi-purpose Veh
03/07/2023,SEN HOME TO SCHOOL TRANSPORT,Swan School Services Ltd,Hire of Transport - Non Staff,"2,635.20",Multi-purpose Veh
03/07/2023,SEN HOME TO SCHOOL TRANSPORT,Swan School Services Ltd,Hire of Transport - Non Staff,"3,024.00",Multi-purpose Veh
03/07/2023,TRANSPORT -MAINSTREAM PRIMARY,Swan School Services Ltd,Hire of Transport - Non Staff,"1,836.00",Multi-purpose Veh
03/07/2023,SEN HOME TO SCHOOL TRANSPORT,Swan School Services Ltd,Hire of Transport - Non Staff,"1,512.00",Multi-purpose Veh
03/07/2023,SEN HOME TO SCHOOL TRANSPORT,Swan School Services Ltd,Hire of Transport - Non Staff,"3,024.00",Multi-purpose Veh
03/07/2023,SEN HOME TO SCHOOL TRANSPORT,Swan School Services Ltd,Hire of Transport - Non Staff,"3,664.50",Multi-purpose Veh
03/07/2023,TRANSPORT  MAINSTREAM SECDRY,Swan School Services Ltd,Hire of Transport - Non Staff,778.28,Multi-purpose Veh
03/07/2023,SEN HOME TO SCHOOL TRANSPORT,Swan School Services Ltd,Hire of Transport - Non Staff,"1,064.48",Multi-purpose Veh
03/07/2023,SEN HOME TO SCHOOL TRANSPORT,Swan School Services Ltd,Hire of Transport - Non Staff,"4,812.00",Multi-purpose Veh
03/07/2023,SEN HOME TO SCHOOL TRANSPORT,Swan School Services Ltd,Hire of Transport - Non Staff,"3,528.00",Multi-purpose Veh
03/07/2023,SEN HOME TO SCHOOL TRANSPORT,Swan School Services Ltd,Hire of Transport - Non Staff,"1,680.00",Multi-purpose Veh
03/07/2023,SEN HOME TO SCHOOL TRANSPORT,Swan School Services Ltd,Hire of Transport - Non Staff,"3,888.00",Multi-purpose Veh
03/07/2023,PLD TRANSITION CARE,Swan School Services Ltd,Hire of Transport - Non Staff,"3,360.00",Multi-purpose Veh
03/07/2023,SEN HOME TO SCHOOL TRANSPORT,Xpert Cars Ltd,Hire of Transport - Non Staff,"1,680.48",Taxi Hire (SEN Only)
03/07/2023,TRANSPORT  MAINSTREAM SECDRY,Xpert Cars Ltd,Hire of Transport - Non Staff,857.72,Taxi Hire (SEN Only)
03/07/2023,SEN HOME TO SCHOOL TRANSPORT,Xpert Cars Ltd,Hire of Transport - Non Staff,"1,204.48",Taxi Hire (SEN Only)
03/07/2023,TRANSPORT -MAINSTREAM PRIMARY,Xpert Cars Ltd,Hire of Transport - Non Staff,637.80,Taxi Hire (SEN Only)
03/07/2023,SEN HOME TO SCHOOL TRANSPORT,Xpert Cars Ltd,Hire of Transport - Non Staff,"3,060.00",Taxi Hire (SEN Only)
03/07/2023,SEN HOME TO SCHOOL TRANSPORT,Xpert Cars Ltd,Hire of Transport - Non Staff,"4,692.00",Taxi Hire (SEN Only)
03/07/2023,SEN HOME TO SCHOOL TRANSPORT,Xpert Cars Ltd,Hire of Transport - Non Staff,"2,808.00",Taxi Hire (SEN Only)
03/07/2023,SEN HOME TO SCHOOL TRANSPORT,Xpert Cars Ltd,Hire of Transport - Non Staff,"2,188.80",Taxi Hire (SEN Only)
03/07/2023,SEN HOME TO SCHOOL TRANSPORT,Xpert Cars Ltd,Hire of Transport - Non Staff,"2,671.02",Taxi Hire (SEN Only)
03/07/2023,NE SHORT STAY SCHOOL TRANSPORT,Xpert Cars Ltd,Hire of Transport - Non Staff,630.72,Taxi Hire (SEN Only)
03/07/2023,TRANSPORT -MAINSTREAM PRIMARY,Xpert Cars Ltd,Hire of Transport - Non Staff,"2,139.96",Taxi Hire (SEN Only)
03/07/2023,NE SHORT STAY SCHOOL TRANSPORT,Xpert Cars Ltd,Hire of Transport - Non Staff,"2,527.20",Taxi Hire (SEN Only)
03/07/2023,TRANSPORT -MAINSTREAM PRIMARY,Xpert Cars Ltd,Hire of Transport - Non Staff,"1,833.84",Taxi Hire (SEN Only)
03/07/2023,SEN HOME TO SCHOOL TRANSPORT,Xpert Cars Ltd,Hire of Transport - Non Staff,"2,244.24",Taxi Hire (SEN Only)
03/07/2023,SEN HOME TO SCHOOL TRANSPORT,Xpert Cars Ltd,Hire of Transport - Non Staff,"3,210.48",Taxi Hire (SEN Only)
03/07/2023,SEN HOME TO SCHOOL TRANSPORT,Xpert Cars Ltd,Hire of Transport - Non Staff,"2,384.64",Taxi Hire (SEN Only)
03/07/2023,SEN HOME TO SCHOOL TRANSPORT,Xpert Cars Ltd,Hire of Transport - Non Staff,937.87,Taxi Hire (SEN Only)
03/07/2023,TRANSPORT  MAINSTREAM SECDRY,Xpert Cars Ltd,Hire of Transport - Non Staff,"1,286.93",Taxi Hire (SEN Only)
03/07/2023,SEN HOME TO SCHOOL TRANSPORT,Xpert Cars Ltd,Hire of Transport - Non Staff,"3,110.40",Taxi Hire (SEN Only)
03/07/2023,SEN HOME TO SCHOOL TRANSPORT,Xpert Cars Ltd,Hire of Transport - Non Staff,"2,872.80",Taxi Hire (SEN Only)
03/07/2023,TRANSPORT -MAINSTREAM PRIMARY,Xpert Cars Ltd,Hire of Transport - Non Staff,"2,460.24",Taxi Hire (SEN Only)
03/07/2023,SEN HOME TO SCHOOL TRANSPORT,Xpert Cars Ltd,Hire of Transport - Non Staff,"3,304.80",Taxi Hire (SEN Only)
03/07/2023,NE SHORT STAY SCHOOL TRANSPORT,Xpert Cars Ltd,Hire of Transport - Non Staff,618.44,Taxi Hire (SEN Only)
03/07/2023,SEN HOME TO SCHOOL TRANSPORT,Xpert Cars Ltd,Hire of Transport - Non Staff,"2,705.81",Taxi Hire (SEN Only)
03/07/2023,SEN HOME TO SCHOOL TRANSPORT,Xpert Cars Ltd,Hire of Transport - Non Staff,"1,576.80",Taxi Hire (SEN Only)
03/07/2023,SEN HOME TO SCHOOL TRANSPORT,Xpert Cars Ltd,Hire of Transport - Non Staff,"3,663.36",Taxi Hire (SEN Only)
03/07/2023,SEN HOME TO SCHOOL TRANSPORT,Xpert Cars Ltd,Hire of Transport - Non Staff,"2,224.80",Taxi Hire (SEN Only)
03/07/2023,SEN HOME TO SCHOOL TRANSPORT,Xpert Cars Ltd,Hire of Transport - Non Staff,"2,608.20",Taxi Hire (SEN Only)
03/07/2023,SEN HOME TO SCHOOL TRANSPORT,Xpert Cars Ltd,Hire of Transport - Non Staff,"3,931.20",Taxi Hire (SEN Only)
03/07/2023,TRANSPORT -MAINSTREAM PRIMARY,Xpert Cars Ltd,Hire of Transport - Non Staff,427.22,Taxi Hire (SEN Only)
03/07/2023,SEN HOME TO SCHOOL TRANSPORT,Xpert Cars Ltd,Hire of Transport - Non Staff,"2,402.38",Taxi Hire (SEN Only)
03/07/2023,SEN HOME TO SCHOOL TRANSPORT,Xpert Cars Ltd,Hire of Transport - Non Staff,"2,916.00",Taxi Hire (SEN Only)
03/07/2023,SEN HOME TO SCHOOL TRANSPORT,Xpert Cars Ltd,Hire of Transport - Non Staff,"2,235.60",Taxi Hire (SEN Only)
03/07/2023,TRANSPORT -MAINSTREAM PRIMARY,Xpert Cars Ltd,Hire of Transport - Non Staff,"3,052.08",Taxi Hire (SEN Only)
03/07/2023,SEN HOME TO SCHOOL TRANSPORT,Xpert Cars Ltd,Hire of Transport - Non Staff,"2,369.52",Taxi Hire (SEN Only)
03/07/2023,SEN HOME TO SCHOOL TRANSPORT,Xpert Cars Ltd,Hire of Transport - Non Staff,"1,993.68",Taxi Hire (SEN Only)
03/07/2023,SEN HOME TO SCHOOL TRANSPORT,Xpert Cars Ltd,Hire of Transport - Non Staff,"3,574.80",Taxi Hire (SEN Only)
03/07/2023,SEN HOME TO SCHOOL TRANSPORT,Xpert Cars Ltd,Hire of Transport - Non Staff,"2,244.24",Taxi Hire (SEN Only)
03/07/2023,SEN HOME TO SCHOOL TRANSPORT,Xpert Cars Ltd,Hire of Transport - Non Staff,"2,872.80",Taxi Hire (SEN Only)
03/07/2023,SEN HOME TO SCHOOL TRANSPORT,Xpert Cars Ltd,Hire of Transport - Non Staff,"1,765.44",Taxi Hire (SEN Only)
03/07/2023,SEN HOME TO SCHOOL TRANSPORT,Xpert Cars Ltd,Hire of Transport - Non Staff,"2,328.48",Taxi Hire (SEN Only)
03/07/2023,SEN HOME TO SCHOOL TRANSPORT,Xpert Cars Ltd,Hire of Transport - Non Staff,"3,844.80",Taxi Hire (SEN Only)
03/07/2023,TRANSPORT -MAINSTREAM PRIMARY,Xpert Cars Ltd,Hire of Transport - Non Staff,"1,896.48",Taxi Hire (SEN Only)
03/07/2023,SEN HOME TO SCHOOL TRANSPORT,Xpert Cars Ltd,Hire of Transport - Non Staff,"2,116.80",Taxi Hire (SEN Only)
03/07/2023,SEN HOME TO SCHOOL TRANSPORT,Xpert Cars Ltd,Hire of Transport - Non Staff,"2,116.80",Taxi Hire (SEN Only)
03/07/2023,SEN HOME TO SCHOOL TRANSPORT,Xpert Cars Ltd,Hire of Transport - Non Staff,"1,729.96",Taxi Hire (SEN Only)
03/07/2023,SEN HOME TO SCHOOL TRANSPORT,Xpert Cars Ltd,Hire of Transport - Non Staff,"2,462.40",Taxi Hire (SEN Only)
03/07/2023,SEN HOME TO SCHOOL TRANSPORT,Xpert Cars Ltd,Hire of Transport - Non Staff,719.26,Taxi Hire (SEN Only)
03/07/2023,TRANSPORT -MAINSTREAM PRIMARY,Xpert Cars Ltd,Hire of Transport - Non Staff,965.54,Taxi Hire (SEN Only)
03/07/2023,SEN HOME TO SCHOOL TRANSPORT,Xpert Cars Ltd,Hire of Transport - Non Staff,"3,825.36",Taxi Hire (SEN Only)
03/07/2023,SEN HOME TO SCHOOL TRANSPORT,Xpert Cars Ltd,Hire of Transport - Non Staff,"2,980.80",Taxi Hire (SEN Only)
03/07/2023,SEN HOME TO SCHOOL TRANSPORT,Xpert Cars Ltd,Hire of Transport - Non Staff,"2,775.17",Taxi Hire (SEN Only)
03/07/2023,SEN HOME TO SCHOOL TRANSPORT,Xpert Cars Ltd,Hire of Transport - Non Staff,"3,326.40",Taxi Hire (SEN Only)
03/07/2023,SEN HOME TO SCHOOL TRANSPORT,Xpert Cars Ltd,Hire of Transport - Non Staff,"2,743.20",Taxi Hire (SEN Only)
03/07/2023,TRANSPORT -MAINSTREAM PRIMARY,Xpert Cars Ltd,Hire of Transport - Non Staff,"2,231.28",Taxi Hire (SEN Only)
03/07/2023,SEN HOME TO SCHOOL TRANSPORT,Xpert Cars Ltd,Hire of Transport - Non Staff,"2,647.92",Taxi Hire (SEN Only)
03/07/2023,SEN HOME TO SCHOOL TRANSPORT,Xpert Cars Ltd,Hire of Transport - Non Staff,"2,438.64",Taxi Hire (SEN Only)
03/07/2023,SEN HOME TO SCHOOL TRANSPORT,Xpert Cars Ltd,Hire of Transport - Non Staff,"2,400.00",Taxi Hire (SEN Only)
03/07/2023,SEN HOME TO SCHOOL TRANSPORT,Xpert Cars Ltd,Hire of Transport - Non Staff,"2,349.86",Taxi Hire (SEN Only)
03/07/2023,SEN HOME TO SCHOOL TRANSPORT,Xpert Cars Ltd,Hire of Transport - Non Staff,"3,175.20",Taxi Hire (SEN Only)
03/07/2023,SEN HOME TO SCHOOL TRANSPORT,Xpert Cars Ltd,Hire of Transport - Non Staff,"2,741.04",Taxi Hire (SEN Only)
03/07/2023,TRANSPORT -MAINSTREAM PRIMARY,Xpert Cars Ltd,Hire of Transport - Non Staff,"2,412.42",Taxi Hire (SEN Only)
03/07/2023,SEN HOME TO SCHOOL TRANSPORT,Xpert Cars Ltd,Hire of Transport - Non Staff,312.06,Taxi Hire (SEN Only)
03/07/2023,SEN HOME TO SCHOOL TRANSPORT,Xpert Cars Ltd,Hire of Transport - Non Staff,"3,935.04",Taxi Hire (SEN Only)
03/07/2023,SEN HOME TO SCHOOL TRANSPORT,Xpert Cars Ltd,Hire of Transport - Non Staff,"2,280.96",Taxi Hire (SEN Only)
03/07/2023,NW SHORT STAY SCHOOL TRANSPORT,Xpert Cars Ltd,Hire of Transport - Non Staff,"2,872.80",Taxi Hire (SEN Only)
03/07/2023,NE SHORT STAY SCHOOL TRANSPORT,Xpert Cars Ltd,Hire of Transport - Non Staff,"6,522.60",Taxi Hire (SEN Only)
03/07/2023,NE SHORT STAY SCHOOL TRANSPORT,Xpert Cars Ltd,Hire of Transport - Non Staff,"3,000.24",Taxi Hire (SEN Only)
03/07/2023,NE SHORT STAY SCHOOL TRANSPORT,Xpert Cars Ltd,Hire of Transport - Non Staff,"3,003.36",Taxi Hire (SEN Only)
03/07/2023,TRANSPORT -MAINSTREAM PRIMARY,Xpert Cars Ltd,Hire of Transport - Non Staff,"1,877.04",Taxi Hire (SEN Only)
03/07/2023,TRANSPORT -MAINSTREAM PRIMARY,Xpert Cars Ltd,Hire of Transport - Non Staff,"2,138.40",Taxi Hire (SEN Only)
03/07/2023,SEN HOME TO SCHOOL TRANSPORT,Xpert Cars Ltd,Hire of Transport - Non Staff,"2,760.48",Taxi Hire (SEN Only)
03/07/2023,SEN HOME TO SCHOOL TRANSPORT,Xpert Cars Ltd,Hire of Transport - Non Staff,"2,674.08",Taxi Hire (SEN Only)
03/07/2023,SEN HOME TO SCHOOL TRANSPORT,Xpert Cars Ltd,Hire of Transport - Non Staff,"2,208.38",Taxi Hire (SEN Only)
03/07/2023,SEN HOME TO SCHOOL TRANSPORT,Xpert Cars Ltd,Hire of Transport - Non Staff,"2,732.40",Taxi Hire (SEN Only)
03/07/2023,NW SHORT STAY SCHOOL TRANSPORT,Xpert Cars Ltd,Hire of Transport - Non Staff,"3,619.20",Taxi Hire (SEN Only)
03/07/2023,TRANSPORT  MAINSTREAM SECDRY,Xpert Cars Ltd,Hire of Transport - Non Staff,"1,255.97",Taxi Hire (SEN Only)
03/07/2023,SEN HOME TO SCHOOL TRANSPORT,Xpert Cars Ltd,Hire of Transport - Non Staff,"1,660.03",Taxi Hire (SEN Only)
03/07/2023,NW SHORT STAY SCHOOL TRANSPORT,Xpert Cars Ltd,Hire of Transport - Non Staff,"4,054.64",Taxi Hire (SEN Only)
03/07/2023,ALTERNATIVE PROVISION TRANSPORT NW,Xpert Cars Ltd,Hire of Transport - Non Staff,"1,299.76",Taxi Hire (SEN Only)
03/07/2023,NW SHORT STAY SCHOOL TRANSPORT,Xpert Cars Ltd,Hire of Transport - Non Staff,"1,982.40",Taxi Hire (SEN Only)
03/07/2023,SEN HOME TO SCHOOL TRANSPORT,Xpert Cars Ltd,Hire of Transport - Non Staff,"1,193.76",Taxi Hire (SEN Only)
03/07/2023,HOPE SERVICE,Xpert Cars Ltd,Hire of Transport - Non Staff,"2,205.60",Taxi Hire (SEN Only)
03/07/2023,SE CARE - CP & COURT LAC,Xpert Cars Ltd,Hire of Transport - Non Staff,"3,008.88",Taxi Hire (SEN Only)
03/07/2023,TRANSPORT -MAINSTREAM PRIMARY,Xpert Cars Ltd,Hire of Transport - Non Staff,"2,052.00",Taxi Hire (SEN Only)
03/07/2023,SEN HOME TO SCHOOL TRANSPORT,Xpert Cars Ltd,Hire of Transport - Non Staff,"2,527.20",Taxi Hire (SEN Only)
03/07/2023,SEN HOME TO SCHOOL TRANSPORT,Xpert Cars Ltd,Hire of Transport - Non Staff,"2,352.24",Taxi Hire (SEN Only)
03/07/2023,SE REIGATE VALLEY COLLEGE TRANSPORT,Xpert Cars Ltd,Hire of Transport - Non Staff,"2,343.60",Taxi Hire (SEN Only)
03/07/2023,SE REIGATE VALLEY COLLEGE TRANSPORT,Xpert Cars Ltd,Hire of Transport - Non Staff,"2,352.24",Taxi Hire (SEN Only)
03/07/2023,SE REIGATE VALLEY COLLEGE TRANSPORT,Xpert Cars Ltd,Hire of Transport - Non Staff,"3,423.60",Taxi Hire (SEN Only)
03/07/2023,SE REIGATE VALLEY COLLEGE TRANSPORT,Xpert Cars Ltd,Hire of Transport - Non Staff,"1,449.36",Taxi Hire (SEN Only)
03/07/2023,TRANSPORT -MAINSTREAM PRIMARY,Xpert Cars Ltd,Hire of Transport - Non Staff,"2,047.68",Taxi Hire (SEN Only)
03/07/2023,TRANSPORT -MAINSTREAM PRIMARY,Xpert Cars Ltd,Hire of Transport - Non Staff,"2,743.20",Taxi Hire (SEN Only)
03/07/2023,SEN HOME TO SCHOOL TRANSPORT,Xpert Cars Ltd,Hire of Transport - Non Staff,"2,014.32",Taxi Hire (SEN Only)
03/07/2023,TRANSPORT -MAINSTREAM PRIMARY,Xpert Cars Ltd,Hire of Transport - Non Staff,"3,188.52",Taxi Hire (SEN Only)
03/07/2023,TRANSPORT -MAINSTREAM PRIMARY,Xpert Cars Ltd,Hire of Transport - Non Staff,"2,229.24",Taxi Hire (SEN Only)
03/07/2023,SEN HOME TO SCHOOL TRANSPORT,Xpert Cars Ltd,Hire of Transport - Non Staff,"3,216.24",Taxi Hire (SEN Only)
03/07/2023,SEN HOME TO SCHOOL TRANSPORT,Xpert Cars Ltd,Hire of Transport - Non Staff,"1,920.24",Taxi Hire (SEN Only)
03/07/2023,TRANSPORT -MAINSTREAM PRIMARY,Xpert Cars Ltd,Hire of Transport - Non Staff,"3,244.10",Taxi Hire (SEN Only)
03/07/2023,TRANSPORT -MAINSTREAM PRIMARY,Xpert Cars Ltd,Hire of Transport - Non Staff,"3,030.00",Taxi Hire (SEN Only)
03/07/2023,SW SHORT STAY SCHOOL TRANSPORT,Xpert Cars Ltd,Hire of Transport - Non Staff,"2,697.84",Taxi Hire (SEN Only)
03/07/2023,SW SHORT STAY SCHOOL TRANSPORT,Xpert Cars Ltd,Hire of Transport - Non Staff,"2,181.60",Taxi Hire (SEN Only)
03/07/2023,SW SHORT STAY SCHOOL TRANSPORT,Xpert Cars Ltd,Hire of Transport - Non Staff,"2,489.41",Taxi Hire (SEN Only)
03/07/2023,SE REIGATE VALLEY COLLEGE TRANSPORT,Xpert Cars Ltd,Hire of Transport - Non Staff,"1,094.27",Taxi Hire (SEN Only)
03/07/2023,SEN HOME TO SCHOOL TRANSPORT,Xpert Cars Ltd,Hire of Transport - Non Staff,"2,527.20",Taxi Hire (SEN Only)
03/07/2023,SEN HOME TO SCHOOL TRANSPORT,Xpert Cars Ltd,Hire of Transport - Non Staff,"1,593.60",Taxi Hire (SEN Only)
03/07/2023,LD-Autism Central Team Care,Xpert Cars Ltd,Hire of Transport - Non Staff,"1,663.20",Taxi Hire (SEN Only)
03/07/2023,SEN HOME TO SCHOOL TRANSPORT,Xpert Cars Ltd,Hire of Transport - Non Staff,"2,346.96",Taxi Hire (SEN Only)
03/07/2023,SEN HOME TO SCHOOL TRANSPORT,Xpert Cars Ltd,Hire of Transport - Non Staff,"3,564.00",Taxi Hire (SEN Only)
03/07/2023,SEN HOME TO SCHOOL TRANSPORT,Xpert Cars Ltd,Hire of Transport - Non Staff,"3,521.52",Taxi Hire (SEN Only)
03/07/2023,SEN HOME TO SCHOOL TRANSPORT,Xpert Cars Ltd,Hire of Transport - Non Staff,"2,559.60",Taxi Hire (SEN Only)
03/07/2023,SEN HOME TO SCHOOL TRANSPORT,Xpert Cars Ltd,Hire of Transport - Non Staff,"2,527.20",Taxi Hire (SEN Only)
03/07/2023,SEN HOME TO SCHOOL TRANSPORT,Xpert Cars Ltd,Hire of Transport - Non Staff,"2,959.20",Taxi Hire (SEN Only)
03/07/2023,SEN HOME TO SCHOOL TRANSPORT,Xpert Cars Ltd,Hire of Transport - Non Staff,"2,181.60",Taxi Hire (SEN Only)
03/07/2023,SEN HOME TO SCHOOL TRANSPORT,Xpert Cars Ltd,Hire of Transport - Non Staff,"3,982.80",Taxi Hire (SEN Only)
03/07/2023,SEN HOME TO SCHOOL TRANSPORT,Xpert Cars Ltd,Hire of Transport - Non Staff,"4,498.80",Taxi Hire (SEN Only)
03/07/2023,SEN HOME TO SCHOOL TRANSPORT,Xpert Cars Ltd,Hire of Transport - Non Staff,"1,574.40",Taxi Hire (SEN Only)
03/07/2023,SEN HOME TO SCHOOL TRANSPORT,Xpert Cars Ltd,Hire of Transport - Non Staff,"2,808.00",Taxi Hire (SEN Only)
03/07/2023,SEN HOME TO SCHOOL TRANSPORT,Xpert Cars Ltd,Hire of Transport - Non Staff,"2,572.20",Taxi Hire (SEN Only)
03/07/2023,SEN HOME TO SCHOOL TRANSPORT,Xpert Cars Ltd,Hire of Transport - Non Staff,"2,527.20",Taxi Hire (SEN Only)
03/07/2023,SEN HOME TO SCHOOL TRANSPORT,Xpert Cars Ltd,Hire of Transport - Non Staff,"1,900.80",Taxi Hire (SEN Only)
03/07/2023,SEN HOME TO SCHOOL TRANSPORT,Xpert Cars Ltd,Hire of Transport - Non Staff,"3,835.20",Taxi Hire (SEN Only)
03/07/2023,SEN HOME TO SCHOOL TRANSPORT,Xpert Cars Ltd,Hire of Transport - Non Staff,"2,301.60",Taxi Hire (SEN Only)
03/07/2023,SEN HOME TO SCHOOL TRANSPORT,Xpert Cars Ltd,Hire of Transport - Non Staff,"3,780.00",Taxi Hire (SEN Only)
03/07/2023,TRANSPORT  MAINSTREAM SECDRY,Xpert Cars Ltd,Hire of Transport - Non Staff,"2,244.24",Taxi Hire (SEN Only)
03/07/2023,SEN HOME TO SCHOOL TRANSPORT,Xpert Cars Ltd,Hire of Transport - Non Staff,"2,373.84",Taxi Hire (SEN Only)
03/07/2023,TRANSPORT -MAINSTREAM PRIMARY,Xpert Cars Ltd,Hire of Transport - Non Staff,"1,976.76",Taxi Hire (SEN Only)
03/07/2023,SEN HOME TO SCHOOL TRANSPORT,Xpert Cars Ltd,Hire of Transport - Non Staff,"2,745.60",Taxi Hire (SEN Only)
03/07/2023,SEN HOME TO SCHOOL TRANSPORT,Xpert Cars Ltd,Hire of Transport - Non Staff,687.89,Taxi Hire (SEN Only)
03/07/2023,TRANSPORT  MAINSTREAM SECDRY,Xpert Cars Ltd,Hire of Transport - Non Staff,996.91,Taxi Hire (SEN Only)
03/07/2023,NW SHORT STAY SCHOOL TRANSPORT,Xpert Cars Ltd,Hire of Transport - Non Staff,"1,510.32",Taxi Hire (SEN Only)
03/07/2023,ALTERNATIVE PROVISION TRANSPORT NW,Xpert Cars Ltd,Hire of Transport - Non Staff,"1,394.40",Taxi Hire (SEN Only)
03/07/2023,NE SHORT STAY SCHOOL TRANSPORT,Xpert Cars Ltd,Hire of Transport - Non Staff,"1,995.84",Taxi Hire (SEN Only)
03/07/2023,SEN HOME TO SCHOOL TRANSPORT,Xpert Cars Ltd,Hire of Transport - Non Staff,"2,325.84",Taxi Hire (SEN Only)
03/07/2023,SEN HOME TO SCHOOL TRANSPORT,Xpert Cars Ltd,Hire of Transport - Non Staff,"2,265.84",Taxi Hire (SEN Only)
03/07/2023,SEN HOME TO SCHOOL TRANSPORT,Xpert Cars Ltd,Hire of Transport - Non Staff,"2,026.08",Taxi Hire (SEN Only)
03/07/2023,SEN HOME TO SCHOOL TRANSPORT,Xpert Cars Ltd,Hire of Transport - Non Staff,"1,815.26",Taxi Hire (SEN Only)
03/07/2023,TRANSPORT -MAINSTREAM PRIMARY,Xpert Cars Ltd,Hire of Transport - Non Staff,"3,127.68",Taxi Hire (SEN Only)
03/07/2023,SEN HOME TO SCHOOL TRANSPORT,Xpert Cars Ltd,Hire of Transport - Non Staff,"2,419.20",Taxi Hire (SEN Only)
03/07/2023,SEN HOME TO SCHOOL TRANSPORT,Xpert Cars Ltd,Hire of Transport - Non Staff,"2,114.64",Taxi Hire (SEN Only)
03/07/2023,SEN HOME TO SCHOOL TRANSPORT,Xpert Cars Ltd,Hire of Transport - Non Staff,"3,222.65",Taxi Hire (SEN Only)
03/07/2023,TRANSPORT -MAINSTREAM PRIMARY,Xpert Cars Ltd,Hire of Transport - Non Staff,730.15,Taxi Hire (SEN Only)
03/07/2023,SEN HOME TO SCHOOL TRANSPORT,Xpert Cars Ltd,Hire of Transport - Non Staff,"2,674.08",Taxi Hire (SEN Only)
03/07/2023,SEN HOME TO SCHOOL TRANSPORT,Xpert Cars Ltd,Hire of Transport - Non Staff,"3,088.80",Taxi Hire (SEN Only)
03/07/2023,SEN HOME TO SCHOOL TRANSPORT,Xpert Cars Ltd,Hire of Transport - Non Staff,"3,823.20",Taxi Hire (SEN Only)
03/07/2023,SEN HOME TO SCHOOL TRANSPORT,Xpert Cars Ltd,Hire of Transport - Non Staff,"2,527.20",Taxi Hire (SEN Only)
03/07/2023,TRANSPORT -MAINSTREAM PRIMARY,Xpert Cars Ltd,Hire of Transport - Non Staff,975.05,Taxi Hire (SEN Only)
03/07/2023,SEN HOME TO SCHOOL TRANSPORT,Xpert Cars Ltd,Hire of Transport - Non Staff,"1,938.79",Taxi Hire (SEN Only)
03/07/2023,SEN HOME TO SCHOOL TRANSPORT,Xpert Cars Ltd,Hire of Transport - Non Staff,"2,028.24",Taxi Hire (SEN Only)
03/07/2023,SEN HOME TO SCHOOL TRANSPORT,Xpert Cars Ltd,Hire of Transport - Non Staff,"3,651.60",Taxi Hire (SEN Only)
03/07/2023,SEN HOME TO SCHOOL TRANSPORT,Xpert Cars Ltd,Hire of Transport - Non Staff,"2,330.64",Taxi Hire (SEN Only)
03/07/2023,SEN HOME TO SCHOOL TRANSPORT,Xpert Cars Ltd,Hire of Transport - Non Staff,865.01,Taxi Hire (SEN Only)
03/07/2023,TRANSPORT -MAINSTREAM PRIMARY,Xpert Cars Ltd,Hire of Transport - Non Staff,"1,400.83",Taxi Hire (SEN Only)
03/07/2023,Collaborative Reablement Serv Gfd & Wav,Agincare Group Ltd,Home Care Services,"13,980.00",Dom Care - Adults
03/07/2023,Collaborative Reablement Serv Gfd & Wav,Agincare Group Ltd,Home Care Services,"13,980.00",Dom Care - Adults
03/07/2023,Collaborative Reablement Serv Gfd & Wav,Agincare Group Ltd,Home Care Services,"13,980.00",Dom Care - Adults
03/07/2023,NORTH EAST CWD NON-LAC CARE,Ambition 24 Hours,Home Care Services,"531,938.40",Supp Living - MH
03/07/2023,SOUTH EAST CWD NON-LAC CARE,Ambition 24 Hours,Home Care Services,"52,708.32",Supp Living - MH
03/07/2023,SOUTH WEST CWD NON-LAC CARE,Ambition 24 Hours,Home Care Services,"135,080.40",Supp Living - MH
03/07/2023,Spelthorne C&G OP,Apex Prime Care Ltd,Home Care Services,"6,528.39",Residential - LD
03/07/2023,ELMBRIDGE CMHRS CARE,Longdene Homecare,Home Care Services,558.36,Dom Care - Adults
03/07/2023,RUNNYMEDE LOCAL CARE OP,Longdene Homecare,Home Care Services,876.54,Dom Care - Adults
03/07/2023,RUNNYMEDE LOCAL CARE OP,Longdene Homecare,Home Care Services,969.08,Dom Care - Adults
03/07/2023,SURREY HEATH LOCAL CARE OP,Longdene Homecare,Home Care Services,406.02,Dom Care - Adults
03/07/2023,ELMBRIDGE LOCAL CARE OP,Longdene Homecare,Home Care Services,426.51,Dom Care - Adults
03/07/2023,ELMBRIDGE LOCAL CARE OP,Longdene Homecare,Home Care Services,470.58,Dom Care - Adults
03/07/2023,RUNNYMEDE LOCAL CARE OP,Longdene Homecare,Home Care Services,387.62,Dom Care - Adults
03/07/2023,SURREY HEATH LOCAL CARE OP,Longdene Homecare,Home Care Services,724.78,Dom Care - Adults
03/07/2023,SURREY HEATH LOCAL CARE OP,Longdene Homecare,Home Care Services,"1,351.00",Dom Care - Adults
03/07/2023,RUNNYMEDE LOCAL CARE OP,Surrey Helping Hands Ltd,Home Care Services,"1,522.42",Dom Care - Adults
03/07/2023,RUNNYMEDE LOCAL CARE PD,Surrey Helping Hands Ltd,Home Care Services,"1,627.92",Dom Care - Adults
03/07/2023,RUNNYMEDE CMHRS CARE,Surrey Helping Hands Ltd,Home Care Services,"1,537.70",Dom Care - Adults
03/07/2023,RUNNYMEDE LOCAL CARE OP,Surrey Helping Hands Ltd,Home Care Services,"1,550.36",Dom Care - Adults
03/07/2023,RUNNYMEDE CMHRS CARE,Surrey Helping Hands Ltd,Home Care Services,427.14,Dom Care - Adults
03/07/2023,RUNNYMEDE LOCAL CARE OP,Surrey Helping Hands Ltd,Home Care Services,"1,500.52",Dom Care - Adults
03/07/2023,RUNNYMEDE LOCAL CARE OP,Surrey Helping Hands Ltd,Home Care Services,"1,550.36",Dom Care - Adults
03/07/2023,RUNNYMEDE LOCAL CARE OP,Surrey Helping Hands Ltd,Home Care Services,343.28,Dom Care - Adults
03/07/2023,RUNNYMEDE LOCAL CARE OP,Surrey Helping Hands Ltd,Home Care Services,"1,284.64",Dom Care - Adults
03/07/2023,RUNNYMEDE LOCAL CARE OP,Surrey Helping Hands Ltd,Home Care Services,578.62,Dom Care - Adults
03/07/2023,RUNNYMEDE LOCAL CARE OP,Surrey Helping Hands Ltd,Home Care Services,572.88,Dom Care - Adults
03/07/2023,INSIGHT SURREYWIDE,Oxford Consultants For Social Inclusion,IT Software Maintenance,"6,000.00",Subscriptions
03/07/2023,INTELLIGENT CLIENT FUNCTION,Specialist Computer Centres Plc,IT Software Purchase,"17,643.17",Appl Serv Provision
03/07/2023,OTHER HOMES LANGDOWN,Langdown Hostel,Long Term - Deferred Liabilities,"1,210.40",Supp Living - MH
03/07/2023,INSURANCE FUND - PUBLIC LIABILITY,DWF Law LLP,Long Term - Other provisions,822.00,General Support
03/07/2023,INSURANCE FUND - PUBLIC LIABILITY,DWF Law LLP,Long Term - Other provisions,"2,213.40",General Support
03/07/2023,INSURANCE FUND - PUBLIC LIABILITY,DWF Law LLP,Long Term - Other provisions,"1,484.40",General Support
03/07/2023,INSURANCE FUND - PUBLIC LIABILITY,LACHS,Long Term - Other provisions,673.88,Not Applicable
03/07/2023,PSR MENTAL HEALTH INVESTMENT FUND,Catalyst Support Ltd,Other Agencies/Contractors,"15,000.00",Not Applicable
03/07/2023,Epsom & Ewell C&G OP,Epsom & Ewell Borough Council,Other Community Care,"12,845.60",Grants - Member Allocation
03/07/2023,DOLS,Matrix Service Dev & Training Ltd,Other Community Care,"37,788.34",Staff Training
03/07/2023,DOLS,Matrix Service Dev & Training Ltd,Other Community Care,"5,398.50",Staff Training
03/07/2023,NE CARE - LAC,Redacted Personal Data,Other Community Care,346.05,Invoicing Plan Req.
03/07/2023,NW CARE - LAC,Redacted Personal Data,Other Community Care,"8,426.99",Carers
03/07/2023,NW CARE - LAC,Redacted Personal Data,Other Community Care,"2,624.00",Asylum Seekers
03/07/2023,NE UASC UNDER 18,Redacted Personal Data,Other Community Care,314.99,Adults direct payment
03/07/2023,TRANSFORMATION FUND SUICIDE PREVENTION,Rethink Mental Illness,Other Community Care,"36,900.00",Advocacy
03/07/2023,DOLS,TCKM Ltd,Other Community Care,262.00,Specialist Serv
03/07/2023,DOLS,TCKM Ltd,Other Community Care,270.00,Specialist Serv
03/07/2023,DOLS,TCKM Ltd,Other Community Care,270.00,Specialist Serv
03/07/2023,DOLS,TCKM Ltd,Other Community Care,265.00,Specialist Serv
03/07/2023,DOLS,TCKM Ltd,Other Community Care,270.00,Specialist Serv
03/07/2023,DOLS,TCKM Ltd,Other Community Care,266.00,Specialist Serv
03/07/2023,RBDM - GENERAL,Quadient UK Ltd,Postages,270.79,Postage
03/07/2023,DAKOTA,CFH Total Document Management Ltd,Printing,"1,230.14",Printing & Repro
03/07/2023,SEN HOME TO SCHOOL TRANSPORT,Redacted Personal Data,Public Transport - Non Staff,610.74,Carers
03/07/2023,SEN HOME TO SCHOOL TRANSPORT,Redacted Personal Data,Public Transport - Non Staff,376.83,CYP Transport
03/07/2023,WOODHATCH,Corporate Document Services Ltd,Purchase of Equipment,477.10,Not Applicable
03/07/2023,SOLD DAY TO DAY OPERATIONS,Quicks Archery Ltd,Purchase of Equipment,254.00,Fostering Placement
03/07/2023,SOLD DAY TO DAY OPERATIONS,The Protective Textile Co Ltd,Purchase of Equipment,756.00,Uniforms
03/07/2023,SOUTH WEST CWD NON-LAC CARE,Shooting Star Childrens Hospices,Residential Care Respite,"2,870.00",Grants - Community
03/07/2023,SOUTH WEST CWD NON-LAC CARE,Shooting Star Childrens Hospices,Residential Care Respite,"5,950.00",Grants - Community
03/07/2023,LD-Autism Central Team Care,Surrey & Borders Partnership NHS Trust,Residential Care Respite,"2,768.58",Residential - MH
03/07/2023,LD-Autism Central Team Care,Surrey & Borders Partnership NHS Trust,Residential Care Respite,"1,384.29",Residential - MH
03/07/2023,LD-Autism Central Team Care,Surrey & Borders Partnership NHS Trust,Residential Care Respite,"2,307.15",Residential - MH
03/07/2023,EPSOM & EWELL LOCAL CARE PD,Surrey & Borders Partnership NHS Trust,Residential Care Respite,461.43,Residential - MH
03/07/2023,LD-Autism Central Team Care,Surrey & Borders Partnership NHS Trust,Residential Care Respite,"4,750.50",Residential - MH
03/07/2023,LD-Autism Central Team Care,Surrey & Borders Partnership NHS Trust,Residential Care Respite,"4,275.45",Residential - MH
03/07/2023,LD-Autism Central Team Care,Surrey & Borders Partnership NHS Trust,Residential Care Respite,"2,375.25",Residential - MH
03/07/2023,LD-Autism Central Team Care,Surrey & Borders Partnership NHS Trust,Residential Care Respite,"5,225.55",Residential - MH
03/07/2023,LD-Autism Central Team Care,Surrey & Borders Partnership NHS Trust,Residential Care Respite,"3,691.44",Residential - MH
03/07/2023,LD-Autism Central Team Care,Surrey & Borders Partnership NHS Trust,Residential Care Respite,"1,900.20",Residential - MH
03/07/2023,LD-Autism Central Team Care,Surrey & Borders Partnership NHS Trust,Residential Care Respite,475.05,Residential - MH
03/07/2023,LD-Autism Central Team Care,Surrey & Borders Partnership NHS Trust,Residential Care Respite,"2,850.30",Residential - MH
03/07/2023,LD-Autism Central Team Care,Surrey & Borders Partnership NHS Trust,Residential Care Respite,"5,225.55",Residential - MH
03/07/2023,LD-Autism Central Team Care,Surrey & Borders Partnership NHS Trust,Residential Care Respite,"3,800.40",Residential - MH
03/07/2023,PLD TRANSITION CARE,Surrey & Borders Partnership NHS Trust,Residential Care Respite,518.72,Residential - MH
03/07/2023,ST PAULS CEP DORKING,Redacted Personal Data,Sale of Dinners,681.50,Non Trade Payment
03/07/2023,ST PAULS CEP DORKING,Redacted Personal Data,Sale of Dinners,350.52,Non Trade Payment
03/07/2023,PHILIP SOUTHCOTE SCHOOL,ADT Fire & Security Plc,Security / Surveillance Equipment Maintenance,779.58,H & S Maint
03/07/2023,SURREY ARTS GENERAL,BT UK Business Accounts,Telecommunication Charges,258.72,Telecare
03/07/2023,SIGNALS - SOFT / SUPP / INSP,BT UK Business Accounts,Telecommunication Charges,"18,258.14",Telecare
03/07/2023,UNICORN NETWORK SURREY CC,BT Wholesale Broadband,Telecommunication Charges,402.32,Networking - WAN
03/07/2023,STAFF EXPERIENCE AND WELLBEING,Equaliteach CIC,Training Expenses - External General,"4,440.00",Staff Training
03/07/2023,LEARNING AND DEV,Will Recover Ltd,Training Expenses - External General,"2,700.00",Fire Serv Training
03/07/2023,LAND & PROPERTY CAPITAL,Tetra Tech Environment Planning,Transfer Expenditure REFCUS,945.17,Env Consultancy
03/07/2023,LAND & PROPERTY CAPITAL,Vail Williams LLP - SCC Client Deposit,Transfer Expenditure REFCUS,"5,400.00",M-D (Property)
03/07/2023,LAND & PROPERTY CAPITAL,Vail Williams LLP - SCC Client Deposit,Transfer Expenditure REFCUS,"1,872.00",M-D (Property)
03/07/2023,LAND & PROPERTY CAPITAL,Weydon Multi Academy Trust,Transfer Expenditure REFCUS,"57,905.35",School Support Serv
03/07/2023,PINEHURST CARE HOME,Castle Water Ltd,Water Services,"3,780.00",Utilities - Water
04/07/2023,HALLEYS APPROACH,Alpenbest Ltd,Agency Supply Staff,"1,603.10",Dom Care - Adults
04/07/2023,HALLEYS APPROACH,Alpenbest Ltd,Agency Supply Staff,"1,527.66",Dom Care - Adults
04/07/2023,HALLEYS APPROACH,Alpenbest Ltd,Agency Supply Staff,"1,656.00",Dom Care - Adults
04/07/2023,Barnfield Residential,Magnit Global GRI Ltd,Agency Supply Staff,"148,516.47",Soc Care OM Cover
04/07/2023,CAPITAL PROJECTS  TM,Ronin Ltd,Agency Supply Staff,"1,322.40",Recruit & Assessment
04/07/2023,LAKESIDE,Lakeside Primary School,Catering,416.56,Schools
04/07/2023,QUEEN ELEANORS CEJ,Queen Eleanors COE Junior School,Catering,496.67,Schools
04/07/2023,SEN HOME TO SCHOOL TRANSPORT,Courtesy Cars Redhill,Coach Escorts Contracted,"1,459.20",Multi-purpose Veh
04/07/2023,SEN HOME TO SCHOOL TRANSPORT,Courtesy Cars Redhill,Coach Escorts Contracted,"2,163.72",Multi-purpose Veh
04/07/2023,PLD TRANSITION CARE,Courtesy Cars Redhill,Coach Escorts Contracted,"1,522.80",Multi-purpose Veh
04/07/2023,SEN HOME TO SCHOOL TRANSPORT,Courtesy Cars Redhill,Coach Escorts Contracted,"1,203.60",Multi-purpose Veh
04/07/2023,SEN HOME TO SCHOOL TRANSPORT,Courtesy Cars Redhill,Coach Escorts Contracted,"1,621.80",Multi-purpose Veh
04/07/2023,SEN HOME TO SCHOOL TRANSPORT,Courtesy Cars Redhill,Coach Escorts Contracted,"1,490.40",Multi-purpose Veh
04/07/2023,SEN HOME TO SCHOOL TRANSPORT,Courtesy Cars Redhill,Coach Escorts Contracted,"1,425.60",Multi-purpose Veh
04/07/2023,SEN HOME TO SCHOOL TRANSPORT,Courtesy Cars Redhill,Coach Escorts Contracted,"1,047.60",Multi-purpose Veh
04/07/2023,SEN HOME TO SCHOOL TRANSPORT,Courtesy Cars Redhill,Coach Escorts Contracted,"1,274.40",Multi-purpose Veh
04/07/2023,SEN HOME TO SCHOOL TRANSPORT,Courtesy Cars Redhill,Coach Escorts Contracted,"1,285.20",Multi-purpose Veh
04/07/2023,SEN HOME TO SCHOOL TRANSPORT,Courtesy Cars Redhill,Coach Escorts Contracted,"1,339.20",Multi-purpose Veh
04/07/2023,SEN HOME TO SCHOOL TRANSPORT,Courtesy Cars Redhill,Coach Escorts Contracted,"1,706.40",Multi-purpose Veh
04/07/2023,SEN HOME TO SCHOOL TRANSPORT,Courtesy Cars Redhill,Coach Escorts Contracted,"2,484.00",Multi-purpose Veh
04/07/2023,SEN HOME TO SCHOOL TRANSPORT,Courtesy Cars Redhill,Coach Escorts Contracted,"1,459.20",Multi-purpose Veh
04/07/2023,SEN HOME TO SCHOOL TRANSPORT,Courtesy Cars Redhill,Coach Escorts Contracted,"1,674.00",Multi-purpose Veh
04/07/2023,SEN HOME TO SCHOOL TRANSPORT,Courtesy Cars Redhill,Coach Escorts Contracted,"1,490.40",Multi-purpose Veh
04/07/2023,SEN HOME TO SCHOOL TRANSPORT,Courtesy Cars Redhill,Coach Escorts Contracted,"1,188.00",Multi-purpose Veh
04/07/2023,SEN HOME TO SCHOOL TRANSPORT,Courtesy Cars Redhill,Coach Escorts Contracted,"3,769.20",Multi-purpose Veh
04/07/2023,SEN HOME TO SCHOOL TRANSPORT,District Cars MECO Ltd,Coach Escorts Contracted,897.60,Multi-purpose Veh
04/07/2023,SEN HOME TO SCHOOL TRANSPORT,District Cars MECO Ltd,Coach Escorts Contracted,"1,512.00",Multi-purpose Veh
04/07/2023,LD-Autism Central Team Care,HCL Chauffeurs UK Ltd,Coach Escorts Contracted,576.00,Multi-purpose Veh
04/07/2023,CWD TEAM NORTH WEST,HCL Chauffeurs UK Ltd,Coach Escorts Contracted,"1,296.00",Multi-purpose Veh
04/07/2023,NORTH EAST CWD NON-LAC CARE,Hughes Mini Services,Coach Escorts Contracted,330.20,Multi-purpose Veh
04/07/2023,SEN HOME TO SCHOOL TRANSPORT,Lady Safe & Sons Ltd,Coach Escorts Contracted,"1,080.00",Multi-purpose Veh
04/07/2023,SEN HOME TO SCHOOL TRANSPORT,Lady Safe & Sons Ltd,Coach Escorts Contracted,840.00,Multi-purpose Veh
04/07/2023,SEN HOME TO SCHOOL TRANSPORT,Lady Safe & Sons Ltd,Coach Escorts Contracted,945.00,Multi-purpose Veh
04/07/2023,SEN HOME TO SCHOOL TRANSPORT,Lady Safe & Sons Ltd,Coach Escorts Contracted,"1,080.00",Multi-purpose Veh
04/07/2023,SEN HOME TO SCHOOL TRANSPORT,Lady Safe & Sons Ltd,Coach Escorts Contracted,"1,296.00",Multi-purpose Veh
04/07/2023,SEN HOME TO SCHOOL TRANSPORT,Lady Safe & Sons Ltd,Coach Escorts Contracted,972.00,Multi-purpose Veh
04/07/2023,SEN HOME TO SCHOOL TRANSPORT,Lady Safe & Sons Ltd,Coach Escorts Contracted,864.00,Multi-purpose Veh
04/07/2023,SEN HOME TO SCHOOL TRANSPORT,Lady Safe & Sons Ltd,Coach Escorts Contracted,972.00,Multi-purpose Veh
04/07/2023,SEN HOME TO SCHOOL TRANSPORT,Lady Safe & Sons Ltd,Coach Escorts Contracted,945.00,Multi-purpose Veh
04/07/2023,SEN HOME TO SCHOOL TRANSPORT,Lady Safe & Sons Ltd,Coach Escorts Contracted,540.00,Multi-purpose Veh
04/07/2023,SEN HOME TO SCHOOL TRANSPORT,Lady Safe & Sons Ltd,Coach Escorts Contracted,972.00,Multi-purpose Veh
04/07/2023,SEN HOME TO SCHOOL TRANSPORT,Lady Safe & Sons Ltd,Coach Escorts Contracted,"1,296.00",Multi-purpose Veh
04/07/2023,SEN HOME TO SCHOOL TRANSPORT,Lady Safe & Sons Ltd,Coach Escorts Contracted,"1,080.00",Multi-purpose Veh
04/07/2023,SEN HOME TO SCHOOL TRANSPORT,Lady Safe & Sons Ltd,Coach Escorts Contracted,990.00,Multi-purpose Veh
04/07/2023,SEN HOME TO SCHOOL TRANSPORT,Lady Safe & Sons Ltd,Coach Escorts Contracted,756.00,Multi-purpose Veh
04/07/2023,SEN HOME TO SCHOOL TRANSPORT,Lady Safe & Sons Ltd,Coach Escorts Contracted,"1,080.00",Multi-purpose Veh
04/07/2023,SEN HOME TO SCHOOL TRANSPORT,Lady Safe & Sons Ltd,Coach Escorts Contracted,972.00,Multi-purpose Veh
04/07/2023,SEN HOME TO SCHOOL TRANSPORT,Lady Safe & Sons Ltd,Coach Escorts Contracted,972.00,Multi-purpose Veh
04/07/2023,SEN HOME TO SCHOOL TRANSPORT,Lady Safe & Sons Ltd,Coach Escorts Contracted,864.00,Multi-purpose Veh
04/07/2023,SEN HOME TO SCHOOL TRANSPORT,Lady Safe & Sons Ltd,Coach Escorts Contracted,756.00,Multi-purpose Veh
04/07/2023,SEN HOME TO SCHOOL TRANSPORT,Lady Safe & Sons Ltd,Coach Escorts Contracted,"1,080.00",Multi-purpose Veh
04/07/2023,SEN HOME TO SCHOOL TRANSPORT,Lady Safe & Sons Ltd,Coach Escorts Contracted,"1,080.00",Multi-purpose Veh
04/07/2023,SEN HOME TO SCHOOL TRANSPORT,Premier Minicab Services UK Ltd,Coach Escorts Contracted,"3,132.00",Taxi Hire (SEN Only)
04/07/2023,SEN HOME TO SCHOOL TRANSPORT,Premier Minicab Services UK Ltd,Coach Escorts Contracted,"1,296.00",Taxi Hire (SEN Only)
04/07/2023,SEN HOME TO SCHOOL TRANSPORT,Premier Minicab Services UK Ltd,Coach Escorts Contracted,"1,080.00",Taxi Hire (SEN Only)
04/07/2023,SEN HOME TO SCHOOL TRANSPORT,Premier Minicab Services UK Ltd,Coach Escorts Contracted,"1,296.00",Taxi Hire (SEN Only)
04/07/2023,SEN HOME TO SCHOOL TRANSPORT,Premier Minicab Services UK Ltd,Coach Escorts Contracted,"1,296.00",Taxi Hire (SEN Only)
04/07/2023,SEN HOME TO SCHOOL TRANSPORT,Premier Minicab Services UK Ltd,Coach Escorts Contracted,"1,296.00",Taxi Hire (SEN Only)
04/07/2023,SEN HOME TO SCHOOL TRANSPORT,Premier Minicab Services UK Ltd,Coach Escorts Contracted,"1,296.00",Taxi Hire (SEN Only)
04/07/2023,SEN HOME TO SCHOOL TRANSPORT,Premier Minicab Services UK Ltd,Coach Escorts Contracted,"1,020.00",Taxi Hire (SEN Only)
04/07/2023,SEN HOME TO SCHOOL TRANSPORT,Premier Minicab Services UK Ltd,Coach Escorts Contracted,"1,296.00",Taxi Hire (SEN Only)
04/07/2023,SEN HOME TO SCHOOL TRANSPORT,Premier Minicab Services UK Ltd,Coach Escorts Contracted,648.00,Taxi Hire (SEN Only)
04/07/2023,SEN HOME TO SCHOOL TRANSPORT,Premier Minicab Services UK Ltd,Coach Escorts Contracted,"1,080.00",Taxi Hire (SEN Only)
04/07/2023,SEN HOME TO SCHOOL TRANSPORT,Premier Minicab Services UK Ltd,Coach Escorts Contracted,864.00,Taxi Hire (SEN Only)
04/07/2023,SEN HOME TO SCHOOL TRANSPORT,Premier Minicab Services UK Ltd,Coach Escorts Contracted,864.00,Taxi Hire (SEN Only)
04/07/2023,SEN HOME TO SCHOOL TRANSPORT,Premier Minicab Services UK Ltd,Coach Escorts Contracted,"1,080.00",Taxi Hire (SEN Only)
04/07/2023,SEN HOME TO SCHOOL TRANSPORT,Sprint Transfers Ltd,Coach Escorts Contracted,"1,188.00",Taxi Hire (SEN Only)
04/07/2023,SEN HOME TO SCHOOL TRANSPORT,Sprint Transfers Ltd,Coach Escorts Contracted,648.00,Taxi Hire (SEN Only)
04/07/2023,SEN HOME TO SCHOOL TRANSPORT,Sprint Transfers Ltd,Coach Escorts Contracted,"1,058.40",Taxi Hire (SEN Only)
04/07/2023,SEN HOME TO SCHOOL TRANSPORT,Sprint Transfers Ltd,Coach Escorts Contracted,902.88,Taxi Hire (SEN Only)
04/07/2023,SEN HOME TO SCHOOL TRANSPORT,Sprint Transfers Ltd,Coach Escorts Contracted,"1,188.00",Taxi Hire (SEN Only)
04/07/2023,SEN HOME TO SCHOOL TRANSPORT,Sprint Transfers Ltd,Coach Escorts Contracted,820.80,Taxi Hire (SEN Only)
04/07/2023,SEN HOME TO SCHOOL TRANSPORT,Sprint Transfers Ltd,Coach Escorts Contracted,"1,188.00",Taxi Hire (SEN Only)
04/07/2023,NE CARE - CP & COURT LAC,Woking All 3s,Coach Escorts Contracted,"1,632.00",Multi-purpose Veh
04/07/2023,SEN HOME TO SCHOOL TRANSPORT,Woking All 3s,Coach Escorts Contracted,"1,287.00",Multi-purpose Veh
04/07/2023,SEN HOME TO SCHOOL TRANSPORT,Woking All 3s,Coach Escorts Contracted,"1,620.00",Multi-purpose Veh
04/07/2023,SEN HOME TO SCHOOL TRANSPORT,Woking All 3s,Coach Escorts Contracted,"1,836.00",Multi-purpose Veh
04/07/2023,SEN HOME TO SCHOOL TRANSPORT,Woking All 3s,Coach Escorts Contracted,"1,224.00",Multi-purpose Veh
04/07/2023,SEN HOME TO SCHOOL TRANSPORT,Woking All 3s,Coach Escorts Contracted,"1,296.00",Multi-purpose Veh
04/07/2023,SEN HOME TO SCHOOL TRANSPORT,Woking All 3s,Coach Escorts Contracted,"1,224.00",Multi-purpose Veh
04/07/2023,SEN HOME TO SCHOOL TRANSPORT,Woking All 3s,Coach Escorts Contracted,"1,728.00",Multi-purpose Veh
04/07/2023,SEN HOME TO SCHOOL TRANSPORT,Woking Community Transport Ltd (BUSTLER),Coach Escorts Contracted,"1,275.00",Multi-purpose Veh
04/07/2023,SEN HOME TO SCHOOL TRANSPORT,Woking Community Transport Ltd (BUSTLER),Coach Escorts Contracted,"1,350.00",Multi-purpose Veh
04/07/2023,SEN HOME TO SCHOOL TRANSPORT,Woking Community Transport Ltd (BUSTLER),Coach Escorts Contracted,"1,620.00",Multi-purpose Veh
04/07/2023,SEN HOME TO SCHOOL TRANSPORT,Woking Community Transport Ltd (BUSTLER),Coach Escorts Contracted,"1,485.00",Multi-purpose Veh
04/07/2023,SEN HOME TO SCHOOL TRANSPORT,Woking Community Transport Ltd (BUSTLER),Coach Escorts Contracted,"1,080.00",Multi-purpose Veh
04/07/2023,SEN HOME TO SCHOOL TRANSPORT,Woking Community Transport Ltd (BUSTLER),Coach Escorts Contracted,"1,080.00",Multi-purpose Veh
04/07/2023,SEN HOME TO SCHOOL TRANSPORT,Woking Community Transport Ltd (BUSTLER),Coach Escorts Contracted,"1,080.00",Multi-purpose Veh
04/07/2023,SEN HOME TO SCHOOL TRANSPORT,Woking Community Transport Ltd (BUSTLER),Coach Escorts Contracted,"1,080.00",Multi-purpose Veh
04/07/2023,SEN HOME TO SCHOOL TRANSPORT,Woking Community Transport Ltd (BUSTLER),Coach Escorts Contracted,"1,080.00",Multi-purpose Veh
04/07/2023,SEN HOME TO SCHOOL TRANSPORT,Woking Community Transport Ltd (BUSTLER),Coach Escorts Contracted,"1,620.00",Multi-purpose Veh
04/07/2023,NE AREA SEN MANAGEMENT TEAM,Redacted Personal Data,Compensation Claims payments,900.00,Compensation
04/07/2023,NW AREA SEN MANAGEMENT TEAM,Redacted Personal Data,Compensation Claims payments,750.00,Non-Staff Expenses
04/07/2023,NE AREA SEN MANAGEMENT TEAM,Redacted Personal Data,Compensation Claims payments,300.00,Non-Staff Expenses
04/07/2023,EIF 3 & 4 YR OLD,St Matthews School Redhill,Contributions to third parties,500.00,Grants - Member Allocation
04/07/2023,EIF 3 & 4 YR OLD,St Matthews School Redhill,Contributions to third parties,"1,000.00",Grants - Member Allocation
04/07/2023,EIF 3 & 4 YR OLD,St Michaels Community Nursery,Contributions to third parties,570.00,Nurseries
04/07/2023,EIF 3 & 4 YR OLD,Tandridge Village Pre School,Contributions to third parties,570.00,Schools
04/07/2023,EIF 3 & 4 YR OLD,Wonersh Pre-School,Contributions to third parties,500.00,Schools
04/07/2023,EIF 3 & 4 YR OLD,Wood Street Nursery & Forest Preschool,Contributions to third parties,"1,000.00",Nursery
04/07/2023,EIF 3 & 4 YR OLD,Wood Street Nursery & Forest Preschool,Contributions to third parties,500.00,Nursery
04/07/2023,EIF 3 & 4 YR OLD,Wood Street Nursery & Forest Preschool,Contributions to third parties,"1,000.00",Nursery
04/07/2023,EIF 3 & 4 YR OLD,Wood Street Nursery & Forest Preschool,Contributions to third parties,"1,000.00",Nursery
04/07/2023,EIF 3 & 4 YR OLD,Wood Street Nursery & Forest Preschool,Contributions to third parties,500.00,Nursery
04/07/2023,EIF 3 & 4 YR OLD,Wood Street Nursery & Forest Preschool,Contributions to third parties,500.00,Nursery
04/07/2023,LD-Autism Central Team Care,County Care Independent Living Ltd,Day Care Services,278.44,Dom Care - Adults
04/07/2023,LD-Autism Central Team Care,National Autistic Society Services Ltd,Day Care Services,"4,084.80",Residential - MH
04/07/2023,WAVERLEY LOCAL CARE PD,Redacted Personal Data,Direct Payments,"2,064.84",Individual - NEC
04/07/2023,APPLEWOOD,Applewood,Educational Visits Holidays Camps Toys,"1,694.44",Residential - MH
04/07/2023,DBS CHECKING TEAM,Disclosure & Barring Service,Employee Security Checks,"21,946.00",Temp Ops OM Cover
04/07/2023,NORTH EAST ALTERNATIVE SEN BUDGET,Artemis Studios,External Placement Fees,"47,472.36",Further Education16+
04/07/2023,NE ALTERNATIVE SEN POST 16,Artemis Studios,External Placement Fees,"23,236.68",Further Education16+
04/07/2023,SOUTH EAST AGENCY PLACE (ED),Aurora Asd Ltd,External Placement Fees,"4,153.85",SEND Agncy Placement
04/07/2023,SOUTH EAST AGENCY PLACE (ED),Aurora Asd Ltd,External Placement Fees,"4,153.85",SEND Agncy Placement
04/07/2023,SOUTH EAST AGENCY PLACE (ED),Aurora Asd Ltd,External Placement Fees,"4,153.85",SEND Agncy Placement
04/07/2023,SOUTH EAST AGENCY PLACE (ED),Aurora Asd Ltd,External Placement Fees,"4,153.85",SEND Agncy Placement
04/07/2023,SOUTH EAST AGENCY PLACE (ED),Aurora Asd Ltd,External Placement Fees,"4,153.85",SEND Agncy Placement
04/07/2023,SOUTH EAST AGENCY PLACE (ED),Aurora Asd Ltd,External Placement Fees,"4,153.85",SEND Agncy Placement
04/07/2023,SOUTH EAST AGENCY PLACE (ED),Aurora Asd Ltd,External Placement Fees,"4,153.85",SEND Agncy Placement
04/07/2023,SOUTH WEST AGENCY PLACE (ED),Aurora Asd Ltd,External Placement Fees,"11,982.00",SEND Agncy Placement
04/07/2023,NORTH WEST AGENCY PLACE (ED),Aurora Asd Ltd,External Placement Fees,"4,153.85",SEND Agncy Placement
04/07/2023,SOUTH EAST AGENCY PLACE (ED),Aurora Asd Ltd,External Placement Fees,"4,153.85",SEND Agncy Placement
04/07/2023,SOUTH EAST AGENCY PLACE (ED),Aurora Asd Ltd,External Placement Fees,"4,153.85",SEND Agncy Placement
04/07/2023,NORTH EAST AGENCY PLACE (ED),Aurora Asd Ltd,External Placement Fees,"4,153.85",SEND Agncy Placement
04/07/2023,NORTH WEST AGENCY PLACE (ED),Aurora Asd Ltd,External Placement Fees,"4,153.85",SEND Agncy Placement
04/07/2023,NORTH WEST AGENCY PLACE (ED),Aurora Asd Ltd,External Placement Fees,"4,153.85",SEND Agncy Placement
04/07/2023,SOUTH WEST AGENCY PLACE (ED),Aurora Asd Ltd,External Placement Fees,"4,153.85",SEND Agncy Placement
04/07/2023,SOUTH EAST AGENCY PLACE (ED),Aurora Asd Ltd,External Placement Fees,"4,153.85",SEND Agncy Placement
04/07/2023,NORTH EAST AGENCY PLACE (ED),Aurora Asd Ltd,External Placement Fees,"4,153.85",SEND Agncy Placement
04/07/2023,SOUTH EAST AGENCY PLACE (ED),Aurora Asd Ltd,External Placement Fees,"4,153.85",SEND Agncy Placement
04/07/2023,SOUTH EAST AGENCY PLACE (ED),Aurora Asd Ltd,External Placement Fees,"4,507.38",SEND Agncy Placement
04/07/2023,SOUTH WEST AGENCY PLACE (ED),Beech Lodge School,External Placement Fees,"4,022.08",SEND Agncy Placement
04/07/2023,NORTH EAST AGENCY PLACE (ED),Beech Lodge School,External Placement Fees,"7,283.07",SEND Agncy Placement
04/07/2023,NORTH EAST AGENCY PLACE (ED),Beech Lodge School,External Placement Fees,"11,577.20",SEND Agncy Placement
04/07/2023,NORTH WEST AGENCY PLACE (ED),Beech Lodge School,External Placement Fees,"11,998.05",SEND Agncy Placement
04/07/2023,NORTH WEST AGENCY PLACE (ED),Beech Lodge School,External Placement Fees,"12,750.45",SEND Agncy Placement
04/07/2023,NORTH EAST AGENCY PLACE (ED),Beech Lodge School,External Placement Fees,"3,046.62",SEND Agncy Placement
04/07/2023,NORTH WEST AGENCY PLACE (ED),Beech Lodge School,External Placement Fees,"23,109.78",SEND Agncy Placement
04/07/2023,NORTH EAST AGENCY PLACE (ED),Beech Lodge School,External Placement Fees,"22,485.75",SEND Agncy Placement
04/07/2023,NORTH EAST AGENCY PLACE (ED),Beyond Autism,External Placement Fees,"8,756.00",SEND Agncy Placement
04/07/2023,NORTH EAST AGENCY PLACE (ED),Beyond Autism,External Placement Fees,"9,298.06",SEND Agncy Placement
04/07/2023,NE AGENCY/SPI POST 16-EDUC,Beyond Autism,External Placement Fees,"10,306.10",SEND Agncy Placement
04/07/2023,NORTH EAST AGENCY PLACE (ED),Beyond Autism,External Placement Fees,"10,306.10",SEND Agncy Placement
04/07/2023,NORTH EAST AGENCY PLACE (ED),Beyond Autism,External Placement Fees,"4,743.91",SEND Agncy Placement
04/07/2023,SOUTH WEST AGENCY PLACE (ED),Cherry Tree Learning Services Ltd,External Placement Fees,"3,384.58",SEND Agncy Placement
04/07/2023,NE ALTERNATIVE SEN POST 16,Redacted Personal Data ,External Placement Fees,"16,380.00",SEND Agncy Placement
04/07/2023,SOUTH EAST AGENCY PLACE (ED),LVS Hassocks,External Placement Fees,"8,846.16",SEND Agncy Placement
04/07/2023,SOUTH EAST AGENCY PLACE (ED),LVS Hassocks,External Placement Fees,"4,315.38",SEND Agncy Placement
04/07/2023,SOUTH EAST AGENCY PLACE (ED),LVS Hassocks,External Placement Fees,"26,872.44",SEND Agncy Placement
04/07/2023,NORTH WEST AGENCY PLACE (ED),LVS Hassocks,External Placement Fees,"9,246.00",SEND Agncy Placement
04/07/2023,SOUTH WEST AGENCY PLACE (ED),LVS Hassocks,External Placement Fees,"9,932.76",SEND Agncy Placement
04/07/2023,SOUTH EAST AGENCY PLACE (ED),LVS Hassocks,External Placement Fees,"15,525.69",SEND Agncy Placement
04/07/2023,SE AGENCY/SPI POST 16-EDUC,LVS Hassocks,External Placement Fees,"4,601.54",SEND Agncy Placement
04/07/2023,SW AGENCY/SPI POST 16-EDUC,LVS Hassocks,External Placement Fees,"10,355.88",SEND Agncy Placement
04/07/2023,SOUTH EAST AGENCY PLACE (ED),LVS Hassocks,External Placement Fees,"9,366.64",SEND Agncy Placement
04/07/2023,NE AGENCY/SPI POST 16-EDUC,Moor House School & College,External Placement Fees,"16,036.00",School Support Serv
04/07/2023,NORTH EAST AGENCY PLACE (ED),Moor House School & College,External Placement Fees,"11,538.16",School Support Serv
04/07/2023,SOUTH EAST AGENCY PLACE (ED),Moor House School & College,External Placement Fees,"10,968.00",School Support Serv
04/07/2023,SOUTH EAST AGENCY PLACE (ED),Moor House School & College,External Placement Fees,"6,346.14",School Support Serv
04/07/2023,SOUTH EAST AGENCY PLACE (ED),Moor House School & College,External Placement Fees,"12,845.84",School Support Serv
04/07/2023,SOUTH EAST AGENCY PLACE (ED),Moor House School & College,External Placement Fees,"8,799.69",School Support Serv
04/07/2023,SOUTH EAST AGENCY PLACE (ED),Moor House School & College,External Placement Fees,"12,845.84",School Support Serv
04/07/2023,SOUTH EAST AGENCY PLACE (ED),Moor House School & College,External Placement Fees,"11,538.16",School Support Serv
04/07/2023,SOUTH EAST AGENCY PLACE (ED),Moor House School & College,External Placement Fees,"8,370.45",School Support Serv
04/07/2023,SOUTH EAST AGENCY PLACE (ED),Moor House School & College,External Placement Fees,"8,223.24",School Support Serv
04/07/2023,NORTH EAST AGENCY PLACE (ED),Moor House School & College,External Placement Fees,"16,625.35",School Support Serv
04/07/2023,SOUTH EAST AGENCY PLACE (ED),Moor House School & College,External Placement Fees,"5,045.38",School Support Serv
04/07/2023,SOUTH EAST AGENCY PLACE (ED),Moor House School & College,External Placement Fees,"8,223.24",School Support Serv
04/07/2023,SOUTH EAST AGENCY PLACE (ED),Moor House School & College,External Placement Fees,"8,223.24",School Support Serv
04/07/2023,NORTH EAST AGENCY PLACE (ED),Moor House School & College,External Placement Fees,"8,223.24",School Support Serv
04/07/2023,NORTH WEST AGENCY PLACE (ED),Moor House School & College,External Placement Fees,"12,019.40",School Support Serv
04/07/2023,SOUTH EAST AGENCY PLACE (ED),Moor House School & College,External Placement Fees,"26,162.76",School Support Serv
04/07/2023,SOUTH EAST AGENCY PLACE (ED),Moor House School & College,External Placement Fees,"8,953.62",School Support Serv
04/07/2023,NORTH WEST AGENCY PLACE (ED),Moor House School & College,External Placement Fees,"13,051.08",School Support Serv
04/07/2023,SOUTH EAST AGENCY PLACE (ED),Moor House School & College,External Placement Fees,"13,051.08",School Support Serv
04/07/2023,NORTH EAST AGENCY PLACE (ED),Moor House School & College,External Placement Fees,"13,051.08",School Support Serv
04/07/2023,SOUTH EAST AGENCY PLACE (ED),Moor House School & College,External Placement Fees,"8,953.62",School Support Serv
04/07/2023,SOUTH WEST AGENCY PLACE (ED),Moor House School & College,External Placement Fees,"28,597.38",School Support Serv
04/07/2023,SOUTH EAST AGENCY PLACE (ED),Moor House School & College,External Placement Fees,"13,051.08",School Support Serv
04/07/2023,NORTH WEST AGENCY PLACE (ED),Moor House School & College,External Placement Fees,"8,953.62",School Support Serv
04/07/2023,SOUTH EAST AGENCY PLACE (ED),Moor House School & College,External Placement Fees,"5,412.62",School Support Serv
04/07/2023,SOUTH EAST AGENCY PLACE (ED),Moor House School & College,External Placement Fees,"5,205.54",School Support Serv
04/07/2023,SOUTH EAST AGENCY PLACE (ED),Moor House School & College,External Placement Fees,"12,550.76",School Support Serv
04/07/2023,SOUTH EAST AGENCY PLACE (ED),Moor House School & College,External Placement Fees,"12,550.76",School Support Serv
04/07/2023,SE AGENCY/SPI POST 16-EDUC,Moor House School & College,External Placement Fees,"16,036.00",School Support Serv
04/07/2023,SW AGENCY/SPI POST 16-EDUC,Moor House School & College,External Placement Fees,"41,073.34",School Support Serv
04/07/2023,SE AGENCY/SPI POST 16-EDUC,Moor House School & College,External Placement Fees,"16,036.00",School Support Serv
04/07/2023,SW AGENCY/SPI POST 16-EDUC,Moor House School & College,External Placement Fees,"14,580.92",School Support Serv
04/07/2023,SE AGENCY/SPI POST 16-EDUC,Moor House School & College,External Placement Fees,"15,044.32",School Support Serv
04/07/2023,SW AGENCY/SPI POST 16-EDUC,Moor House School & College,External Placement Fees,"30,549.72",School Support Serv
04/07/2023,SE AGENCY/SPI POST 16-EDUC,Moor House School & College,External Placement Fees,"17,486.55",School Support Serv
04/07/2023,SE AGENCY/SPI POST 16-EDUC,Moor House School & College,External Placement Fees,"10,491.93",School Support Serv
04/07/2023,SE AGENCY/SPI POST 16-EDUC,Moor House School & College,External Placement Fees,"10,491.93",School Support Serv
04/07/2023,SE AGENCY/SPI POST 16-EDUC,Moor House School & College,External Placement Fees,"15,297.52",School Support Serv
04/07/2023,SE AGENCY/SPI POST 16-EDUC,Moor House School & College,External Placement Fees,"10,491.93",School Support Serv
04/07/2023,NW AGENCY/SPI POST 16-EDUC,Moor House School & College,External Placement Fees,"20,124.25",School Support Serv
04/07/2023,SE AGENCY/SPI POST 16-EDUC,Moor House School & College,External Placement Fees,"10,670.76",School Support Serv
04/07/2023,NORTH WEST AGENCY PLACE (ED),Moor House School & College,External Placement Fees,"11,538.16",School Support Serv
04/07/2023,SE AGENCY/SPI POST 16-EDUC,Moor House School & College,External Placement Fees,"10,670.76",School Support Serv
04/07/2023,SOUTH EAST AGENCY PLACE (ED),Moor House School & College,External Placement Fees,"17,025.75",School Support Serv
04/07/2023,SE AGENCY/SPI POST 16-EDUC,Moor House School & College,External Placement Fees,"16,036.00",School Support Serv
04/07/2023,SOUTH EAST AGENCY PLACE (ED),Moor House School & College,External Placement Fees,"12,230.44",School Support Serv
04/07/2023,SOUTH EAST AGENCY PLACE (ED),Moor House School & College,External Placement Fees,"5,045.38",School Support Serv
04/07/2023,SOUTH EAST AGENCY PLACE (ED),Moor House School & College,External Placement Fees,"12,550.76",School Support Serv
04/07/2023,SOUTH EAST AGENCY PLACE (ED),Moor House School & College,External Placement Fees,"12,230.44",School Support Serv
04/07/2023,SOUTH EAST AGENCY PLACE (ED),Moor House School & College,External Placement Fees,"17,025.75",School Support Serv
04/07/2023,NORTH WEST AGENCY PLACE (ED),Moor House School & College,External Placement Fees,"5,205.54",School Support Serv
04/07/2023,SOUTH EAST AGENCY PLACE (ED),Moor House School & College,External Placement Fees,"10,961.31",School Support Serv
04/07/2023,SOUTH EAST AGENCY PLACE (ED),Moor House School & College,External Placement Fees,"7,118.76",School Support Serv
04/07/2023,SOUTH EAST AGENCY PLACE (ED),Moor House School & College,External Placement Fees,"6,772.62",School Support Serv
04/07/2023,NORTH EAST AGENCY PLACE (ED),Moor House School & College,External Placement Fees,"6,851.22",School Support Serv
04/07/2023,SOUTH EAST AGENCY PLACE (ED),Moor House School & College,External Placement Fees,"3,291.92",School Support Serv
04/07/2023,NORTH WEST AGENCY PLACE (ED),Moor House School & College,External Placement Fees,"7,404.92",School Support Serv
04/07/2023,NORTH WEST AGENCY PLACE (ED),Moor House School & College,External Placement Fees,"16,377.20",School Support Serv
04/07/2023,SOUTH EAST AGENCY PLACE (ED),Moor House School & College,External Placement Fees,"4,078.85",School Support Serv
04/07/2023,SOUTH EAST AGENCY PLACE (ED),Moor House School & College,External Placement Fees,"7,404.92",School Support Serv
04/07/2023,NE AGENCY/SPI POST 16-EDUC,Moor House School & College,External Placement Fees,"13,379.52",School Support Serv
04/07/2023,SOUTH EAST AGENCY PLACE (ED),Moor House School & College,External Placement Fees,"17,240.92",School Support Serv
04/07/2023,NORTH WEST AGENCY PLACE (ED),Moor House School & College,External Placement Fees,"12,236.52",School Support Serv
04/07/2023,NW AGENCY/SPI POST 16-EDUC,Moor House School & College,External Placement Fees,"11,192.31",School Support Serv
04/07/2023,SW AGENCY/SPI POST 16-EDUC,Moor House School & College,External Placement Fees,"25,458.10",School Support Serv
04/07/2023,NORTH WEST AGENCY PLACE (ED),Moor House School & College,External Placement Fees,"8,370.45",School Support Serv
04/07/2023,SOUTH EAST AGENCY PLACE (ED),Moor House School & College,External Placement Fees,"11,401.83",School Support Serv
04/07/2023,SOUTH EAST AGENCY PLACE (ED),Philpots Manor School Ltd,External Placement Fees,"5,441.17",Not Applicable
04/07/2023,SOUTH EAST AGENCY PLACE (ED),Philpots Manor School Ltd,External Placement Fees,"5,441.17",Not Applicable
04/07/2023,SOUTH EAST AGENCY PLACE (ED),Philpots Manor School Ltd,External Placement Fees,"5,441.17",Not Applicable
04/07/2023,SOUTH EAST AGENCY PLACE (ED),Philpots Manor School Ltd,External Placement Fees,"5,441.17",Not Applicable
04/07/2023,SE AGENCY/SPI POST 16-EDUC,Philpots Manor School Ltd,External Placement Fees,"5,441.17",Not Applicable
04/07/2023,NW AGENCY/SPI POST 16-EDUC,Ruskin Mill Education Trust,External Placement Fees,"2,982,565.20",Residential - MH
04/07/2023,NORTH EAST AGENCY PLACE (ED),The Eden SDA School,External Placement Fees,"5,769.23",SEN Specialist Supp
04/07/2023,NORTH EAST AGENCY PLACE (ED),Undershaw School,External Placement Fees,"6,115.90",SEND Agncy Placement
04/07/2023,SOUTH WEST AGENCY PLACE (ED),Undershaw School,External Placement Fees,"4,341.34",SEND Agncy Placement
04/07/2023,SOUTH WEST AGENCY PLACE (ED),Undershaw School,External Placement Fees,"5,879.92",SEND Agncy Placement
04/07/2023,SOUTH WEST AGENCY PLACE (ED),Undershaw School,External Placement Fees,"4,924.54",SEND Agncy Placement
04/07/2023,SOUTH WEST AGENCY PLACE (ED),Undershaw School,External Placement Fees,"5,017.68",SEND Agncy Placement
04/07/2023,SOUTH WEST AGENCY PLACE (ED),Undershaw School,External Placement Fees,"7,350.33",SEND Agncy Placement
04/07/2023,SOUTH WEST AGENCY PLACE (ED),Undershaw School,External Placement Fees,"5,289.50",SEND Agncy Placement
04/07/2023,SOUTH WEST AGENCY PLACE (ED),Undershaw School,External Placement Fees,"6,756.96",SEND Agncy Placement
04/07/2023,SOUTH WEST AGENCY PLACE (ED),Undershaw School,External Placement Fees,"5,934.86",SEND Agncy Placement
04/07/2023,SOUTH WEST AGENCY PLACE (ED),Undershaw School,External Placement Fees,"5,406.52",SEND Agncy Placement
04/07/2023,SOUTH WEST AGENCY PLACE (ED),Undershaw School,External Placement Fees,"4,945.08",SEND Agncy Placement
04/07/2023,NORTH WEST AGENCY PLACE (ED),Undershaw School,External Placement Fees,"10,393.71",SEND Agncy Placement
04/07/2023,NORTH EAST AGENCY PLACE (ED),Undershaw School,External Placement Fees,"5,259.40",SEND Agncy Placement
04/07/2023,SOUTH WEST AGENCY PLACE (ED),Undershaw School,External Placement Fees,"6,044.02",SEND Agncy Placement
04/07/2023,SOUTH WEST AGENCY PLACE (ED),Undershaw School,External Placement Fees,"6,433.36",SEND Agncy Placement
04/07/2023,SOUTH WEST AGENCY PLACE (ED),Undershaw School,External Placement Fees,"4,326.00",SEND Agncy Placement
04/07/2023,SOUTH WEST AGENCY PLACE (ED),Undershaw School,External Placement Fees,"6,923.20",SEND Agncy Placement
04/07/2023,NORTH WEST AGENCY PLACE (ED),Undershaw School,External Placement Fees,"6,346.16",SEND Agncy Placement
04/07/2023,NORTH WEST AGENCY PLACE (ED),Undershaw School,External Placement Fees,"13,485.12",SEND Agncy Placement
04/07/2023,SOUTH WEST AGENCY PLACE (ED),Undershaw School,External Placement Fees,"5,378.34",SEND Agncy Placement
04/07/2023,NORTH WEST AGENCY PLACE (ED),Undershaw School,External Placement Fees,"4,624.06",SEND Agncy Placement
04/07/2023,SOUTH WEST AGENCY PLACE (ED),Undershaw School,External Placement Fees,"5,735.14",SEND Agncy Placement
04/07/2023,NORTH WEST AGENCY PLACE (ED),Undershaw School,External Placement Fees,"4,285.86",SEND Agncy Placement
04/07/2023,SOUTH WEST AGENCY PLACE (ED),Undershaw School,External Placement Fees,"7,375.10",SEND Agncy Placement
04/07/2023,SOUTH WEST AGENCY PLACE (ED),Undershaw School,External Placement Fees,"5,289.50",SEND Agncy Placement
04/07/2023,SOUTH WEST AGENCY PLACE (ED),Undershaw School,External Placement Fees,"5,650.62",SEND Agncy Placement
04/07/2023,SOUTH WEST AGENCY PLACE (ED),Undershaw School,External Placement Fees,"4,669.46",SEND Agncy Placement
04/07/2023,SOUTH WEST AGENCY PLACE (ED),Undershaw School,External Placement Fees,"4,926.92",SEND Agncy Placement
04/07/2023,SW AGENCY/SPI POST 16-EDUC,Undershaw School,External Placement Fees,"6,435.00",SEND Agncy Placement
04/07/2023,SOUTH WEST AGENCY PLACE (ED),Undershaw School,External Placement Fees,"5,072.58",SEND Agncy Placement
04/07/2023,SOUTH WEST AGENCY PLACE (ED),Undershaw School,External Placement Fees,"4,351.78",SEND Agncy Placement
04/07/2023,SOUTH WEST AGENCY PLACE (ED),Undershaw School,External Placement Fees,"4,714.84",SEND Agncy Placement
04/07/2023,SOUTH WEST AGENCY PLACE (ED),Undershaw School,External Placement Fees,"14,333.52",SEND Agncy Placement
04/07/2023,NORTH EAST AGENCY PLACE (ED),Undershaw School,External Placement Fees,"5,111.08",SEND Agncy Placement
04/07/2023,SOUTH WEST AGENCY PLACE (ED),Undershaw School,External Placement Fees,"4,533.32",SEND Agncy Placement
04/07/2023,NORTH EAST AGENCY PLACE (ED),Undershaw School,External Placement Fees,"2,029.24",SEND Agncy Placement
04/07/2023,SOUTH WEST AGENCY PLACE (ED),Undershaw School,External Placement Fees,"4,572.96",SEND Agncy Placement
04/07/2023,NORTH WEST AGENCY PLACE (ED),Undershaw School,External Placement Fees,"5,879.58",SEND Agncy Placement
04/07/2023,SOUTH WEST AGENCY PLACE (ED),Undershaw School,External Placement Fees,"6,329.68",SEND Agncy Placement
04/07/2023,SOUTH WEST AGENCY PLACE (ED),Undershaw School,External Placement Fees,"5,870.86",SEND Agncy Placement
04/07/2023,NORTH WEST AGENCY PLACE (ED),Undershaw School,External Placement Fees,"11,843.96",SEND Agncy Placement
04/07/2023,SOUTH WEST AGENCY PLACE (ED),Undershaw School,External Placement Fees,"5,378.32",SEND Agncy Placement
04/07/2023,NORTH WEST AGENCY PLACE (ED),Undershaw School,External Placement Fees,"7,520.88",SEND Agncy Placement
04/07/2023,NORTH WEST AGENCY PLACE (ED),Undershaw School,External Placement Fees,"5,270.86",SEND Agncy Placement
04/07/2023,SOUTH WEST AGENCY PLACE (ED),Undershaw School,External Placement Fees,"6,465.08",SEND Agncy Placement
04/07/2023,SOUTH WEST AGENCY PLACE (ED),Undershaw School,External Placement Fees,"5,034.14",SEND Agncy Placement
04/07/2023,SOUTH WEST AGENCY PLACE (ED),Undershaw School,External Placement Fees,"8,445.39",SEND Agncy Placement
04/07/2023,NORTH WEST AGENCY PLACE (ED),Undershaw School,External Placement Fees,"5,801.10",SEND Agncy Placement
04/07/2023,SOUTH WEST AGENCY PLACE (ED),Undershaw School,External Placement Fees,"4,898.26",SEND Agncy Placement
04/07/2023,SOUTH WEST AGENCY PLACE (ED),Undershaw School,External Placement Fees,"5,429.84",SEND Agncy Placement
04/07/2023,SOUTH WEST AGENCY PLACE (ED),Undershaw School,External Placement Fees,"5,395.06",SEND Agncy Placement
04/07/2023,NORTH WEST AGENCY PLACE (ED),Undershaw School,External Placement Fees,"4,898.26",SEND Agncy Placement
04/07/2023,NORTH EAST AGENCY PLACE (ED),Undershaw School,External Placement Fees,"5,395.06",SEND Agncy Placement
04/07/2023,SOUTH WEST AGENCY PLACE (ED),Undershaw School,External Placement Fees,"4,837.76",SEND Agncy Placement
04/07/2023,HQ PAYMENT OF INSURANCE CLAIMS,LACHS,General Insurance,589.67,Not Applicable
04/07/2023,SE CARE - LAC,Swanstaff Recruitment Ltd,Hire of Rooms,350.40,Soc Care One-to-one
04/07/2023,SEN HOME TO SCHOOL TRANSPORT,Active Mini Buses,Hire of Transport - Non Staff,"2,713.20",Multi-purpose Veh
04/07/2023,TRANSPORT -MAINSTREAM PRIMARY,Active Mini Buses,Hire of Transport - Non Staff,315.49,Multi-purpose Veh
04/07/2023,SEN HOME TO SCHOOL TRANSPORT,Active Mini Buses,Hire of Transport - Non Staff,"1,663.31",Multi-purpose Veh
04/07/2023,TRANSPORT -MAINSTREAM PRIMARY,Active Mini Buses,Hire of Transport - Non Staff,"2,160.00",Multi-purpose Veh
04/07/2023,ALTERNATIVE PROVISION TRANSPORT NW,Active Mini Buses,Hire of Transport - Non Staff,"1,207.20",Multi-purpose Veh
04/07/2023,SEN HOME TO SCHOOL TRANSPORT,Active Mini Buses,Hire of Transport - Non Staff,407.40,Multi-purpose Veh
04/07/2023,SEN HOME TO SCHOOL TRANSPORT,Courtesy Cars Redhill,Hire of Transport - Non Staff,"4,428.00",Multi-purpose Veh
04/07/2023,SEN HOME TO SCHOOL TRANSPORT,Courtesy Cars Redhill,Hire of Transport - Non Staff,"4,477.80",Multi-purpose Veh
04/07/2023,PLD TRANSITION CARE,Courtesy Cars Redhill,Hire of Transport - Non Staff,"4,373.17",Multi-purpose Veh
04/07/2023,LD-Autism Central Team Care,Courtesy Cars Redhill,Hire of Transport - Non Staff,668.03,Multi-purpose Veh
04/07/2023,SEN HOME TO SCHOOL TRANSPORT,Courtesy Cars Redhill,Hire of Transport - Non Staff,"3,366.00",Multi-purpose Veh
04/07/2023,SEN HOME TO SCHOOL TRANSPORT,Courtesy Cars Redhill,Hire of Transport - Non Staff,"2,084.40",Multi-purpose Veh
04/07/2023,SEN HOME TO SCHOOL TRANSPORT,Courtesy Cars Redhill,Hire of Transport - Non Staff,"3,229.20",Multi-purpose Veh
04/07/2023,SEN HOME TO SCHOOL TRANSPORT,Courtesy Cars Redhill,Hire of Transport - Non Staff,"3,129.84",Multi-purpose Veh
04/07/2023,SEN HOME TO SCHOOL TRANSPORT,Courtesy Cars Redhill,Hire of Transport - Non Staff,"2,397.60",Multi-purpose Veh
04/07/2023,SEN HOME TO SCHOOL TRANSPORT,Courtesy Cars Redhill,Hire of Transport - Non Staff,"3,596.40",Multi-purpose Veh
04/07/2023,SEN HOME TO SCHOOL TRANSPORT,Courtesy Cars Redhill,Hire of Transport - Non Staff,"3,704.40",Multi-purpose Veh
04/07/2023,SEN HOME TO SCHOOL TRANSPORT,Courtesy Cars Redhill,Hire of Transport - Non Staff,"6,058.80",Multi-purpose Veh
04/07/2023,TRANSPORT  MAINSTREAM SECDRY,Courtesy Cars Redhill,Hire of Transport - Non Staff,"5,130.00",Multi-purpose Veh
04/07/2023,SEN HOME TO SCHOOL TRANSPORT,Courtesy Cars Redhill,Hire of Transport - Non Staff,"3,445.20",Multi-purpose Veh
04/07/2023,SEN HOME TO SCHOOL TRANSPORT,Courtesy Cars Redhill,Hire of Transport - Non Staff,"3,582.34",Multi-purpose Veh
04/07/2023,TRANSPORT  MAINSTREAM SECDRY,Courtesy Cars Redhill,Hire of Transport - Non Staff,305.66,Multi-purpose Veh
04/07/2023,SEN HOME TO SCHOOL TRANSPORT,Courtesy Cars Redhill,Hire of Transport - Non Staff,"1,605.20",Multi-purpose Veh
04/07/2023,TRANSPORT -MAINSTREAM PRIMARY,Courtesy Cars Redhill,Hire of Transport - Non Staff,"2,335.82",Multi-purpose Veh
04/07/2023,TRANSPORT  MAINSTREAM SECDRY,Courtesy Cars Redhill,Hire of Transport - Non Staff,563.66,Multi-purpose Veh
04/07/2023,SEN HOME TO SCHOOL TRANSPORT,Courtesy Cars Redhill,Hire of Transport - Non Staff,"3,877.20",Multi-purpose Veh
04/07/2023,SEN HOME TO SCHOOL TRANSPORT,Courtesy Cars Redhill,Hire of Transport - Non Staff,"4,244.40",Multi-purpose Veh
04/07/2023,SEN HOME TO SCHOOL TRANSPORT,Courtesy Cars Redhill,Hire of Transport - Non Staff,"2,257.20",Multi-purpose Veh
04/07/2023,SEN HOME TO SCHOOL TRANSPORT,Courtesy Cars Redhill,Hire of Transport - Non Staff,"2,272.32",Multi-purpose Veh
04/07/2023,SEN HOME TO SCHOOL TRANSPORT,Courtesy Cars Redhill,Hire of Transport - Non Staff,"3,086.64",Multi-purpose Veh
04/07/2023,SEN HOME TO SCHOOL TRANSPORT,Courtesy Cars Redhill,Hire of Transport - Non Staff,"2,998.80",Multi-purpose Veh
04/07/2023,SEN HOME TO SCHOOL TRANSPORT,Courtesy Cars Redhill,Hire of Transport - Non Staff,"3,631.20",Multi-purpose Veh
04/07/2023,SEN HOME TO SCHOOL TRANSPORT,Courtesy Cars Redhill,Hire of Transport - Non Staff,"3,898.80",Multi-purpose Veh
04/07/2023,SEN HOME TO SCHOOL TRANSPORT,Courtesy Cars Redhill,Hire of Transport - Non Staff,"4,363.20",Multi-purpose Veh
04/07/2023,SEN HOME TO SCHOOL TRANSPORT,Courtesy Cars Redhill,Hire of Transport - Non Staff,"4,136.40",Multi-purpose Veh
04/07/2023,SEN HOME TO SCHOOL TRANSPORT,Courtesy Cars Redhill,Hire of Transport - Non Staff,"3,801.60",Multi-purpose Veh
04/07/2023,SEN HOME TO SCHOOL TRANSPORT,Courtesy Cars Redhill,Hire of Transport - Non Staff,"3,564.00",Multi-purpose Veh
04/07/2023,SEN HOME TO SCHOOL TRANSPORT,Courtesy Cars Redhill,Hire of Transport - Non Staff,"4,244.40",Multi-purpose Veh
04/07/2023,SEN HOME TO SCHOOL TRANSPORT,Courtesy Cars Redhill,Hire of Transport - Non Staff,"4,665.60",Multi-purpose Veh
04/07/2023,SEN HOME TO SCHOOL TRANSPORT,Courtesy Cars Redhill,Hire of Transport - Non Staff,"2,980.80",Multi-purpose Veh
04/07/2023,SE REIGATE VALLEY COLLEGE TRANSPORT,Courtesy Cars Redhill,Hire of Transport - Non Staff,"2,939.75",Multi-purpose Veh
04/07/2023,ALTERNATIVE PROVISION TRANSPORT SE,Courtesy Cars Redhill,Hire of Transport - Non Staff,865.45,Multi-purpose Veh
04/07/2023,SE REIGATE VALLEY COLLEGE TRANSPORT,Courtesy Cars Redhill,Hire of Transport - Non Staff,"4,624.20",Multi-purpose Veh
04/07/2023,SEN HOME TO SCHOOL TRANSPORT,Courtesy Cars Redhill,Hire of Transport - Non Staff,"1,694.33",Multi-purpose Veh
04/07/2023,TRANSPORT  MAINSTREAM SECDRY,Courtesy Cars Redhill,Hire of Transport - Non Staff,"3,723.67",Multi-purpose Veh
04/07/2023,SE REIGATE VALLEY COLLEGE TRANSPORT,Courtesy Cars Redhill,Hire of Transport - Non Staff,"3,513.60",Multi-purpose Veh
04/07/2023,SEN HOME TO SCHOOL TRANSPORT,Courtesy Cars Redhill,Hire of Transport - Non Staff,"3,712.80",Multi-purpose Veh
04/07/2023,SEN HOME TO SCHOOL TRANSPORT,Courtesy Cars Redhill,Hire of Transport - Non Staff,"4,082.40",Multi-purpose Veh
04/07/2023,SEN HOME TO SCHOOL TRANSPORT,Courtesy Cars Redhill,Hire of Transport - Non Staff,"2,095.20",Multi-purpose Veh
04/07/2023,SEN HOME TO SCHOOL TRANSPORT,Courtesy Cars Redhill,Hire of Transport - Non Staff,"4,028.40",Multi-purpose Veh
04/07/2023,TRANSPORT  MAINSTREAM SECDRY,Courtesy Cars Redhill,Hire of Transport - Non Staff,"1,583.39",Multi-purpose Veh
04/07/2023,SEN HOME TO SCHOOL TRANSPORT,Courtesy Cars Redhill,Hire of Transport - Non Staff,"1,570.21",Multi-purpose Veh
04/07/2023,SEN HOME TO SCHOOL TRANSPORT,Courtesy Cars Redhill,Hire of Transport - Non Staff,"3,883.68",Multi-purpose Veh
04/07/2023,SEN HOME TO SCHOOL TRANSPORT,Courtesy Cars Redhill,Hire of Transport - Non Staff,"3,866.40",Multi-purpose Veh
04/07/2023,TRANSPORT  MAINSTREAM SECDRY,Courtesy Cars Redhill,Hire of Transport - Non Staff,"2,785.40",Multi-purpose Veh
04/07/2023,SEN HOME TO SCHOOL TRANSPORT,Courtesy Cars Redhill,Hire of Transport - Non Staff,292.60,Multi-purpose Veh
04/07/2023,TRANSPORT  MAINSTREAM SECDRY,Courtesy Cars Redhill,Hire of Transport - Non Staff,"2,701.42",Multi-purpose Veh
04/07/2023,SEN HOME TO SCHOOL TRANSPORT,Courtesy Cars Redhill,Hire of Transport - Non Staff,700.58,Multi-purpose Veh
04/07/2023,SEN HOME TO SCHOOL TRANSPORT,Courtesy Cars Redhill,Hire of Transport - Non Staff,"3,564.00",Multi-purpose Veh
04/07/2023,SEN HOME TO SCHOOL TRANSPORT,Courtesy Cars Redhill,Hire of Transport - Non Staff,"3,002.40",Multi-purpose Veh
04/07/2023,SEN HOME TO SCHOOL TRANSPORT,Courtesy Cars Redhill,Hire of Transport - Non Staff,"3,734.64",Multi-purpose Veh
04/07/2023,SEN HOME TO SCHOOL TRANSPORT,Courtesy Cars Redhill,Hire of Transport - Non Staff,"3,270.24",Multi-purpose Veh
04/07/2023,SEN HOME TO SCHOOL TRANSPORT,Courtesy Cars Redhill,Hire of Transport - Non Staff,"3,704.40",Multi-purpose Veh
04/07/2023,SEN HOME TO SCHOOL TRANSPORT,Courtesy Cars Redhill,Hire of Transport - Non Staff,"2,060.40",Multi-purpose Veh
04/07/2023,SEN HOME TO SCHOOL TRANSPORT,Courtesy Cars Redhill,Hire of Transport - Non Staff,"2,488.80",Multi-purpose Veh
04/07/2023,SEN HOME TO SCHOOL TRANSPORT,Courtesy Cars Redhill,Hire of Transport - Non Staff,"1,968.60",Multi-purpose Veh
04/07/2023,SEN HOME TO SCHOOL TRANSPORT,Courtesy Cars Redhill,Hire of Transport - Non Staff,"3,319.92",Multi-purpose Veh
04/07/2023,SEN HOME TO SCHOOL TRANSPORT,Courtesy Cars Redhill,Hire of Transport - Non Staff,"2,373.84",Multi-purpose Veh
04/07/2023,SEN HOME TO SCHOOL TRANSPORT,Courtesy Cars Redhill,Hire of Transport - Non Staff,"2,957.04",Multi-purpose Veh
04/07/2023,SEN HOME TO SCHOOL TRANSPORT,Courtesy Cars Redhill,Hire of Transport - Non Staff,"2,376.00",Multi-purpose Veh
04/07/2023,SEN HOME TO SCHOOL TRANSPORT,Courtesy Cars Redhill,Hire of Transport - Non Staff,"2,309.04",Multi-purpose Veh
04/07/2023,SEN HOME TO SCHOOL TRANSPORT,District Cars MECO Ltd,Hire of Transport - Non Staff,"4,080.00",Multi-purpose Veh
04/07/2023,SEN HOME TO SCHOOL TRANSPORT,District Cars MECO Ltd,Hire of Transport - Non Staff,"3,240.00",Multi-purpose Veh
04/07/2023,SEN HOME TO SCHOOL TRANSPORT,District Cars MECO Ltd,Hire of Transport - Non Staff,"4,752.00",Multi-purpose Veh
04/07/2023,SEN HOME TO SCHOOL TRANSPORT,District Cars MECO Ltd,Hire of Transport - Non Staff,"2,797.20",Multi-purpose Veh
04/07/2023,SEN HOME TO SCHOOL TRANSPORT,District Cars MECO Ltd,Hire of Transport - Non Staff,"2,592.00",Multi-purpose Veh
04/07/2023,SEN HOME TO SCHOOL TRANSPORT,District Cars MECO Ltd,Hire of Transport - Non Staff,"4,968.00",Multi-purpose Veh
04/07/2023,SEN HOME TO SCHOOL TRANSPORT,District Cars MECO Ltd,Hire of Transport - Non Staff,"4,968.00",Multi-purpose Veh
04/07/2023,LD-Autism Central Team Care,District Cars MECO Ltd,Hire of Transport - Non Staff,514.80,Multi-purpose Veh
04/07/2023,NE CARE - LAC,HCL Chauffeurs UK Ltd,Hire of Transport - Non Staff,432.00,Multi-purpose Veh
04/07/2023,LD-Autism Central Team Care,HCL Chauffeurs UK Ltd,Hire of Transport - Non Staff,"1,152.00",Multi-purpose Veh
04/07/2023,CWD TEAM NORTH WEST,HCL Chauffeurs UK Ltd,Hire of Transport - Non Staff,"3,024.00",Multi-purpose Veh
04/07/2023,NORTH EAST CWD NON-LAC CARE,Hughes Mini Services,Hire of Transport - Non Staff,728.00,Multi-purpose Veh
04/07/2023,NORTH EAST CWD NON-LAC CARE,Hughes Mini Services,Hire of Transport - Non Staff,280.00,Multi-purpose Veh
04/07/2023,NORTH EAST CWD NON-LAC CARE,Hughes Mini Services,Hire of Transport - Non Staff,336.00,Multi-purpose Veh
04/07/2023,NORTH WEST CWD LAC CARE,Hughes Mini Services,Hire of Transport - Non Staff,488.40,Multi-purpose Veh
04/07/2023,SEN HOME TO SCHOOL TRANSPORT,Lady Safe & Sons Ltd,Hire of Transport - Non Staff,"2,700.00",Multi-purpose Veh
04/07/2023,TRANSPORT  MAINSTREAM SECDRY,Lady Safe & Sons Ltd,Hire of Transport - Non Staff,"1,785.00",Multi-purpose Veh
04/07/2023,SEN HOME TO SCHOOL TRANSPORT,Lady Safe & Sons Ltd,Hire of Transport - Non Staff,"3,240.00",Multi-purpose Veh
04/07/2023,SEN HOME TO SCHOOL TRANSPORT,Lady Safe & Sons Ltd,Hire of Transport - Non Staff,"6,220.80",Multi-purpose Veh
04/07/2023,SEN HOME TO SCHOOL TRANSPORT,Lady Safe & Sons Ltd,Hire of Transport - Non Staff,"2,520.00",Multi-purpose Veh
04/07/2023,SEN HOME TO SCHOOL TRANSPORT,Lady Safe & Sons Ltd,Hire of Transport - Non Staff,"2,310.00",Multi-purpose Veh
04/07/2023,SEN HOME TO SCHOOL TRANSPORT,Lady Safe & Sons Ltd,Hire of Transport - Non Staff,"3,564.00",Multi-purpose Veh
04/07/2023,SEN HOME TO SCHOOL TRANSPORT,Lady Safe & Sons Ltd,Hire of Transport - Non Staff,"4,579.20",Multi-purpose Veh
04/07/2023,SEN HOME TO SCHOOL TRANSPORT,Lady Safe & Sons Ltd,Hire of Transport - Non Staff,"3,456.00",Multi-purpose Veh
04/07/2023,SEN HOME TO SCHOOL TRANSPORT,Lady Safe & Sons Ltd,Hire of Transport - Non Staff,"2,527.20",Multi-purpose Veh
04/07/2023,SEN HOME TO SCHOOL TRANSPORT,Lady Safe & Sons Ltd,Hire of Transport - Non Staff,"2,592.00",Multi-purpose Veh
04/07/2023,SEN HOME TO SCHOOL TRANSPORT,Lady Safe & Sons Ltd,Hire of Transport - Non Staff,"2,520.00",Multi-purpose Veh
04/07/2023,SEN HOME TO SCHOOL TRANSPORT,Lady Safe & Sons Ltd,Hire of Transport - Non Staff,"1,620.00",Multi-purpose Veh
04/07/2023,SEN HOME TO SCHOOL TRANSPORT,Lady Safe & Sons Ltd,Hire of Transport - Non Staff,"3,369.60",Multi-purpose Veh
04/07/2023,SEN HOME TO SCHOOL TRANSPORT,Lady Safe & Sons Ltd,Hire of Transport - Non Staff,"3,691.44",Multi-purpose Veh
04/07/2023,SEN HOME TO SCHOOL TRANSPORT,Lady Safe & Sons Ltd,Hire of Transport - Non Staff,"3,834.00",Multi-purpose Veh
04/07/2023,SEN HOME TO SCHOOL TRANSPORT,Lady Safe & Sons Ltd,Hire of Transport - Non Staff,"2,147.90",Multi-purpose Veh
04/07/2023,TRANSPORT -MAINSTREAM PRIMARY,Lady Safe & Sons Ltd,Hire of Transport - Non Staff,525.10,Multi-purpose Veh
04/07/2023,TRANSPORT -MAINSTREAM PRIMARY,Lady Safe & Sons Ltd,Hire of Transport - Non Staff,348.89,Multi-purpose Veh
04/07/2023,SEN HOME TO SCHOOL TRANSPORT,Lady Safe & Sons Ltd,Hire of Transport - Non Staff,"1,487.11",Multi-purpose Veh
04/07/2023,SEN HOME TO SCHOOL TRANSPORT,Lady Safe & Sons Ltd,Hire of Transport - Non Staff,"2,878.20",Multi-purpose Veh
04/07/2023,SEN HOME TO SCHOOL TRANSPORT,Lady Safe & Sons Ltd,Hire of Transport - Non Staff,"2,916.00",Multi-purpose Veh
04/07/2023,SEN HOME TO SCHOOL TRANSPORT,Lady Safe & Sons Ltd,Hire of Transport - Non Staff,"2,376.00",Multi-purpose Veh
04/07/2023,SEN HOME TO SCHOOL TRANSPORT,Lady Safe & Sons Ltd,Hire of Transport - Non Staff,"3,564.00",Multi-purpose Veh
04/07/2023,SEN HOME TO SCHOOL TRANSPORT,Lady Safe & Sons Ltd,Hire of Transport - Non Staff,"4,082.40",Multi-purpose Veh
04/07/2023,SEN HOME TO SCHOOL TRANSPORT,Lady Safe & Sons Ltd,Hire of Transport - Non Staff,"2,862.00",Multi-purpose Veh
04/07/2023,SEN HOME TO SCHOOL TRANSPORT,Lady Safe & Sons Ltd,Hire of Transport - Non Staff,"2,808.00",Multi-purpose Veh
04/07/2023,SEN HOME TO SCHOOL TRANSPORT,Lady Safe & Sons Ltd,Hire of Transport - Non Staff,"3,888.00",Multi-purpose Veh
04/07/2023,SEN HOME TO SCHOOL TRANSPORT,Lady Safe & Sons Ltd,Hire of Transport - Non Staff,"4,212.00",Multi-purpose Veh
04/07/2023,ALTERNATIVE PROVISION TRANSPORT NE,Lady Safe & Sons Ltd,Hire of Transport - Non Staff,673.01,Multi-purpose Veh
04/07/2023,SEN HOME TO SCHOOL TRANSPORT,Lady Safe & Sons Ltd,Hire of Transport - Non Staff,"3,706.99",Multi-purpose Veh
04/07/2023,SEN HOME TO SCHOOL TRANSPORT,Lady Safe & Sons Ltd,Hire of Transport - Non Staff,"2,203.19",Multi-purpose Veh
04/07/2023,SEN HOME TO SCHOOL TRANSPORT,Lady Safe & Sons Ltd,Hire of Transport - Non Staff,"2,130.00",Multi-purpose Veh
04/07/2023,SEN HOME TO SCHOOL TRANSPORT,Lady Safe & Sons Ltd,Hire of Transport - Non Staff,"1,944.00",Multi-purpose Veh
04/07/2023,SEN HOME TO SCHOOL TRANSPORT,Lady Safe & Sons Ltd,Hire of Transport - Non Staff,"4,285.44",Multi-purpose Veh
04/07/2023,SEN HOME TO SCHOOL TRANSPORT,Lady Safe & Sons Ltd,Hire of Transport - Non Staff,"3,640.90",Multi-purpose Veh
04/07/2023,SEN HOME TO SCHOOL TRANSPORT,Lady Safe & Sons Ltd,Hire of Transport - Non Staff,"2,234.20",Multi-purpose Veh
04/07/2023,SEN HOME TO SCHOOL TRANSPORT,Lady Safe & Sons Ltd,Hire of Transport - Non Staff,"2,808.00",Multi-purpose Veh
04/07/2023,SEN HOME TO SCHOOL TRANSPORT,Lady Safe & Sons Ltd,Hire of Transport - Non Staff,"3,024.00",Multi-purpose Veh
04/07/2023,SE ASSESSMENT TEAM,Optimum Cars Ltd,Hire of Transport - Non Staff,450.00,Taxi Hire (SEN Only)
04/07/2023,LD-Autism Central Team Care,Oracle Cars,Hire of Transport - Non Staff,490.00,Taxi Hire (SEN Only)
04/07/2023,SEN HOME TO SCHOOL TRANSPORT,Oracle Cars,Hire of Transport - Non Staff,"1,849.39",Taxi Hire (SEN Only)
04/07/2023,TRANSPORT  MAINSTREAM SECDRY,Oracle Cars,Hire of Transport - Non Staff,832.61,Taxi Hire (SEN Only)
04/07/2023,SEN HOME TO SCHOOL TRANSPORT,Oracle Cars,Hire of Transport - Non Staff,"2,970.00",Taxi Hire (SEN Only)
04/07/2023,SEN HOME TO SCHOOL TRANSPORT,Oracle Cars,Hire of Transport - Non Staff,"2,250.00",Taxi Hire (SEN Only)
04/07/2023,SEN HOME TO SCHOOL TRANSPORT,Oracle Cars,Hire of Transport - Non Staff,"1,360.00",Taxi Hire (SEN Only)
04/07/2023,SEN HOME TO SCHOOL TRANSPORT,Oracle Cars,Hire of Transport - Non Staff,"3,276.00",Taxi Hire (SEN Only)
04/07/2023,NW SHORT STAY SCHOOL TRANSPORT,Oracle Cars,Hire of Transport - Non Staff,938.00,Taxi Hire (SEN Only)
04/07/2023,SEN HOME TO SCHOOL TRANSPORT,Oracle Cars,Hire of Transport - Non Staff,"1,735.89",Taxi Hire (SEN Only)
04/07/2023,CHAIRMAN,Parkers of Reigate Ltd,Hire of Transport - Non Staff,876.00,Multi-purpose Veh
04/07/2023,SEN HOME TO SCHOOL TRANSPORT,Premier Minicab Services UK Ltd,Hire of Transport - Non Staff,"3,132.00",Taxi Hire (SEN Only)
04/07/2023,SEN HOME TO SCHOOL TRANSPORT,Premier Minicab Services UK Ltd,Hire of Transport - Non Staff,"4,752.00",Taxi Hire (SEN Only)
04/07/2023,SEN HOME TO SCHOOL TRANSPORT,Premier Minicab Services UK Ltd,Hire of Transport - Non Staff,"2,592.00",Taxi Hire (SEN Only)
04/07/2023,SEN HOME TO SCHOOL TRANSPORT,Premier Minicab Services UK Ltd,Hire of Transport - Non Staff,"5,205.60",Taxi Hire (SEN Only)
04/07/2023,SEN HOME TO SCHOOL TRANSPORT,Premier Minicab Services UK Ltd,Hire of Transport - Non Staff,"3,801.60",Taxi Hire (SEN Only)
04/07/2023,SEN HOME TO SCHOOL TRANSPORT,Premier Minicab Services UK Ltd,Hire of Transport - Non Staff,"4,536.00",Taxi Hire (SEN Only)
04/07/2023,SEN HOME TO SCHOOL TRANSPORT,Premier Minicab Services UK Ltd,Hire of Transport - Non Staff,"4,104.00",Taxi Hire (SEN Only)
04/07/2023,SEN HOME TO SCHOOL TRANSPORT,Premier Minicab Services UK Ltd,Hire of Transport - Non Staff,"6,480.00",Taxi Hire (SEN Only)
04/07/2023,SEN HOME TO SCHOOL TRANSPORT,Premier Minicab Services UK Ltd,Hire of Transport - Non Staff,"3,672.00",Taxi Hire (SEN Only)
04/07/2023,SEN HOME TO SCHOOL TRANSPORT,Premier Minicab Services UK Ltd,Hire of Transport - Non Staff,"5,832.00",Taxi Hire (SEN Only)
04/07/2023,SEN HOME TO SCHOOL TRANSPORT,Premier Minicab Services UK Ltd,Hire of Transport - Non Staff,"4,536.00",Taxi Hire (SEN Only)
04/07/2023,TRANSPORT -MAINSTREAM PRIMARY,Premier Minicab Services UK Ltd,Hire of Transport - Non Staff,"2,138.40",Taxi Hire (SEN Only)
04/07/2023,SEN HOME TO SCHOOL TRANSPORT,Premier Minicab Services UK Ltd,Hire of Transport - Non Staff,"4,276.80",Taxi Hire (SEN Only)
04/07/2023,SEN HOME TO SCHOOL TRANSPORT,Premier Minicab Services UK Ltd,Hire of Transport - Non Staff,"5,184.00",Taxi Hire (SEN Only)
04/07/2023,SEN HOME TO SCHOOL TRANSPORT,Premier Minicab Services UK Ltd,Hire of Transport - Non Staff,"1,430.96",Taxi Hire (SEN Only)
04/07/2023,TRANSPORT  MAINSTREAM SECDRY,Premier Minicab Services UK Ltd,Hire of Transport - Non Staff,"3,105.04",Taxi Hire (SEN Only)
04/07/2023,SEN HOME TO SCHOOL TRANSPORT,Premier Minicab Services UK Ltd,Hire of Transport - Non Staff,"4,104.00",Taxi Hire (SEN Only)
04/07/2023,SEN HOME TO SCHOOL TRANSPORT,Premier Minicab Services UK Ltd,Hire of Transport - Non Staff,"3,456.00",Taxi Hire (SEN Only)
04/07/2023,TRANSPORT -MAINSTREAM PRIMARY,Premier Minicab Services UK Ltd,Hire of Transport - Non Staff,588.00,Taxi Hire (SEN Only)
04/07/2023,SEN HOME TO SCHOOL TRANSPORT,Premier Minicab Services UK Ltd,Hire of Transport - Non Staff,"5,853.60",Taxi Hire (SEN Only)
04/07/2023,SEN HOME TO SCHOOL TRANSPORT,Premier Minicab Services UK Ltd,Hire of Transport - Non Staff,"3,888.00",Taxi Hire (SEN Only)
04/07/2023,SEN HOME TO SCHOOL TRANSPORT,Premier Minicab Services UK Ltd,Hire of Transport - Non Staff,"2,256.00",Taxi Hire (SEN Only)
04/07/2023,SEN HOME TO SCHOOL TRANSPORT,Road Link Gatwick Ltd,Hire of Transport - Non Staff,"2,897.14",Taxi Hire (SEN Only)
04/07/2023,SE REIGATE VALLEY COLLEGE TRANSPORT,Road Link Gatwick Ltd,Hire of Transport - Non Staff,"1,314.86",Taxi Hire (SEN Only)
04/07/2023,SEN HOME TO SCHOOL TRANSPORT,Road Link Gatwick Ltd,Hire of Transport - Non Staff,"2,268.00",Taxi Hire (SEN Only)
04/07/2023,SEN HOME TO SCHOOL TRANSPORT,Road Link Gatwick Ltd,Hire of Transport - Non Staff,"3,651.60",Taxi Hire (SEN Only)
04/07/2023,SEN HOME TO SCHOOL TRANSPORT,Road Link Gatwick Ltd,Hire of Transport - Non Staff,"3,996.00",Taxi Hire (SEN Only)
04/07/2023,SEN HOME TO SCHOOL TRANSPORT,Road Link Gatwick Ltd,Hire of Transport - Non Staff,"3,866.40",Taxi Hire (SEN Only)
04/07/2023,SEN HOME TO SCHOOL TRANSPORT,Road Link Gatwick Ltd,Hire of Transport - Non Staff,"3,570.00",Taxi Hire (SEN Only)
04/07/2023,TRANSPORT  MAINSTREAM SECDRY,Sprint Transfers Ltd,Hire of Transport - Non Staff,504.00,Taxi Hire (SEN Only)
04/07/2023,SEN HOME TO SCHOOL TRANSPORT,Sprint Transfers Ltd,Hire of Transport - Non Staff,"4,320.00",Taxi Hire (SEN Only)
04/07/2023,TRANSPORT -MAINSTREAM PRIMARY,Sprint Transfers Ltd,Hire of Transport - Non Staff,"2,592.00",Taxi Hire (SEN Only)
04/07/2023,SEN HOME TO SCHOOL TRANSPORT,Sprint Transfers Ltd,Hire of Transport - Non Staff,"3,942.00",Taxi Hire (SEN Only)
04/07/2023,SEN HOME TO SCHOOL TRANSPORT,Sprint Transfers Ltd,Hire of Transport - Non Staff,"2,246.40",Taxi Hire (SEN Only)
04/07/2023,SEN HOME TO SCHOOL TRANSPORT,Sprint Transfers Ltd,Hire of Transport - Non Staff,"3,564.00",Taxi Hire (SEN Only)
04/07/2023,SEN HOME TO SCHOOL TRANSPORT,Sprint Transfers Ltd,Hire of Transport - Non Staff,"4,471.20",Taxi Hire (SEN Only)
04/07/2023,TRANSPORT -MAINSTREAM PRIMARY,Sprint Transfers Ltd,Hire of Transport - Non Staff,"2,019.60",Taxi Hire (SEN Only)
04/07/2023,TRANSPORT -MAINSTREAM PRIMARY,Sprint Transfers Ltd,Hire of Transport - Non Staff,"1,901.71",Taxi Hire (SEN Only)
04/07/2023,SEN HOME TO SCHOOL TRANSPORT,Sprint Transfers Ltd,Hire of Transport - Non Staff,668.69,Taxi Hire (SEN Only)
04/07/2023,SEN HOME TO SCHOOL TRANSPORT,Sprint Transfers Ltd,Hire of Transport - Non Staff,"3,207.60",Taxi Hire (SEN Only)
04/07/2023,SEN HOME TO SCHOOL TRANSPORT,Sprint Transfers Ltd,Hire of Transport - Non Staff,"3,540.24",Taxi Hire (SEN Only)
04/07/2023,SEN HOME TO SCHOOL TRANSPORT,Sprint Transfers Ltd,Hire of Transport - Non Staff,"2,444.20",Taxi Hire (SEN Only)
04/07/2023,TRANSPORT -MAINSTREAM PRIMARY,Sprint Transfers Ltd,Hire of Transport - Non Staff,"1,616.60",Taxi Hire (SEN Only)
04/07/2023,SEN HOME TO SCHOOL TRANSPORT,Sprint Transfers Ltd,Hire of Transport - Non Staff,"4,946.40",Taxi Hire (SEN Only)
04/07/2023,SEN HOME TO SCHOOL TRANSPORT,Sprint Transfers Ltd,Hire of Transport - Non Staff,"3,288.60",Taxi Hire (SEN Only)
04/07/2023,SEN HOME TO SCHOOL TRANSPORT,Sprint Transfers Ltd,Hire of Transport - Non Staff,"3,434.40",Taxi Hire (SEN Only)
04/07/2023,SEN HOME TO SCHOOL TRANSPORT,Sprint Transfers Ltd,Hire of Transport - Non Staff,"3,110.40",Taxi Hire (SEN Only)
04/07/2023,SEN HOME TO SCHOOL TRANSPORT,Sprint Transfers Ltd,Hire of Transport - Non Staff,"3,304.80",Taxi Hire (SEN Only)
04/07/2023,SEN HOME TO SCHOOL TRANSPORT,Sprint Transfers Ltd,Hire of Transport - Non Staff,"2,775.60",Taxi Hire (SEN Only)
04/07/2023,SEN HOME TO SCHOOL TRANSPORT,Sprint Transfers Ltd,Hire of Transport - Non Staff,"3,326.40",Taxi Hire (SEN Only)
04/07/2023,SEN HOME TO SCHOOL TRANSPORT,Sprint Transfers Ltd,Hire of Transport - Non Staff,"2,376.00",Taxi Hire (SEN Only)
04/07/2023,SEN HOME TO SCHOOL TRANSPORT,Sprint Transfers Ltd,Hire of Transport - Non Staff,"3,996.00",Taxi Hire (SEN Only)
04/07/2023,SEN HOME TO SCHOOL TRANSPORT,Sprint Transfers Ltd,Hire of Transport - Non Staff,"2,484.00",Taxi Hire (SEN Only)
04/07/2023,SEN HOME TO SCHOOL TRANSPORT,Sprint Transfers Ltd,Hire of Transport - Non Staff,"5,227.20",Taxi Hire (SEN Only)
04/07/2023,SEN HOME TO SCHOOL TRANSPORT,Sprint Transfers Ltd,Hire of Transport - Non Staff,"4,320.00",Taxi Hire (SEN Only)
04/07/2023,SE REIGATE VALLEY COLLEGE TRANSPORT,Sprint Transfers Ltd,Hire of Transport - Non Staff,590.40,Taxi Hire (SEN Only)
04/07/2023,SE REIGATE VALLEY COLLEGE TRANSPORT,Sprint Transfers Ltd,Hire of Transport - Non Staff,480.00,Taxi Hire (SEN Only)
04/07/2023,SEN HOME TO SCHOOL TRANSPORT,Sprint Transfers Ltd,Hire of Transport - Non Staff,"3,844.80",Taxi Hire (SEN Only)
04/07/2023,SEN HOME TO SCHOOL TRANSPORT,Sprint Transfers Ltd,Hire of Transport - Non Staff,"3,412.80",Taxi Hire (SEN Only)
04/07/2023,TRANSPORT -MAINSTREAM PRIMARY,Sprint Transfers Ltd,Hire of Transport - Non Staff,"1,095.60",Taxi Hire (SEN Only)
04/07/2023,SEN HOME TO SCHOOL TRANSPORT,Sprint Transfers Ltd,Hire of Transport - Non Staff,"4,719.60",Taxi Hire (SEN Only)
04/07/2023,ALTERNATIVE PROVISION TRANSPORT SE,Sprint Transfers Ltd,Hire of Transport - Non Staff,568.80,Taxi Hire (SEN Only)
04/07/2023,TRANSPORT  MAINSTREAM SECDRY,Sprint Transfers Ltd,Hire of Transport - Non Staff,"2,618.00",Taxi Hire (SEN Only)
04/07/2023,SEN HOME TO SCHOOL TRANSPORT,Sprint Transfers Ltd,Hire of Transport - Non Staff,697.60,Taxi Hire (SEN Only)
04/07/2023,SEN HOME TO SCHOOL TRANSPORT,Station Cars Hersham,Hire of Transport - Non Staff,"3,139.20",Taxi Hire (SEN Only)
04/07/2023,SEN HOME TO SCHOOL TRANSPORT,Station Cars Hersham,Hire of Transport - Non Staff,"2,304.00",Taxi Hire (SEN Only)
04/07/2023,SEN HOME TO SCHOOL TRANSPORT,Station Cars Hersham,Hire of Transport - Non Staff,"2,293.92",Taxi Hire (SEN Only)
04/07/2023,SEN HOME TO SCHOOL TRANSPORT,Station Cars Hersham,Hire of Transport - Non Staff,"2,844.00",Taxi Hire (SEN Only)
04/07/2023,SEN HOME TO SCHOOL TRANSPORT,Station Cars Hersham,Hire of Transport - Non Staff,"1,456.00",Taxi Hire (SEN Only)
04/07/2023,NE SHORT STAY SCHOOL TRANSPORT,Station Cars Hersham,Hire of Transport - Non Staff,584.00,Taxi Hire (SEN Only)
04/07/2023,NW SHORT STAY SCHOOL TRANSPORT,Station Cars Hersham,Hire of Transport - Non Staff,632.00,Taxi Hire (SEN Only)
04/07/2023,SEN HOME TO SCHOOL TRANSPORT,Station Cars Hersham,Hire of Transport - Non Staff,"1,944.00",Taxi Hire (SEN Only)
04/07/2023,NE CARE - LAC,Station Cars Hersham,Hire of Transport - Non Staff,"1,848.00",Taxi Hire (SEN Only)
04/07/2023,SEN HOME TO SCHOOL TRANSPORT,Station Cars Hersham,Hire of Transport - Non Staff,"1,520.00",Taxi Hire (SEN Only)
04/07/2023,SEN HOME TO SCHOOL TRANSPORT,Station Cars Hersham,Hire of Transport - Non Staff,"2,052.00",Taxi Hire (SEN Only)
04/07/2023,NE CARE - LAC,Station Cars Hersham,Hire of Transport - Non Staff,816.00,Taxi Hire (SEN Only)
04/07/2023,SOUTH WEST CWD NON-LAC CARE,Woking All 3s,Hire of Transport - Non Staff,252.00,Multi-purpose Veh
04/07/2023,NE CARE - CP & COURT LAC,Woking All 3s,Hire of Transport - Non Staff,"3,468.00",Multi-purpose Veh
04/07/2023,SEN HOME TO SCHOOL TRANSPORT,Woking All 3s,Hire of Transport - Non Staff,"3,663.00",Multi-purpose Veh
04/07/2023,SEN HOME TO SCHOOL TRANSPORT,Woking All 3s,Hire of Transport - Non Staff,"3,834.00",Multi-purpose Veh
04/07/2023,SEN HOME TO SCHOOL TRANSPORT,Woking All 3s,Hire of Transport - Non Staff,"3,780.00",Multi-purpose Veh
04/07/2023,TRANSPORT -MAINSTREAM PRIMARY,Woking All 3s,Hire of Transport - Non Staff,"1,470.00",Multi-purpose Veh
04/07/2023,SEN HOME TO SCHOOL TRANSPORT,Woking All 3s,Hire of Transport - Non Staff,"6,712.20",Multi-purpose Veh
04/07/2023,SEN HOME TO SCHOOL TRANSPORT,Woking All 3s,Hire of Transport - Non Staff,"2,620.80",Multi-purpose Veh
04/07/2023,SEN HOME TO SCHOOL TRANSPORT,Woking All 3s,Hire of Transport - Non Staff,"3,412.80",Multi-purpose Veh
04/07/2023,SEN HOME TO SCHOOL TRANSPORT,Woking All 3s,Hire of Transport - Non Staff,"4,320.00",Multi-purpose Veh
04/07/2023,SEN HOME TO SCHOOL TRANSPORT,Woking All 3s,Hire of Transport - Non Staff,"3,366.00",Multi-purpose Veh
04/07/2023,SEN HOME TO SCHOOL TRANSPORT,Woking All 3s,Hire of Transport - Non Staff,"3,456.00",Multi-purpose Veh
04/07/2023,SEN HOME TO SCHOOL TRANSPORT,Woking All 3s,Hire of Transport - Non Staff,"3,774.00",Multi-purpose Veh
04/07/2023,SEN HOME TO SCHOOL TRANSPORT,Woking All 3s,Hire of Transport - Non Staff,"3,153.60",Multi-purpose Veh
04/07/2023,SEN HOME TO SCHOOL TRANSPORT,Woking All 3s,Hire of Transport - Non Staff,"5,844.60",Multi-purpose Veh
04/07/2023,SEN HOME TO SCHOOL TRANSPORT,Woking All 3s,Hire of Transport - Non Staff,"5,508.00",Multi-purpose Veh
04/07/2023,SURREY CHOICES TRANSPORT,Woking Community Transport Ltd (BUSTLER),Hire of Transport - Non Staff,"3,984.00",Multi-purpose Veh
04/07/2023,SEN HOME TO SCHOOL TRANSPORT,Woking Community Transport Ltd (BUSTLER),Hire of Transport - Non Staff,"2,550.00",Multi-purpose Veh
04/07/2023,SEN HOME TO SCHOOL TRANSPORT,Woking Community Transport Ltd (BUSTLER),Hire of Transport - Non Staff,"5,304.00",Multi-purpose Veh
04/07/2023,SEN HOME TO SCHOOL TRANSPORT,Woking Community Transport Ltd (BUSTLER),Hire of Transport - Non Staff,"3,646.50",Multi-purpose Veh
04/07/2023,TRANSPORT  MAINSTREAM SECDRY,Woking Community Transport Ltd (BUSTLER),Hire of Transport - Non Staff,"3,145.00",Multi-purpose Veh
04/07/2023,SEN HOME TO SCHOOL TRANSPORT,Woking Community Transport Ltd (BUSTLER),Hire of Transport - Non Staff,"3,571.02",Multi-purpose Veh
04/07/2023,SEN HOME TO SCHOOL TRANSPORT,Woking Community Transport Ltd (BUSTLER),Hire of Transport - Non Staff,"3,330.00",Multi-purpose Veh
04/07/2023,SEN HOME TO SCHOOL TRANSPORT,Woking Community Transport Ltd (BUSTLER),Hire of Transport - Non Staff,"3,999.60",Multi-purpose Veh
04/07/2023,TRANSPORT -MAINSTREAM PRIMARY,Woking Community Transport Ltd (BUSTLER),Hire of Transport - Non Staff,"3,213.00",Multi-purpose Veh
04/07/2023,SEN HOME TO SCHOOL TRANSPORT,Woking Community Transport Ltd (BUSTLER),Hire of Transport - Non Staff,"3,996.00",Multi-purpose Veh
04/07/2023,SEN HOME TO SCHOOL TRANSPORT,Woking Community Transport Ltd (BUSTLER),Hire of Transport - Non Staff,"3,296.70",Multi-purpose Veh
04/07/2023,SEN HOME TO SCHOOL TRANSPORT,Woking Community Transport Ltd (BUSTLER),Hire of Transport - Non Staff,"4,752.00",Multi-purpose Veh
04/07/2023,SEN HOME TO SCHOOL TRANSPORT,Woking Community Transport Ltd (BUSTLER),Hire of Transport - Non Staff,"2,952.00",Multi-purpose Veh
04/07/2023,SEN HOME TO SCHOOL TRANSPORT,Woking Community Transport Ltd (BUSTLER),Hire of Transport - Non Staff,"2,700.00",Multi-purpose Veh
04/07/2023,SEN HOME TO SCHOOL TRANSPORT,Woking Community Transport Ltd (BUSTLER),Hire of Transport - Non Staff,"2,628.00",Multi-purpose Veh
04/07/2023,SEN HOME TO SCHOOL TRANSPORT,Woking Community Transport Ltd (BUSTLER),Hire of Transport - Non Staff,"2,997.00",Multi-purpose Veh
04/07/2023,SEN HOME TO SCHOOL TRANSPORT,Woking Community Transport Ltd (BUSTLER),Hire of Transport - Non Staff,"2,997.00",Multi-purpose Veh
04/07/2023,SEN HOME TO SCHOOL TRANSPORT,Woking Community Transport Ltd (BUSTLER),Hire of Transport - Non Staff,"4,201.20",Multi-purpose Veh
04/07/2023,TRANSPORT -MAINSTREAM PRIMARY,Woking Community Transport Ltd (BUSTLER),Hire of Transport - Non Staff,"3,240.00",Multi-purpose Veh
04/07/2023,TRANSPORT -MAINSTREAM PRIMARY,Woking Community Transport Ltd (BUSTLER),Hire of Transport - Non Staff,"2,664.00",Multi-purpose Veh
04/07/2023,SPELTHORNE LOCAL CARE OP,Acacia Homecare,Home Care Services,823.15,Residential - LD
04/07/2023,NORTH EAST CWD NON-LAC CARE,Advantage Healthcare Ltd,Home Care Services,"29,200.50",General Supplies
04/07/2023,ELMBRIDGE LOCAL CARE OP,Agincare Group Ltd,Home Care Services,593.96,Dom Care - Adults
04/07/2023,ELMBRIDGE LOCAL CARE OP,Agincare Group Ltd,Home Care Services,593.96,Dom Care - Adults
04/07/2023,NORTH WEST CWD NON-LAC CARE,Ambition 24 Hours,Home Care Services,"1,775,971.05",Supp Living - MH
04/07/2023,MOLE VALLEY LOCAL CARE PD,Firstcol Ltd,Home Care Services,"1,940.40",Dom Care - Adults
04/07/2023,MOLE VALLEY LOCAL CARE PD,Firstcol Ltd,Home Care Services,"1,689.04",Dom Care - Adults
04/07/2023,MOLE VALLEY LOCAL CARE PD,Firstcol Ltd,Home Care Services,251.36,Dom Care - Adults
04/07/2023,MOLE VALLEY LOCAL CARE PD,Firstcol Ltd,Home Care Services,"2,103.30",Dom Care - Adults
04/07/2023,MOLE VALLEY LOCAL CARE PD,Firstcol Ltd,Home Care Services,"2,103.30",Dom Care - Adults
04/07/2023,SOUTH EAST CWD NON-LAC CARE,Topaz Care & Support Company Ltd,Home Care Services,"145,152.00",Short break
04/07/2023,TANDRIDGE LOCAL CARE PD,Triple Care Healthcare Services,Home Care Services,"1,958.58",Dom Care - Adults
04/07/2023,MOLE VALLEY LOCAL CARE OP,Triple Care Healthcare Services,Home Care Services,371.84,Dom Care - Adults
04/07/2023,MOLE VALLEY LOCAL CARE OP,Triple Care Healthcare Services,Home Care Services,610.12,Dom Care - Adults
04/07/2023,WAVERLEY LOCAL CARE OP,Triple Care Healthcare Services,Home Care Services,628.18,Dom Care - Adults
04/07/2023,REIGATE & BANSTEAD LOCAL CARE PD,Triple Care Healthcare Services,Home Care Services,"1,487.36",Dom Care - Adults
04/07/2023,WAVERLEY LOCAL CARE OP,Triple Care Healthcare Services,Home Care Services,438.90,Dom Care - Adults
04/07/2023,WAVERLEY LOCAL CARE OP,Triple Care Healthcare Services,Home Care Services,864.28,Dom Care - Adults
04/07/2023,WAVERLEY LOCAL CARE OP,Triple Care Healthcare Services,Home Care Services,"1,634.92",Dom Care - Adults
04/07/2023,REIGATE & BANSTEAD LOCAL CARE OP,Triple Care Healthcare Services,Home Care Services,273.48,Dom Care - Adults
04/07/2023,MOLE VALLEY LOCAL CARE OP,Triple Care Healthcare Services,Home Care Services,743.68,Dom Care - Adults
04/07/2023,WAVERLEY LOCAL CARE OP,Triple Care Healthcare Services,Home Care Services,567.84,Dom Care - Adults
04/07/2023,WAVERLEY LOCAL CARE OP,Triple Care Healthcare Services,Home Care Services,938.14,Dom Care - Adults
04/07/2023,WAVERLEY LOCAL CARE OP,Triple Care Healthcare Services,Home Care Services,628.18,Dom Care - Adults
04/07/2023,MOLE VALLEY LOCAL CARE OP,Triple Care Healthcare Services,Home Care Services,436.44,Dom Care - Adults
04/07/2023,REIGATE & BANSTEAD LOCAL CARE OP,Triple Care Healthcare Services,Home Care Services,638.12,Dom Care - Adults
04/07/2023,TANDRIDGE LOCAL CARE OP,Triple Care Healthcare Services,Home Care Services,"1,963.08",Dom Care - Adults
04/07/2023,TANDRIDGE LOCAL CARE OP,Triple Care Healthcare Services,Home Care Services,674.02,Dom Care - Adults
04/07/2023,TANDRIDGE LOCAL CARE OP,Triple Care Healthcare Services,Home Care Services,610.12,Dom Care - Adults
04/07/2023,LD-Autism Central Team Care,Triple Care Healthcare Services,Home Care Services,"3,365.52",Dom Care - Adults
04/07/2023,REIGATE & BANSTEAD LOCAL CARE OP,Triple Care Healthcare Services,Home Care Services,610.12,Dom Care - Adults
04/07/2023,WAVERLEY LOCAL CARE OP,Triple Care Healthcare Services,Home Care Services,486.36,Dom Care - Adults
04/07/2023,MOLE VALLEY LOCAL CARE OP,Triple Care Healthcare Services,Home Care Services,610.12,Dom Care - Adults
04/07/2023,REIGATE & BANSTEAD LOCAL CARE PD,Triple Care Healthcare Services,Home Care Services,364.64,Dom Care - Adults
04/07/2023,TANDRIDGE LOCAL CARE PD,Triple Care Healthcare Services,Home Care Services,"2,546.88",Dom Care - Adults
04/07/2023,TANDRIDGE LOCAL CARE OP,Triple Care Healthcare Services,Home Care Services,774.86,Dom Care - Adults
04/07/2023,MOLE VALLEY LOCAL CARE OP,Triple Care Healthcare Services,Home Care Services,"1,753.64",Dom Care - Adults
04/07/2023,TANDRIDGE LOCAL CARE PD,Triple Care Healthcare Services,Home Care Services,"1,381.80",Dom Care - Adults
04/07/2023,WAVERLEY LOCAL CARE OP,Triple Care Healthcare Services,Home Care Services,817.46,Dom Care - Adults
04/07/2023,WAVERLEY LOCAL CARE OP,Triple Care Healthcare Services,Home Care Services,817.46,Dom Care - Adults
04/07/2023,REIGATE & BANSTEAD LOCAL CARE PD,Triple Care Healthcare Services,Home Care Services,"2,343.60",Dom Care - Adults
04/07/2023,WAVERLEY LOCAL CARE OP,Triple Care Healthcare Services,Home Care Services,511.40,Dom Care - Adults
04/07/2023,WAVERLEY LOCAL CARE OP,Triple Care Healthcare Services,Home Care Services,497.88,Dom Care - Adults
04/07/2023,WAVERLEY LOCAL CARE OP,Triple Care Healthcare Services,Home Care Services,438.90,Dom Care - Adults
04/07/2023,WAVERLEY LOCAL CARE OP,Triple Care Healthcare Services,Home Care Services,"1,897.98",Dom Care - Adults
04/07/2023,WAVERLEY LOCAL CARE OP,Triple Care Healthcare Services,Home Care Services,"1,920.80",Dom Care - Adults
04/07/2023,MOLE VALLEY CMHRS CARE,Triple Care Healthcare Services,Home Care Services,873.22,Dom Care - Adults
04/07/2023,WAVERLEY LOCAL CARE OP,Triple Care Healthcare Services,Home Care Services,628.18,Dom Care - Adults
04/07/2023,WAVERLEY LOCAL CARE OP,Triple Care Healthcare Services,Home Care Services,723.10,Dom Care - Adults
04/07/2023,WAVERLEY LOCAL CARE OP,Triple Care Healthcare Services,Home Care Services,"1,189.04",Dom Care - Adults
04/07/2023,PLD HOUSING RELATED SUPPORT,Dimensions Personalised Support,Housing related support,262.61,Residential - OP
04/07/2023,PLD HOUSING RELATED SUPPORT,Dimensions Personalised Support,Housing related support,700.32,Residential - OP
04/07/2023,PLD HOUSING RELATED SUPPORT,Dimensions Personalised Support,Housing related support,350.16,Residential - OP
04/07/2023,SURREY LEADER PROGRAMME (SEEDA),Sevenoaks District Council,Legal Expenses,"1,167.60",Local Government
04/07/2023,INSURANCE FUND - PUBLIC LIABILITY,LACHS,Long Term - Other provisions,"7,250.00",Not Applicable
04/07/2023,EDUC-AREA A LORD KNYVETT,Redacted Personal Data,Movement in Reserves,390.00,Non Trade Payment
04/07/2023,GUILDFORD LOCAL CARE OP,Oak Hall Care Home,Nursing Care Respite,"1,000.00",Residential - OP
04/07/2023,GUILDFORD LOCAL CARE OP,Oak Hall Care Home,Nursing Care Respite,857.14,Residential - OP
04/07/2023,NHS HEALTH CHECKS,BHR Pharmaceuticals Ltd,Other Agencies/Contractors,"4,047.71",Health Promotion
04/07/2023,DOLS,Action First Assessments Ltd,Other Community Care,300.00,Other Care
04/07/2023,DOLS,Action First Assessments Ltd,Other Community Care,300.00,Other Care
04/07/2023,DOLS,Action First Assessments Ltd,Other Community Care,420.00,Other Care
04/07/2023,DOLS,Action First Assessments Ltd,Other Community Care,300.00,Other Care
04/07/2023,DOLS,Action First Assessments Ltd,Other Community Care,420.00,Other Care
04/07/2023,DOLS,Action First Assessments Ltd,Other Community Care,420.00,Other Care
04/07/2023,DOLS,Action First Assessments Ltd,Other Community Care,300.00,Other Care
04/07/2023,DOLS,Action First Assessments Ltd,Other Community Care,420.00,Other Care
04/07/2023,DOLS,Action First Assessments Ltd,Other Community Care,300.00,Other Care
04/07/2023,DOLS,Action First Assessments Ltd,Other Community Care,600.00,Other Care
04/07/2023,DOLS,Action First Assessments Ltd,Other Community Care,420.00,Other Care
04/07/2023,DOLS,Action First Assessments Ltd,Other Community Care,900.00,Other Care
04/07/2023,DOLS,Action First Assessments Ltd,Other Community Care,"1,500.00",Other Care
04/07/2023,DOLS,Action First Assessments Ltd,Other Community Care,"2,700.00",Other Care
04/07/2023,DOLS,Action First Assessments Ltd,Other Community Care,"2,100.00",Other Care
04/07/2023,DOLS,Action First Assessments Ltd,Other Community Care,600.00,Other Care
04/07/2023,DOLS,Action First Assessments Ltd,Other Community Care,300.00,Other Care
04/07/2023,DOLS,Action First Assessments Ltd,Other Community Care,300.00,Other Care
04/07/2023,DOLS,Action First Assessments Ltd,Other Community Care,300.00,Other Care
04/07/2023,DOLS,Action First Assessments Ltd,Other Community Care,300.00,Other Care
04/07/2023,DOLS,Action First Assessments Ltd,Other Community Care,420.00,Other Care
04/07/2023,REIGATE & BANSTEAD LOCAL CARE PD,Freer Farm Kennels & Cattery,Other Community Care,817.00,Animal Care Services
04/07/2023,DOLS,Furg! Enterprises Ltd,Other Community Care,"1,025.20",Foster Carers
04/07/2023,DIVERSITY AND INCLUSION,Interpreting Matters Ltd,Other Community Care,576.00,Interpret & Transl Serv
04/07/2023,DOLS,Redacted Personal Data,Other Community Care,289.60,Specialist Serv
04/07/2023,DOLS,Redacted Personal Data,Other Community Care,289.60,Specialist Serv
04/07/2023,DOLS,Redacted Personal Data,Other Community Care,288.70,Specialist Serv
04/07/2023,DOLS,TCKM Ltd,Other Community Care,269.00,Specialist Serv
04/07/2023,PLD TRANSITION CARE,Ruskin Mill Education Trust,Other Internal Transfers,"250,510.72",Residential - MH
04/07/2023,NORTH EAST AGENCY PLACE (ED),Achieving for Children Ltd,Payments to Other Local Authorities,"30,362.04",Occupational Therapy
04/07/2023,SOUTH WEST AGENCY PLACE (ED),Acorn Consultancy,Payments to Other Local Authorities,"9,304.62",SEND Agncy Placement
04/07/2023,SOUTH WEST AGENCY PLACE (ED),Ambergate Sports College (CIT),Payments to Other Local Authorities,"27,816.17",Edu Non-SEN Support
04/07/2023,NORTH EAST AGENCY PLACE (ED),Arbour Vale School,Payments to Other Local Authorities,"3,589.75",SEND Agncy Placement
04/07/2023,NORTH EAST AGENCY PLACE (ED),Arbour Vale School,Payments to Other Local Authorities,"2,692.31",SEND Agncy Placement
04/07/2023,NORTH EAST AGENCY PLACE (ED),Arbour Vale School,Payments to Other Local Authorities,"5,384.62",SEND Agncy Placement
04/07/2023,SOUTH EAST AGENCY PLACE (ED),Atelier 21 Ltd,Payments to Other Local Authorities,"20,691.67",SEND Agncy Placement
04/07/2023,NORTH EAST AGENCY PLACE (ED),Avenue Primary Academy,Payments to Other Local Authorities,"29,945.70",SEN OLA
04/07/2023,NORTH EAST AGENCY PLACE (ED),Avenue Primary Academy,Payments to Other Local Authorities,"2,423.88",SEN OLA
04/07/2023,SOUTH EAST AGENCY PLACE (ED),Avenue Primary Academy,Payments to Other Local Authorities,"14,270.04",SEN OLA
04/07/2023,NE AGENCY/SPI POST 16-EDUC,Beckmead School,Payments to Other Local Authorities,"30,272.64",SEN OLA
04/07/2023,SOUTH EAST AGENCY PLACE (ED),Beckmead School,Payments to Other Local Authorities,"39,605.36",SEN OLA
04/07/2023,NORTH EAST AGENCY PLACE (ED),Bedelsford School,Payments to Other Local Authorities,"9,101.24",SEN Specialist Supp
04/07/2023,NORTH EAST AGENCY PLACE (ED),Bedelsford School,Payments to Other Local Authorities,"9,651.08",SEN Specialist Supp
04/07/2023,NORTH EAST AGENCY PLACE (ED),Bedelsford School,Payments to Other Local Authorities,"7,060.00",SEN Specialist Supp
04/07/2023,NORTH EAST AGENCY PLACE (ED),Bedelsford School,Payments to Other Local Authorities,"9,651.08",SEN Specialist Supp
04/07/2023,NORTH EAST AGENCY PLACE (ED),Bedelsford School,Payments to Other Local Authorities,"9,651.08",SEN Specialist Supp
04/07/2023,NORTH EAST AGENCY PLACE (ED),Bedelsford School,Payments to Other Local Authorities,"11,696.64",SEN Specialist Supp
04/07/2023,NORTH EAST AGENCY PLACE (ED),Bedelsford School,Payments to Other Local Authorities,"9,651.08",SEN Specialist Supp
04/07/2023,NORTH EAST AGENCY PLACE (ED),Bedelsford School,Payments to Other Local Authorities,"9,101.24",SEN Specialist Supp
04/07/2023,NORTH EAST AGENCY PLACE (ED),Bedelsford School,Payments to Other Local Authorities,"9,101.24",SEN Specialist Supp
04/07/2023,SOUTH EAST AGENCY PLACE (ED),Bedelsford School,Payments to Other Local Authorities,"9,651.08",SEN Specialist Supp
04/07/2023,NORTH WEST AGENCY PLACE (ED),Bedelsford School,Payments to Other Local Authorities,"9,651.08",SEN Specialist Supp
04/07/2023,SOUTH EAST AGENCY PLACE (ED),Bedelsford School,Payments to Other Local Authorities,"11,696.64",SEN Specialist Supp
04/07/2023,SOUTH WEST AGENCY PLACE (ED),Brantridge School,Payments to Other Local Authorities,"11,538.54",SEND Agncy Placement
04/07/2023,SOUTH WEST AGENCY PLACE (ED),Brantridge School,Payments to Other Local Authorities,"11,538.54",SEND Agncy Placement
04/07/2023,SOUTH WEST AGENCY PLACE (ED),Brantridge School,Payments to Other Local Authorities,"11,538.54",SEND Agncy Placement
04/07/2023,SOUTH WEST AGENCY PLACE (ED),Brantridge School,Payments to Other Local Authorities,"11,538.54",SEND Agncy Placement
04/07/2023,NORTH WEST AGENCY PLACE (ED),Brantridge School,Payments to Other Local Authorities,"11,538.54",SEND Agncy Placement
04/07/2023,NORTH WEST AGENCY PLACE (ED),Brantridge School,Payments to Other Local Authorities,"11,538.54",SEND Agncy Placement
04/07/2023,NORTH WEST AGENCY PLACE (ED),Brantridge School,Payments to Other Local Authorities,"11,538.54",SEND Agncy Placement
04/07/2023,NORTH WEST AGENCY PLACE (ED),Brantridge School,Payments to Other Local Authorities,"11,538.54",SEND Agncy Placement
04/07/2023,SOUTH EAST AGENCY PLACE (ED),Brantridge School,Payments to Other Local Authorities,"11,538.54",SEND Agncy Placement
04/07/2023,SOUTH EAST AGENCY PLACE (ED),Brantridge School,Payments to Other Local Authorities,"11,538.54",SEND Agncy Placement
04/07/2023,SOUTH EAST AGENCY PLACE (ED),Brantridge School,Payments to Other Local Authorities,"11,538.54",SEND Agncy Placement
04/07/2023,SOUTH EAST AGENCY PLACE (ED),Brantridge School,Payments to Other Local Authorities,"11,538.54",SEND Agncy Placement
04/07/2023,SOUTH EAST AGENCY PLACE (ED),Brantridge School,Payments to Other Local Authorities,"11,538.54",SEND Agncy Placement
04/07/2023,SOUTH EAST AGENCY PLACE (ED),Brantridge School,Payments to Other Local Authorities,"11,538.54",SEND Agncy Placement
04/07/2023,SOUTH EAST AGENCY PLACE (ED),Brantridge School,Payments to Other Local Authorities,"11,538.54",SEND Agncy Placement
04/07/2023,SOUTH EAST AGENCY PLACE (ED),Brantridge School,Payments to Other Local Authorities,"11,538.54",SEND Agncy Placement
04/07/2023,SOUTH EAST AGENCY PLACE (ED),Brantridge School,Payments to Other Local Authorities,"11,538.54",SEND Agncy Placement
04/07/2023,SOUTH EAST AGENCY PLACE (ED),Brantridge School,Payments to Other Local Authorities,"11,538.54",SEND Agncy Placement
04/07/2023,SOUTH EAST AGENCY PLACE (ED),Brantridge School,Payments to Other Local Authorities,"11,538.54",SEND Agncy Placement
04/07/2023,SOUTH EAST AGENCY PLACE (ED),Brantridge School,Payments to Other Local Authorities,"11,538.54",SEND Agncy Placement
04/07/2023,SOUTH EAST AGENCY PLACE (ED),Brantridge School,Payments to Other Local Authorities,"11,538.54",SEND Agncy Placement
04/07/2023,SOUTH EAST AGENCY PLACE (ED),Brantridge School,Payments to Other Local Authorities,"11,538.54",SEND Agncy Placement
04/07/2023,SOUTH EAST AGENCY PLACE (ED),Brantridge School,Payments to Other Local Authorities,"11,538.54",SEND Agncy Placement
04/07/2023,SOUTH EAST AGENCY PLACE (ED),Brantridge School,Payments to Other Local Authorities,"11,538.54",SEND Agncy Placement
04/07/2023,SOUTH EAST AGENCY PLACE (ED),Brantridge School,Payments to Other Local Authorities,"11,538.54",SEND Agncy Placement
04/07/2023,SOUTH EAST AGENCY PLACE (ED),Brantridge School,Payments to Other Local Authorities,"33,231.06",SEND Agncy Placement
04/07/2023,SOUTH EAST AGENCY PLACE (ED),Brantridge School,Payments to Other Local Authorities,"33,231.06",SEND Agncy Placement
04/07/2023,NORTH WEST AGENCY PLACE (ED),Brantridge School,Payments to Other Local Authorities,"33,231.06",SEND Agncy Placement
04/07/2023,SOUTH EAST AGENCY PLACE (ED),Carew Academy,Payments to Other Local Authorities,"2,883.24",SEN OLA
04/07/2023,SOUTH EAST AGENCY PLACE (ED),Carew Academy,Payments to Other Local Authorities,"2,883.24",SEN OLA
04/07/2023,NORTH EAST AGENCY PLACE (ED),Carew Academy,Payments to Other Local Authorities,"1,583.38",SEN OLA
04/07/2023,SE AGENCY/SPI POST 16-EDUC,Carew Academy,Payments to Other Local Authorities,"2,258.32",SEN OLA
04/07/2023,SOUTH EAST AGENCY PLACE (ED),Carew Academy,Payments to Other Local Authorities,"5,406.05",SEN OLA
04/07/2023,NORTH EAST AGENCY PLACE (ED),Clarendon School,Payments to Other Local Authorities,"11,766.06",SEND Agncy Placement
04/07/2023,NORTH EAST AGENCY PLACE (ED),Clarendon School,Payments to Other Local Authorities,"11,766.06",SEND Agncy Placement
04/07/2023,NORTH EAST AGENCY PLACE (ED),Clarendon School,Payments to Other Local Authorities,"1,085.24",SEND Agncy Placement
04/07/2023,NORTH EAST AGENCY PLACE (ED),Compass Childrens Homes Kent Ltd,Payments to Other Local Authorities,"29,005.14",SEND Agncy Placement
04/07/2023,NORTH EAST AGENCY PLACE (ED),Cowes Enterprise College,Payments to Other Local Authorities,"85,666.02",Edu Non-SEN Support
04/07/2023,NORTH EAST AGENCY PLACE (ED),Dysart School,Payments to Other Local Authorities,"6,594.75",SEND Agncy Placement
04/07/2023,NORTH EAST AGENCY PLACE (ED),Dysart School,Payments to Other Local Authorities,"6,602.58",SEND Agncy Placement
04/07/2023,NE AGENCY/SPI POST 16-EDUC,Dysart School,Payments to Other Local Authorities,"6,589.54",SEND Agncy Placement
04/07/2023,CIVIL PARKING ENFORCEMENT (CPE),Elmbridge Borough Council,Payments to Other Local Authorities,"813,206.31",Local Government
04/07/2023,SOUTH EAST AGENCY PLACE (ED),Kent County Council,Payments to Other Local Authorities,"6,525.93",School Support Serv
04/07/2023,SW AGENCY/SPI POST 16-EDUC,Medway Council,Payments to Other Local Authorities,"46,400.00",Health Promotion
04/07/2023,SE AGENCY/SPI POST 16-EDUC,Moor House School & College,Payments to Other Local Authorities,"15,044.32",School Support Serv
04/07/2023,SOUTH EAST AGENCY PLACE (ED),Wells Park School,Payments to Other Local Authorities,"1,794.88",SEN OLA
04/07/2023,BUSINESS SUPPORT & CUSTOMER SERVICE TEAM,Poulsom Plant Hire,Payments to Private Contractors,"2,454.00",Not Applicable
04/07/2023,BUSINESS SUPPORT & CUSTOMER SERVICE TEAM,Signal Services Ltd,Payments to Private Contractors,"3,338.40",Highway Maintenance
04/07/2023,BUSINESS SUPPORT & CUSTOMER SERVICE TEAM,Signal Services Ltd,Payments to Private Contractors,"1,440.00",Highway Maintenance
04/07/2023,BUSINESS SUPPORT & CUSTOMER SERVICE TEAM,Signal Services Ltd,Payments to Private Contractors,"1,728.00",Highway Maintenance
04/07/2023,WOODHATCH,Quadient UK Ltd,Postages,389.87,Postage
04/07/2023,TRANSPORT  MAINSTREAM SECDRY,Redacted Personal Data,Public Transport - Non Staff,376.20,CYP Transport
04/07/2023,SEN HOME TO SCHOOL TRANSPORT,Redacted Personal Data,Public Transport - Non Staff,341.14,CYP Transport
04/07/2023,SEN HOME TO SCHOOL TRANSPORT,Redacted Personal Data,Public Transport - Non Staff,687.36,Invoicing Plan Req.
04/07/2023,SEN HOME TO SCHOOL TRANSPORT,Redacted Personal Data,Public Transport - Non Staff,500.85,CYP Transport
04/07/2023,SERVICE DELIVERY SENIOR MANAGEMENT,Rentokil Initial UK Ltd,Refuse Collection,"1,224.46",General Build Maint
04/07/2023,SOUTH EAST CWD NON-LAC CARE,Abbey Wood Station Minicabs Ltd,Residential Care Respite,"63,294.00",CYP Transport
04/07/2023,ELMBRIDGE LOCAL CARE PD,Alum Care Ltd,Residential Care Respite,"2,039.44",Residential - LD
04/07/2023,NORTH EAST CWD NON-LAC CARE,Crossroads Care Surrey,Residential Care Respite,787.50,Dom Care - Adults
04/07/2023,LEARNING AND DEV,Landmarc Support Services Ltd,Training Expenses - External General,"1,390.00",Fire Serv Training
05/07/2023,PLANNING DEVELOPMENT CONTROL TEAM,TMP (UK) Ltd,Advertising (Statutory Notices),431.57,Advert Promo & Rec
05/07/2023,ROW MAINTENANCE,TMP Worldwide,Advertising (Statutory Notices),304.75,Advert Promo & Rec
05/07/2023,SIGNS AND LINES OTHER RDS PARKING,TMP Worldwide,Advertising (Statutory Notices),502.27,Advert Promo & Rec
05/07/2023,PLANNING DEVELOPMENT CONTROL TEAM,TMP Worldwide,Advertising (Statutory Notices),727.78,Advert Promo & Rec
05/07/2023,PARKING TEAM,TMP Worldwide,Advertising (Statutory Notices),359.64,Advert Promo & Rec
05/07/2023,PLANNING DEVELOPMENT CONTROL TEAM,TMP Worldwide,Advertising (Statutory Notices),268.13,Advert Promo & Rec
05/07/2023,PLANNING DEVELOPMENT CONTROL TEAM,TMP Worldwide,Advertising (Statutory Notices),251.14,Advert Promo & Rec
05/07/2023,PARKING TEAM,TMP Worldwide,Advertising (Statutory Notices),251.14,Advert Promo & Rec
05/07/2023,PLANNING DEVELOPMENT CONTROL TEAM,TMP Worldwide,Advertising (Statutory Notices),292.99,Advert Promo & Rec
05/07/2023,FRIMLEY CE,Aramark Ltd,Catering,"13,329.52",Catering Supplies
05/07/2023,SE CARE - NON-LAC CP & COURT,Redacted Personal Data,Children's Act S24 Payments,501.92,Adults direct payment
05/07/2023,NW CARE - NON-LAC CP & COURT,Redacted Personal Data,Children's Act S24 Payments,460.46,Foster Carers
05/07/2023,NW CARE - CP & COURT LAC,Redacted Personal Data,Children's Act S24 Payments,571.98,Invoicing Plan Req.
05/07/2023,NE CARE - CARE LEAVERS,Redacted Personal Data,Children's Act S24 Payments,380.00,Invoicing Plan Req.
05/07/2023,NW CARE - CARE LEAVERS,Redacted Personal Data,Children's Act S24 Payments,"1,565.00",Foster Carers
05/07/2023,NW CARE - NON-LAC CP & COURT,Redacted Personal Data,Children's Act S24 Payments,300.00,Dom Care - Children
05/07/2023,NW CARE - NON-LAC CP & COURT,Redacted Personal Data,Children's Act S24 Payments,"1,067.88",CWD Carers
05/07/2023,NE UASC UNDER 18,Carter Brown The Expert Service,Client Related Assessments,"3,467.96",Parent & Child Asses
05/07/2023,NORTH EAST CWD NON-LAC CARE,Hughes Mini Services,Coach Escorts Contracted,289.56,Multi-purpose Veh
05/07/2023,NORTH EAST CWD NON-LAC CARE,Hughes Mini Services,Coach Escorts Contracted,457.20,Multi-purpose Veh
05/07/2023,NORTH EAST CWD NON-LAC CARE,Hughes Mini Services,Coach Escorts Contracted,411.48,Multi-purpose Veh
05/07/2023,PLD TRANSITION CARE,Swan School Services Ltd,Coach Escorts Contracted,680.00,Multi-purpose Veh
05/07/2023,LD-Autism Central Team Care,Swan School Services Ltd,Coach Escorts Contracted,340.00,Multi-purpose Veh
05/07/2023,SEN HOME TO SCHOOL TRANSPORT,UK Car Service,Coach Escorts Contracted,"1,024.80",Multi-purpose Veh
05/07/2023,SEN HOME TO SCHOOL TRANSPORT,UK Car Service,Coach Escorts Contracted,710.40,Multi-purpose Veh
05/07/2023,SEN HOME TO SCHOOL TRANSPORT,UK Car Service,Coach Escorts Contracted,"1,036.80",Multi-purpose Veh
05/07/2023,SEN HOME TO SCHOOL TRANSPORT,UK Car Service,Coach Escorts Contracted,"1,080.00",Multi-purpose Veh
05/07/2023,SEN HOME TO SCHOOL TRANSPORT,UK Car Service,Coach Escorts Contracted,"1,490.40",Multi-purpose Veh
05/07/2023,SEN HOME TO SCHOOL TRANSPORT,UK Car Service,Coach Escorts Contracted,576.00,Multi-purpose Veh
05/07/2023,SEN HOME TO SCHOOL TRANSPORT,UK Car Service,Coach Escorts Contracted,"1,188.00",Multi-purpose Veh
05/07/2023,SEN HOME TO SCHOOL TRANSPORT,UK Car Service,Coach Escorts Contracted,"1,346.40",Multi-purpose Veh
05/07/2023,SEN HOME TO SCHOOL TRANSPORT,UK Car Service,Coach Escorts Contracted,"1,080.00",Multi-purpose Veh
05/07/2023,SEN HOME TO SCHOOL TRANSPORT,UK Car Service,Coach Escorts Contracted,"1,425.60",Multi-purpose Veh
05/07/2023,SEN HOME TO SCHOOL TRANSPORT,UK Car Service,Coach Escorts Contracted,"1,069.20",Multi-purpose Veh
05/07/2023,LAND & PROPERTY CAPITAL,CEI Electrical Services Ltd,"Construction, Conversion & Renovation","10,764.72",M&E Maintenance
05/07/2023,LAND & PROPERTY CAPITAL,Corrigenda Ltd,"Construction, Conversion & Renovation","9,465.17",Not Applicable
05/07/2023,LAND & PROPERTY CAPITAL,Pelling LLP,"Construction, Conversion & Renovation","14,277.54",M-D (Property)
05/07/2023,HR - CSF TRAINING OPEN PROGRAMME,In-Trac Training & Consultancy Ltd,Consultancy Services,"2,400.00",Staff Training
05/07/2023,ACTIVE SURREY,Redacted Personal Data,Consultancy Services,"1,286.90",Non-Staff Training
05/07/2023,EIF 3 & 4 YR OLD,Crescent Nursery School,Contributions to third parties,500.00,Nurseries
05/07/2023,EIF 3 & 4 YR OLD,Crescent Nursery School,Contributions to third parties,500.00,Nurseries
05/07/2023,EIF 2 YR OLD,Starfish Childrens Day Nursery,Contributions to third parties,616.00,Nursery
05/07/2023,EIF 2 YR OLD,Starfish Childrens Day Nursery,Contributions to third parties,"1,000.00",Nursery
05/07/2023,EIF 2 YR OLD,Starfish Childrens Day Nursery,Contributions to third parties,"1,000.00",Nursery
05/07/2023,EIF 2 YR OLD,Starfish Childrens Day Nursery,Contributions to third parties,360.00,Nursery
05/07/2023,LD-Autism Central Team Care,Voyage Ltd,Day Care Services,"3,582.23",Residential - MH
05/07/2023,LD-Autism Central Team Care,Voyage Ltd,Day Care Services,"3,340.76",Residential - MH
05/07/2023,LD-Autism Central Team Care,Voyage Ltd,Day Care Services,369.17,Residential - MH
05/07/2023,LD-Autism Central Team Care,Voyage Ltd,Day Care Services,"3,192.58",Residential - MH
05/07/2023,EPSOM & EWELL LOCAL CARE PD,Redacted Personal Data,Direct Payments,527.09,Adults direct payment
05/07/2023,PLD TRANSITION CARE,Redacted Personal Data,Direct Payments,275.15,Individual - NEC
05/07/2023,NE CARE - LAC,Dove (Littlehampton) Ltd,Educational Visits Holidays Camps Toys,550.00,Supervised Contact
05/07/2023,SW CARE - CP & COURT LAC,Frimley Green Pre School,Educational Visits Holidays Camps Toys,645.00,Nurseries
05/07/2023,SW CARE - NON-LAC CP & COURT,Redacted Personal Data,Educational Visits Holidays Camps Toys,349.99,CWD Carers
05/07/2023,NE IPSB - OUT COUNTY,ACS Cobham International School,External Placement Fees,"511,461.60",Schools
05/07/2023,SE IPSB - OUT COUNTY,Banstead Preparatory School,External Placement Fees,"26,339.00",Playgroup
05/07/2023,POST 16 PLACEMENTS NW,Brooklands College,External Placement Fees,"25,193.84",School Support Serv
05/07/2023,POST 16 PLACEMENTS NW,Brooklands College,External Placement Fees,"22,925.84",School Support Serv
05/07/2023,POST 16 PLACEMENTS NE,Brooklands College,External Placement Fees,"12,226.40",School Support Serv
05/07/2023,POST 16 PLACEMENTS NE,Brooklands College,External Placement Fees,"28,417.95",School Support Serv
05/07/2023,POST 16 PLACEMENTS NW,Brooklands College,External Placement Fees,"3,716.93",School Support Serv
05/07/2023,POST 16 PLACEMENTS NE,Brooklands College,External Placement Fees,"4,827.36",School Support Serv
05/07/2023,POST 16 PLACEMENTS NW,Brooklands College,External Placement Fees,"19,878.11",School Support Serv
05/07/2023,POST 16 PLACEMENTS NW,Brooklands College,External Placement Fees,"15,190.16",School Support Serv
05/07/2023,POST 16 PLACEMENTS NE,Brooklands College,External Placement Fees,"17,401.51",School Support Serv
05/07/2023,POST 16 PLACEMENTS NE,Brooklands College,External Placement Fees,"12,153.33",School Support Serv
05/07/2023,POST 16 PLACEMENTS NE,Brooklands College,External Placement Fees,"3,243.12",School Support Serv
05/07/2023,POST 16 PLACEMENTS NE,Brooklands College,External Placement Fees,"1,815.13",School Support Serv
05/07/2023,POST 16 PLACEMENTS NW,Brooklands College,External Placement Fees,"12,993.39",School Support Serv
05/07/2023,POST 16 PLACEMENTS NE,Brooklands College,External Placement Fees,"7,423.29",School Support Serv
05/07/2023,POST 16 PLACEMENTS SE,Brooklands College,External Placement Fees,"3,952.00",School Support Serv
05/07/2023,POST 16 PLACEMENTS SE,Brooklands College,External Placement Fees,"1,371.06",School Support Serv
05/07/2023,POST 16 PLACEMENTS NE,Brooklands College,External Placement Fees,"7,206.12",School Support Serv
05/07/2023,POST 16 PLACEMENTS NW,Brooklands College,External Placement Fees,"13,561.70",School Support Serv
05/07/2023,POST 16 PLACEMENTS NE,Brooklands College,External Placement Fees,"1,430.44",School Support Serv
05/07/2023,POST 16 PLACEMENTS NW,Brooklands College,External Placement Fees,"26,585.20",School Support Serv
05/07/2023,POST 16 PLACEMENTS NW,Brooklands College,External Placement Fees,"12,782.70",School Support Serv
05/07/2023,POST 16 PLACEMENTS NW,Brooklands College,External Placement Fees,"11,379.36",School Support Serv
05/07/2023,POST 16 PLACEMENTS NE,Brooklands College,External Placement Fees,"15,742.40",School Support Serv
05/07/2023,POST 16 PLACEMENTS NW,Brooklands College,External Placement Fees,"9,499.60",School Support Serv
05/07/2023,POST 16 PLACEMENTS NE,Brooklands College,External Placement Fees,"4,032.40",School Support Serv
05/07/2023,POST 16 PLACEMENTS NE,Brooklands College,External Placement Fees,"1,815.13",School Support Serv
05/07/2023,POST 16 PLACEMENTS NW,Brooklands College,External Placement Fees,"2,212.20",School Support Serv
05/07/2023,POST 16 PLACEMENTS NW,Brooklands College,External Placement Fees,"6,291.76",School Support Serv
05/07/2023,POST 16 PLACEMENTS NW,Brooklands College,External Placement Fees,"1,815.13",School Support Serv
05/07/2023,POST 16 PLACEMENTS SW,Brooklands College,External Placement Fees,"18,723.96",School Support Serv
05/07/2023,POST 16 PLACEMENTS SW,Brooklands College,External Placement Fees,"1,815.13",School Support Serv
05/07/2023,POST 16 PLACEMENTS NE,Brooklands College,External Placement Fees,"13,229.46",School Support Serv
05/07/2023,POST 16 PLACEMENTS NW,Brooklands College,External Placement Fees,"3,572.66",School Support Serv
05/07/2023,POST 16 PLACEMENTS NW,Brooklands College,External Placement Fees,"1,815.13",School Support Serv
05/07/2023,POST 16 PLACEMENTS NW,Brooklands College,External Placement Fees,"12,212.46",School Support Serv
05/07/2023,POST 16 PLACEMENTS NE,Brooklands College,External Placement Fees,"3,465.48",School Support Serv
05/07/2023,POST 16 PLACEMENTS NE,Brooklands College,External Placement Fees,"1,815.13",School Support Serv
05/07/2023,POST 16 PLACEMENTS NW,Brooklands College,External Placement Fees,"4,013.66",School Support Serv
05/07/2023,POST 16 PLACEMENTS NW,Brooklands College,External Placement Fees,"1,815.13",School Support Serv
05/07/2023,POST 16 PLACEMENTS NE,Brooklands College,External Placement Fees,"15,095.68",School Support Serv
05/07/2023,POST 16 PLACEMENTS NE,Brooklands College,External Placement Fees,"1,815.13",School Support Serv
05/07/2023,POST 16 PLACEMENTS NE,Brooklands College,External Placement Fees,"2,212.20",School Support Serv
05/07/2023,POST 16 PLACEMENTS NW,Brooklands College,External Placement Fees,"5,500.86",School Support Serv
05/07/2023,POST 16 PLACEMENTS NW,Brooklands College,External Placement Fees,"1,815.13",School Support Serv
05/07/2023,POST 16 PLACEMENTS NW,Brooklands College,External Placement Fees,"9,499.60",School Support Serv
05/07/2023,POST 16 PLACEMENTS NE,Brooklands College,External Placement Fees,"6,624.20",School Support Serv
05/07/2023,POST 16 PLACEMENTS SW,Brooklands College,External Placement Fees,"3,296.82",School Support Serv
05/07/2023,POST 16 PLACEMENTS SW,Brooklands College,External Placement Fees,"1,815.13",School Support Serv
05/07/2023,POST 16 PLACEMENTS NE,Brooklands College,External Placement Fees,"7,858.06",School Support Serv
05/07/2023,POST 16 PLACEMENTS NE,Brooklands College,External Placement Fees,"1,815.13",School Support Serv
05/07/2023,POST 16 PLACEMENTS NE,Brooklands College,External Placement Fees,"6,056.00",School Support Serv
05/07/2023,POST 16 PLACEMENTS NW,Brooklands College,External Placement Fees,"23,878.32",School Support Serv
05/07/2023,POST 16 PLACEMENTS NE,Brooklands College,External Placement Fees,"1,399.55",School Support Serv
05/07/2023,POST 16 PLACEMENTS NE,Brooklands College,External Placement Fees,"4,507.30",School Support Serv
05/07/2023,POST 16 PLACEMENTS NW,Brooklands College,External Placement Fees,"2,212.20",School Support Serv
05/07/2023,POST 16 PLACEMENTS SE,Brooklands College,External Placement Fees,"5,612.16",School Support Serv
05/07/2023,POST 16 PLACEMENTS SE,Brooklands College,External Placement Fees,"1,815.13",School Support Serv
05/07/2023,POST 16 PLACEMENTS NE,Brooklands College,External Placement Fees,"4,013.66",School Support Serv
05/07/2023,POST 16 PLACEMENTS NE,Brooklands College,External Placement Fees,"1,815.13",School Support Serv
05/07/2023,POST 16 PLACEMENTS NE,Brooklands College,External Placement Fees,"10,636.47",School Support Serv
05/07/2023,POST 16 PLACEMENTS SW,Cambridge Online Education Ltd,External Placement Fees,"9,840.00",SEN Specialist Supp
05/07/2023,POST 16 PLACEMENTS SE,Carshalton College,External Placement Fees,"38,835.50",Multi-purpose Veh
05/07/2023,POST 16 PLACEMENTS SE,Carshalton College,External Placement Fees,"5,580.84",Multi-purpose Veh
05/07/2023,POST 16 PLACEMENTS SE,Carshalton College,External Placement Fees,"1,800.56",Multi-purpose Veh
05/07/2023,POST 16 PLACEMENTS SE,Chichester College Group,External Placement Fees,"153,226.26",Grants - Member Allocation
05/07/2023,NE IPSB - OUT COUNTY,Chinthurst School,External Placement Fees,"3,141.10",Schools
05/07/2023,HOSPITAL EXPENDITURE SW,Cygnet Health Care Ltd,External Placement Fees,"7,524.00",Residential - MH
05/07/2023,HOSPITAL EXPENDITURE SW,Cygnet Health Care Ltd,External Placement Fees,"39,672.00",Residential - MH
05/07/2023,POST 16 PLACEMENTS SE,East Surrey College,External Placement Fees,"37,702.40",Schools
05/07/2023,POST 16 PLACEMENTS SE,East Surrey College,External Placement Fees,"8,463.84",Schools
05/07/2023,POST 16 PLACEMENTS SE,East Surrey College,External Placement Fees,"10,177.47",Schools
05/07/2023,POST 16 PLACEMENTS SE,East Surrey College,External Placement Fees,"16,699.34",Schools
05/07/2023,POST 16 PLACEMENTS SE,East Surrey College,External Placement Fees,"18,581.85",Schools
05/07/2023,POST 16 PLACEMENTS SE,East Surrey College,External Placement Fees,"35,800.40",Schools
05/07/2023,POST 16 PLACEMENTS SE,East Surrey College,External Placement Fees,"22,340.00",Schools
05/07/2023,POST 16 PLACEMENTS SE,East Surrey College,External Placement Fees,"33,921.36",Schools
05/07/2023,POST 16 PLACEMENTS SE,East Surrey College,External Placement Fees,"16,222.08",Schools
05/07/2023,POST 16 PLACEMENTS SE,East Surrey College,External Placement Fees,"29,615.36",Schools
05/07/2023,POST 16 PLACEMENTS SE,East Surrey College,External Placement Fees,"33,921.36",Schools
05/07/2023,POST 16 PLACEMENTS SE,East Surrey College,External Placement Fees,"24,407.73",Schools
05/07/2023,POST 16 PLACEMENTS SE,East Surrey College,External Placement Fees,"12,445.80",Schools
05/07/2023,POST 16 PLACEMENTS SE,East Surrey College,External Placement Fees,"28,626.80",Schools
05/07/2023,POST 16 PLACEMENTS SE,East Surrey College,External Placement Fees,"18,563.04",Schools
05/07/2023,POST 16 PLACEMENTS SE,East Surrey College,External Placement Fees,"11,613.44",Schools
05/07/2023,POST 16 PLACEMENTS SE,East Surrey College,External Placement Fees,"18,563.04",Schools
05/07/2023,POST 16 PLACEMENTS SE,East Surrey College,External Placement Fees,"11,307.96",Schools
05/07/2023,POST 16 PLACEMENTS SE,East Surrey College,External Placement Fees,"52,191.63",Schools
05/07/2023,POST 16 PLACEMENTS SE,East Surrey College,External Placement Fees,"33,921.36",Schools
05/07/2023,NW IPSB - OUT COUNTY,Greenfield School,External Placement Fees,"221,301.60",Schools
05/07/2023,NW IPSB - OUT COUNTY,Greenfield School,External Placement Fees,"76,221.60",Schools
05/07/2023,NW IPSB - OUT COUNTY,Greenfield School,External Placement Fees,"584,001.60",Schools
05/07/2023,POST 16 PLACEMENTS SW,Guildford College of F & H Education,External Placement Fees,"112,796.00",Staff Training
05/07/2023,POST 16 PLACEMENTS NE,Guildford College of F & H Education,External Placement Fees,"70,643.79",Staff Training
05/07/2023,SW IPSB - OUT COUNTY,Highfield & Brookham Schools,External Placement Fees,"7,207.50",SEND Agncy Placement
05/07/2023,NW IPSB - OUT COUNTY,Hoe Bridge School,External Placement Fees,"17,829.50",Schools
05/07/2023,NW IPSB - OUT COUNTY,Hoe Bridge School,External Placement Fees,"10,535.50",Schools
05/07/2023,NW IPSB - OUT COUNTY,Hoe Bridge School,External Placement Fees,"52,957.60",Schools
05/07/2023,NW IPSB - OUT COUNTY,Hoe Bridge School,External Placement Fees,"39,916.40",Schools
05/07/2023,NW IPSB - OUT COUNTY,Hoe Bridge School,External Placement Fees,"7,365.96",Schools
05/07/2023,NW IPSB - OUT COUNTY,Hoe Bridge School,External Placement Fees,"12,361.80",Schools
05/07/2023,POST 16 PLACEMENTS SE,Kingston College,External Placement Fees,"9,510.52",Staff Training
05/07/2023,POST 16 PLACEMENTS NE,Kingston College,External Placement Fees,"5,525.46",Staff Training
05/07/2023,POST 16 PLACEMENTS NE,Kingston College,External Placement Fees,"2,311.98",Staff Training
05/07/2023,POST 16 PLACEMENTS NE,Kingston College,External Placement Fees,"15,092.20",Staff Training
05/07/2023,POST 16 PLACEMENTS NE,Kingston College,External Placement Fees,"5,364.40",Staff Training
05/07/2023,POST 16 PLACEMENTS NE,Kingston College,External Placement Fees,"7,625.64",Staff Training
05/07/2023,POST 16 PLACEMENTS NE,Kingston College,External Placement Fees,"11,653.80",Staff Training
05/07/2023,POST 16 PLACEMENTS NE,Kingston College,External Placement Fees,"19,470.40",Staff Training
05/07/2023,POST 16 PLACEMENTS NE,Kingston College,External Placement Fees,"73,850.25",Staff Training
05/07/2023,POST 16 PLACEMENTS NE,Kingston College,External Placement Fees,"5,976.60",Staff Training
05/07/2023,POST 16 PLACEMENTS NE,Kingston College,External Placement Fees,"16,771.89",Staff Training
05/07/2023,POST 16 PLACEMENTS NE,Kingston College,External Placement Fees,"14,064.48",Staff Training
05/07/2023,POST 16 PLACEMENTS NE,Kingston College,External Placement Fees,"28,786.64",Staff Training
05/07/2023,SE IPSB - OUT COUNTY,Kingswood House School,External Placement Fees,"3,726.65",School Support Serv
05/07/2023,SE IPSB - OUT COUNTY,Kingswood House School,External Placement Fees,"4,968.85",School Support Serv
05/07/2023,SE IPSB - OUT COUNTY,Kingswood House School,External Placement Fees,"1,447.25",School Support Serv
05/07/2023,NE IPSB - OUT COUNTY,Kingswood House School,External Placement Fees,"8,816.80",School Support Serv
05/07/2023,SE IPSB - OUT COUNTY,Kingswood House School,External Placement Fees,"4,968.85",School Support Serv
05/07/2023,SE IPSB - OUT COUNTY,Kingswood House School,External Placement Fees,"309,649.86",School Support Serv
05/07/2023,NE IPSB - OUT COUNTY,Kingswood House School,External Placement Fees,"3,847.90",School Support Serv
05/07/2023,AGENCY NON CWD SOCIAL CARE,Nashe UK Ltd,External Placement Fees,"1,013,338.06",Sup Living Children
05/07/2023,AGENCY NON CWD SOCIAL CARE,Nashe UK Ltd,External Placement Fees,"161,100.00",Sup Living Children
05/07/2023,POST 16 PLACEMENTS NE,North East Surrey College of Technology,External Placement Fees,"8,731.04",Staff Training
05/07/2023,POST 16 PLACEMENTS SE,North East Surrey College of Technology,External Placement Fees,"8,731.04",Staff Training
05/07/2023,POST 16 PLACEMENTS SE,North East Surrey College of Technology,External Placement Fees,"80,486.10",Staff Training
05/07/2023,SW IPSB - OUT COUNTY,OneSchool Global UK Hindhead Campus,External Placement Fees,"163,269.60",SEND Agncy Placement
05/07/2023,SW IPSB - OUT COUNTY,OneSchool Global UK Hindhead Campus,External Placement Fees,"63,645.15",SEND Agncy Placement
05/07/2023,SW IPSB - OUT COUNTY,OneSchool Global UK Hindhead Campus,External Placement Fees,"31,759.64",SEND Agncy Placement
05/07/2023,SW IPSB - OUT COUNTY,OneSchool Global UK Hindhead Campus,External Placement Fees,"6,605.39",SEND Agncy Placement
05/07/2023,HOSPITAL EXPENDITURE NE,Priory Lodge School,External Placement Fees,"2,250.00",SEND Agncy Placement
05/07/2023,HOSPITAL EXPENDITURE NE,Priory Lodge School,External Placement Fees,"2,625.00",SEND Agncy Placement
05/07/2023,NW IPSB - OUT COUNTY,Reed�s School,External Placement Fees,"16,208.50",SEN Specialist Supp
05/07/2023,NE IPSB - OUT COUNTY,Reed�s School,External Placement Fees,"366,381.60",SEN Specialist Supp
05/07/2023,NE IPSB - OUT COUNTY,Rowan Preparatory School,External Placement Fees,"3,553.00",Schools
05/07/2023,NE IPSB - OUT COUNTY,Rowan Preparatory School,External Placement Fees,"5,200.40",Schools
05/07/2023,NE IPSB - OUT COUNTY,Shrewsbury House Pre Preparatory School,External Placement Fees,"5,663.05",Nursery
05/07/2023,SW IPSB - OUT COUNTY,St Edmund's School,External Placement Fees,"159,137.88",Schools
05/07/2023,NE IPSB - OUT COUNTY,St George's College,External Placement Fees,"3,141.10",Schools
05/07/2023,NE IPSB - OUT COUNTY,St George's College,External Placement Fees,"10,296.45",Schools
05/07/2023,NE IPSB - OUT COUNTY,St George's College,External Placement Fees,"3,141.10",Schools
05/07/2023,SW IPSB - OUT COUNTY,St Hilary's School Trust Ltd,External Placement Fees,"20,466.20",Schools
05/07/2023,SW IPSB - OUT COUNTY,St Hilary's School Trust Ltd,External Placement Fees,"12,361.80",Schools
05/07/2023,SW IPSB - OUT COUNTY,St Hilary's School Trust Ltd,External Placement Fees,"32,622.80",Schools
05/07/2023,SW IPSB - OUT COUNTY,St Hilary's School Trust Ltd,External Placement Fees,"10,741.20",Schools
05/07/2023,SW IPSB - OUT COUNTY,St Hilary's School Trust Ltd,External Placement Fees,"64,291.50",Schools
05/07/2023,NE IPSB - OUT COUNTY,St John's School,External Placement Fees,"9,120.20",Schools
05/07/2023,NE IPSB - OUT COUNTY,St John's School,External Placement Fees,"21,129.60",Schools
05/07/2023,LT INFRASTR PLANNING,Crawley Borough Council,Fees,596.00,Local Government
05/07/2023,GREENER FUTURES,University Of Surrey,Fees,"11,940.00",Staff Training
05/07/2023,NW FOSTERING CARE,Redacted Personal Data,Friends and Family carers,"12,094.44",Carers
05/07/2023,HQ PAYMENT OF INSURANCE CLAIMS,LACHS,General Insurance,689.92,Not Applicable
05/07/2023,SURREY LIEUTENANCY,High Sheriff Youth Awards,"Grants, Contributions & Donations","18,000.00",Youth Offending Serv
05/07/2023,HR CORPORATE TRAINING L&D,Horton Chapel Arts & Heritage Society,Hire of Rooms,480.00,Grants - Member Allocation
05/07/2023,NORTH EAST CWD NON-LAC CARE,Hughes Mini Services,Hire of Transport - Non Staff,638.40,Multi-purpose Veh
05/07/2023,NORTH WEST CWD LAC CARE,Hughes Mini Services,Hire of Transport - Non Staff,341.88,Multi-purpose Veh
05/07/2023,NORTH EAST CWD NON-LAC CARE,Hughes Mini Services,Hire of Transport - Non Staff,336.00,Multi-purpose Veh
05/07/2023,NORTH EAST CWD NON-LAC CARE,Hughes Mini Services,Hire of Transport - Non Staff,439.56,Multi-purpose Veh
05/07/2023,NORTH EAST CWD NON-LAC CARE,Hughes Mini Services,Hire of Transport - Non Staff,"1,008.00",Multi-purpose Veh
05/07/2023,NORTH WEST CWD LAC CARE,Hughes Mini Services,Hire of Transport - Non Staff,488.40,Multi-purpose Veh
05/07/2023,NORTH EAST CWD NON-LAC CARE,Hughes Mini Services,Hire of Transport - Non Staff,268.80,Multi-purpose Veh
05/07/2023,NORTH EAST CWD NON-LAC CARE,Hughes Mini Services,Hire of Transport - Non Staff,470.40,Multi-purpose Veh
05/07/2023,NORTH EAST CWD NON-LAC CARE,Hughes Mini Services,Hire of Transport - Non Staff,341.88,Multi-purpose Veh
05/07/2023,NORTH EAST CWD NON-LAC CARE,Hughes Mini Services,Hire of Transport - Non Staff,907.20,Multi-purpose Veh
05/07/2023,NORTH WEST CWD LAC CARE,Hughes Mini Services,Hire of Transport - Non Staff,439.56,Multi-purpose Veh
05/07/2023,NORTH EAST CWD NON-LAC CARE,Hughes Mini Services,Hire of Transport - Non Staff,268.80,Multi-purpose Veh
05/07/2023,SEN HOME TO SCHOOL TRANSPORT,School Run Ltd,Hire of Transport - Non Staff,"1,570.80",Taxi Hire (SEN Only)
05/07/2023,SEN HOME TO SCHOOL TRANSPORT,School Run Ltd,Hire of Transport - Non Staff,"1,815.60",Taxi Hire (SEN Only)
05/07/2023,SEN HOME TO SCHOOL TRANSPORT,School Run Ltd,Hire of Transport - Non Staff,"2,325.60",Taxi Hire (SEN Only)
05/07/2023,SEN HOME TO SCHOOL TRANSPORT,School Run Ltd,Hire of Transport - Non Staff,"2,101.20",Taxi Hire (SEN Only)
05/07/2023,ALTERNATIVE PROVISION TRANSPORT NE,School Run Ltd,Hire of Transport - Non Staff,"1,157.59",Taxi Hire (SEN Only)
05/07/2023,SEN HOME TO SCHOOL TRANSPORT,School Run Ltd,Hire of Transport - Non Staff,"1,909.61",Taxi Hire (SEN Only)
05/07/2023,SEN HOME TO SCHOOL TRANSPORT,School Run Ltd,Hire of Transport - Non Staff,"2,527.20",Taxi Hire (SEN Only)
05/07/2023,SEN HOME TO SCHOOL TRANSPORT,School Run Ltd,Hire of Transport - Non Staff,612.00,Taxi Hire (SEN Only)
05/07/2023,SEN HOME TO SCHOOL TRANSPORT,School Run Ltd,Hire of Transport - Non Staff,"3,013.20",Taxi Hire (SEN Only)
05/07/2023,SEN HOME TO SCHOOL TRANSPORT,School Run Ltd,Hire of Transport - Non Staff,"3,488.40",Taxi Hire (SEN Only)
05/07/2023,TRANSPORT  MAINSTREAM SECDRY,School Run Ltd,Hire of Transport - Non Staff,"1,057.08",Taxi Hire (SEN Only)
05/07/2023,SEN HOME TO SCHOOL TRANSPORT,School Run Ltd,Hire of Transport - Non Staff,"1,686.12",Taxi Hire (SEN Only)
05/07/2023,SEN HOME TO SCHOOL TRANSPORT,School Run Ltd,Hire of Transport - Non Staff,"3,003.00",Taxi Hire (SEN Only)
05/07/2023,SEN HOME TO SCHOOL TRANSPORT,School Run Ltd,Hire of Transport - Non Staff,"2,743.20",Taxi Hire (SEN Only)
05/07/2023,SEN HOME TO SCHOOL TRANSPORT,School Run Ltd,Hire of Transport - Non Staff,"2,896.80",Taxi Hire (SEN Only)
05/07/2023,SEN HOME TO SCHOOL TRANSPORT,School Run Ltd,Hire of Transport - Non Staff,"2,958.00",Taxi Hire (SEN Only)
05/07/2023,SEN HOME TO SCHOOL TRANSPORT,School Run Ltd,Hire of Transport - Non Staff,"3,175.20",Taxi Hire (SEN Only)
05/07/2023,SEN HOME TO SCHOOL TRANSPORT,School Run Ltd,Hire of Transport - Non Staff,"2,527.20",Taxi Hire (SEN Only)
05/07/2023,SEN HOME TO SCHOOL TRANSPORT,School Run Ltd,Hire of Transport - Non Staff,"4,276.80",Taxi Hire (SEN Only)
05/07/2023,SEN HOME TO SCHOOL TRANSPORT,School Run Ltd,Hire of Transport - Non Staff,"3,391.20",Taxi Hire (SEN Only)
05/07/2023,NW SHORT STAY SCHOOL TRANSPORT,School Run Ltd,Hire of Transport - Non Staff,435.60,Taxi Hire (SEN Only)
05/07/2023,SEN HOME TO SCHOOL TRANSPORT,School Run Ltd,Hire of Transport - Non Staff,"3,013.20",Taxi Hire (SEN Only)
05/07/2023,SEN HOME TO SCHOOL TRANSPORT,School Run Ltd,Hire of Transport - Non Staff,"2,872.80",Taxi Hire (SEN Only)
05/07/2023,SEN HOME TO SCHOOL TRANSPORT,School Run Ltd,Hire of Transport - Non Staff,"2,808.00",Taxi Hire (SEN Only)
05/07/2023,SEN HOME TO SCHOOL TRANSPORT,School Run Ltd,Hire of Transport - Non Staff,"3,017.52",Taxi Hire (SEN Only)
05/07/2023,SEN HOME TO SCHOOL TRANSPORT,School Run Ltd,Hire of Transport - Non Staff,"1,862.40",Taxi Hire (SEN Only)
05/07/2023,SEN HOME TO SCHOOL TRANSPORT,School Run Ltd,Hire of Transport - Non Staff,"3,747.60",Taxi Hire (SEN Only)
05/07/2023,NW SHORT STAY SCHOOL TRANSPORT,School Run Ltd,Hire of Transport - Non Staff,"1,315.20",Taxi Hire (SEN Only)
05/07/2023,PLD TRANSITION CARE,Swan School Services Ltd,Hire of Transport - Non Staff,"1,933.86",Multi-purpose Veh
05/07/2023,LD-Autism Central Team Care,Swan School Services Ltd,Hire of Transport - Non Staff,671.34,Multi-purpose Veh
05/07/2023,PLD TRANSITION CARE,Swan School Services Ltd,Hire of Transport - Non Staff,452.00,Multi-purpose Veh
05/07/2023,LD-Autism Central Team Care,Swan School Services Ltd,Hire of Transport - Non Staff,"2,594.40",Multi-purpose Veh
05/07/2023,LD-Autism Central Team Care,Swan School Services Ltd,Hire of Transport - Non Staff,710.40,Multi-purpose Veh
05/07/2023,LD-Autism Central Team Care,Swan School Services Ltd,Hire of Transport - Non Staff,336.00,Multi-purpose Veh
05/07/2023,LD-Autism Central Team Care,Swan School Services Ltd,Hire of Transport - Non Staff,"2,418.44",Multi-purpose Veh
05/07/2023,PLD TRANSITION CARE,Swan School Services Ltd,Hire of Transport - Non Staff,521.56,Multi-purpose Veh
05/07/2023,SEN HOME TO SCHOOL TRANSPORT,UK Car Service,Hire of Transport - Non Staff,"3,855.60",Multi-purpose Veh
05/07/2023,SEN HOME TO SCHOOL TRANSPORT,UK Car Service,Hire of Transport - Non Staff,"3,674.40",Multi-purpose Veh
05/07/2023,SEN HOME TO SCHOOL TRANSPORT,UK Car Service,Hire of Transport - Non Staff,"3,141.60",Multi-purpose Veh
05/07/2023,TRANSPORT  MAINSTREAM SECDRY,UK Car Service,Hire of Transport - Non Staff,"1,626.52",Multi-purpose Veh
05/07/2023,SW SHORT STAY SCHOOL TRANSPORT,UK Car Service,Hire of Transport - Non Staff,"1,937.48",Multi-purpose Veh
05/07/2023,TRANSPORT  MAINSTREAM SECDRY,UK Car Service,Hire of Transport - Non Staff,"7,754.40",Multi-purpose Veh
05/07/2023,SEN HOME TO SCHOOL TRANSPORT,UK Car Service,Hire of Transport - Non Staff,"3,769.20",Multi-purpose Veh
05/07/2023,SEN HOME TO SCHOOL TRANSPORT,UK Car Service,Hire of Transport - Non Staff,"1,814.40",Multi-purpose Veh
05/07/2023,SEN HOME TO SCHOOL TRANSPORT,UK Car Service,Hire of Transport - Non Staff,"6,458.40",Multi-purpose Veh
05/07/2023,SEN HOME TO SCHOOL TRANSPORT,UK Car Service,Hire of Transport - Non Staff,"5,032.80",Multi-purpose Veh
05/07/2023,SEN HOME TO SCHOOL TRANSPORT,UK Car Service,Hire of Transport - Non Staff,"3,628.80",Multi-purpose Veh
05/07/2023,SEN HOME TO SCHOOL TRANSPORT,UK Car Service,Hire of Transport - Non Staff,"2,764.80",Multi-purpose Veh
05/07/2023,SEN HOME TO SCHOOL TRANSPORT,UK Car Service,Hire of Transport - Non Staff,"3,338.78",Multi-purpose Veh
05/07/2023,TRANSPORT  MAINSTREAM SECDRY,UK Car Service,Hire of Transport - Non Staff,311.62,Multi-purpose Veh
05/07/2023,SEN HOME TO SCHOOL TRANSPORT,UK Car Service,Hire of Transport - Non Staff,"2,837.00",Multi-purpose Veh
05/07/2023,NE SHORT STAY SCHOOL TRANSPORT,UK Car Service,Hire of Transport - Non Staff,424.60,Multi-purpose Veh
05/07/2023,SEN HOME TO SCHOOL TRANSPORT,UK Car Service,Hire of Transport - Non Staff,"3,866.40",Multi-purpose Veh
05/07/2023,SEN HOME TO SCHOOL TRANSPORT,UK Car Service,Hire of Transport - Non Staff,"3,974.40",Multi-purpose Veh
05/07/2023,TRANSPORT  MAINSTREAM SECDRY,UK Car Service,Hire of Transport - Non Staff,"2,138.40",Multi-purpose Veh
05/07/2023,TRANSPORT -MAINSTREAM PRIMARY,UK Car Service,Hire of Transport - Non Staff,"2,136.72",Multi-purpose Veh
05/07/2023,SEN HOME TO SCHOOL TRANSPORT,UK Car Service,Hire of Transport - Non Staff,"2,198.40",Multi-purpose Veh
05/07/2023,SEN HOME TO SCHOOL TRANSPORT,UK Car Service,Hire of Transport - Non Staff,"4,082.40",Multi-purpose Veh
05/07/2023,TRANSPORT -MAINSTREAM PRIMARY,UK Car Service,Hire of Transport - Non Staff,"1,013.15",Multi-purpose Veh
05/07/2023,SEN HOME TO SCHOOL TRANSPORT,UK Car Service,Hire of Transport - Non Staff,"3,515.65",Multi-purpose Veh
05/07/2023,SEN HOME TO SCHOOL TRANSPORT,UK Car Service,Hire of Transport - Non Staff,"4,557.60",Multi-purpose Veh
05/07/2023,SEN HOME TO SCHOOL TRANSPORT,UK Car Service,Hire of Transport - Non Staff,"3,758.40",Multi-purpose Veh
05/07/2023,SEN HOME TO SCHOOL TRANSPORT,UK Car Service,Hire of Transport - Non Staff,"3,284.40",Multi-purpose Veh
05/07/2023,LD-Autism Central Team Care,UK Car Service,Hire of Transport - Non Staff,"2,172.00",Multi-purpose Veh
05/07/2023,SEN HOME TO SCHOOL TRANSPORT,UK Car Service,Hire of Transport - Non Staff,"2,559.60",Multi-purpose Veh
05/07/2023,SEN HOME TO SCHOOL TRANSPORT,UK Car Service,Hire of Transport - Non Staff,"5,914.80",Multi-purpose Veh
05/07/2023,SEN HOME TO SCHOOL TRANSPORT,UK Car Service,Hire of Transport - Non Staff,"4,017.60",Multi-purpose Veh
05/07/2023,SEN HOME TO SCHOOL TRANSPORT,UK Car Service,Hire of Transport - Non Staff,"3,412.80",Multi-purpose Veh
05/07/2023,SEN HOME TO SCHOOL TRANSPORT,UK Car Service,Hire of Transport - Non Staff,"5,162.40",Multi-purpose Veh
05/07/2023,TRANSPORT -MAINSTREAM PRIMARY,UK Car Service,Hire of Transport - Non Staff,720.86,Multi-purpose Veh
05/07/2023,SEN HOME TO SCHOOL TRANSPORT,UK Car Service,Hire of Transport - Non Staff,"2,880.94",Multi-purpose Veh
05/07/2023,SEN HOME TO SCHOOL TRANSPORT,UK Car Service,Hire of Transport - Non Staff,"5,270.40",Multi-purpose Veh
05/07/2023,SEN HOME TO SCHOOL TRANSPORT,UK Car Service,Hire of Transport - Non Staff,"3,048.89",Multi-purpose Veh
05/07/2023,NORTH WEST CWD NON-LAC CARE,UK Car Service,Hire of Transport - Non Staff,"1,551.91",Multi-purpose Veh
05/07/2023,SEN HOME TO SCHOOL TRANSPORT,UK Car Service,Hire of Transport - Non Staff,"4,352.40",Multi-purpose Veh
05/07/2023,SEN HOME TO SCHOOL TRANSPORT,UK Car Service,Hire of Transport - Non Staff,"3,264.00",Multi-purpose Veh
05/07/2023,TRANSPORT  MAINSTREAM SECDRY,UK Car Service,Hire of Transport - Non Staff,"1,899.22",Multi-purpose Veh
05/07/2023,SEN HOME TO SCHOOL TRANSPORT,UK Car Service,Hire of Transport - Non Staff,951.98,Multi-purpose Veh
05/07/2023,TRANSPORT  MAINSTREAM SECDRY,UK Car Service,Hire of Transport - Non Staff,"3,233.34",Multi-purpose Veh
05/07/2023,SEN HOME TO SCHOOL TRANSPORT,UK Car Service,Hire of Transport - Non Staff,438.66,Multi-purpose Veh
05/07/2023,SEN HOME TO SCHOOL TRANSPORT,UK Car Service,Hire of Transport - Non Staff,"4,082.40",Multi-purpose Veh
05/07/2023,TRANSPORT  MAINSTREAM SECDRY,Weydon Multi Academy Trust,Hire of Transport - Non Staff,"15,120.00",School Support Serv
05/07/2023,SEN HOME TO SCHOOL TRANSPORT,Weydon Multi Academy Trust,Hire of Transport - Non Staff,360.00,School Support Serv
05/07/2023,TRANSPORT  MAINSTREAM SECDRY,Weydon Multi Academy Trust,Hire of Transport - Non Staff,"5,117.92",School Support Serv
05/07/2023,TRANSPORT -MAINSTREAM PRIMARY,Weydon Multi Academy Trust,Hire of Transport - Non Staff,736.67,School Support Serv
05/07/2023,TRANSPORT  MAINSTREAM SECDRY,Weydon Multi Academy Trust,Hire of Transport - Non Staff,"7,366.70",School Support Serv
05/07/2023,TRANSPORT  MAINSTREAM SECDRY,Weydon Multi Academy Trust,Hire of Transport - Non Staff,"16,920.00",School Support Serv
05/07/2023,SEN HOME TO SCHOOL TRANSPORT,Weydon Multi Academy Trust,Hire of Transport - Non Staff,360.00,School Support Serv
05/07/2023,TRANSPORT  MAINSTREAM SECDRY,Weydon Multi Academy Trust,Hire of Transport - Non Staff,"5,117.92",School Support Serv
05/07/2023,TRANSPORT -MAINSTREAM PRIMARY,Weydon Multi Academy Trust,Hire of Transport - Non Staff,736.67,School Support Serv
05/07/2023,TRANSPORT  MAINSTREAM SECDRY,Weydon Multi Academy Trust,Hire of Transport - Non Staff,"7,366.70",School Support Serv
05/07/2023,Collaborative Reablement Serv North West,Alpenbest Ltd,Home Care Services,"13,487.67",Dom Care - Adults
05/07/2023,SOUTH WEST CWD NON-LAC CARE,Ambition 24 Hours,Home Care Services,"76,347.00",Supp Living - MH
05/07/2023,NORTH EAST CWD NON-LAC CARE,Ambition 24 Hours,Home Care Services,"2,901.50",Supp Living - MH
05/07/2023,GUILDFORD LOCAL CARE OP,Astor Care & Nursing Agency,Home Care Services,375.20,Dom Care - Adults
05/07/2023,WAVERLEY LOCAL CARE OP,Astor Care & Nursing Agency,Home Care Services,"1,015.70",Dom Care - Adults
05/07/2023,WAVERLEY LOCAL CARE OP,Astor Care & Nursing Agency,Home Care Services,"1,669.64",Dom Care - Adults
05/07/2023,WAVERLEY LOCAL CARE OP,Astor Care & Nursing Agency,Home Care Services,396.64,Dom Care - Adults
05/07/2023,WAVERLEY LOCAL CARE OP,Astor Care & Nursing Agency,Home Care Services,589.68,Dom Care - Adults
05/07/2023,WAVERLEY LOCAL CARE OP,Astor Care & Nursing Agency,Home Care Services,"2,739.24",Dom Care - Adults
05/07/2023,WAVERLEY LOCAL CARE OP,Astor Care & Nursing Agency,Home Care Services,351.04,Dom Care - Adults
05/07/2023,GUILDFORD LOCAL CARE OP,Astor Care & Nursing Agency,Home Care Services,586.96,Dom Care - Adults
05/07/2023,WOKING LOCAL CARE OP,Astor Care & Nursing Agency,Home Care Services,394.94,Dom Care - Adults
05/07/2023,WAVERLEY LOCAL CARE OP,Astor Care & Nursing Agency,Home Care Services,393.12,Dom Care - Adults
05/07/2023,GUILDFORD LOCAL CARE OP,Astor Care & Nursing Agency,Home Care Services,642.04,Dom Care - Adults
05/07/2023,GUILDFORD LOCAL CARE OP,Astor Care & Nursing Agency,Home Care Services,476.20,Dom Care - Adults
05/07/2023,LD-Autism Central Team Care,Astor Care & Nursing Agency,Home Care Services,367.68,Dom Care - Adults
05/07/2023,WAVERLEY LOCAL CARE OP,Astor Care & Nursing Agency,Home Care Services,"1,393.84",Dom Care - Adults
05/07/2023,GUILDFORD LOCAL CARE OP,Astor Care & Nursing Agency,Home Care Services,292.86,Dom Care - Adults
05/07/2023,GUILDFORD LOCAL CARE OP,Astor Care & Nursing Agency,Home Care Services,256.48,Dom Care - Adults
05/07/2023,WAVERLEY LOCAL CARE OP,Astor Care & Nursing Agency,Home Care Services,"1,393.84",Dom Care - Adults
05/07/2023,WAVERLEY LOCAL CARE OP,Astor Care & Nursing Agency,Home Care Services,771.12,Dom Care - Adults
05/07/2023,WAVERLEY LOCAL CARE OP,Astor Care & Nursing Agency,Home Care Services,834.82,Dom Care - Adults
05/07/2023,GUILDFORD LOCAL CARE OP,Astor Care & Nursing Agency,Home Care Services,627.67,Dom Care - Adults
05/07/2023,WAVERLEY LOCAL CARE OP,Astor Care & Nursing Agency,Home Care Services,"1,769.04",Dom Care - Adults
05/07/2023,WAVERLEY LOCAL CARE OP,Astor Care & Nursing Agency,Home Care Services,761.84,Dom Care - Adults
05/07/2023,GUILDFORD LOCAL CARE OP,Astor Care & Nursing Agency,Home Care Services,800.14,Dom Care - Adults
05/07/2023,GUILDFORD LOCAL CARE PD,Astor Care & Nursing Agency,Home Care Services,642.04,Dom Care - Adults
05/07/2023,WAVERLEY LOCAL CARE OP,Astor Care & Nursing Agency,Home Care Services,385.56,Dom Care - Adults
05/07/2023,WAVERLEY LOCAL CARE OP,Astor Care & Nursing Agency,Home Care Services,923.18,Dom Care - Adults
05/07/2023,WAVERLEY LOCAL CARE OP,Astor Care & Nursing Agency,Home Care Services,578.34,Dom Care - Adults
05/07/2023,WAVERLEY LOCAL CARE OP,Astor Care & Nursing Agency,Home Care Services,578.34,Dom Care - Adults
05/07/2023,WAVERLEY LOCAL CARE OP,Astor Care & Nursing Agency,Home Care Services,607.24,Dom Care - Adults
05/07/2023,GUILDFORD LOCAL CARE OP,Astor Care & Nursing Agency,Home Care Services,541.32,Dom Care - Adults
05/07/2023,WAVERLEY LOCAL CARE OP,Astor Care & Nursing Agency,Home Care Services,261.80,Dom Care - Adults
05/07/2023,WAVERLEY LOCAL CARE OP,Astor Care & Nursing Agency,Home Care Services,"1,119.54",Dom Care - Adults
05/07/2023,GUILDFORD LOCAL CARE OP,Astor Care & Nursing Agency,Home Care Services,730.34,Dom Care - Adults
05/07/2023,GUILDFORD LOCAL CARE PD,Astor Care & Nursing Agency,Home Care Services,564.23,Dom Care - Adults
05/07/2023,WAVERLEY LOCAL CARE OP,Astor Care & Nursing Agency,Home Care Services,"1,740.72",Dom Care - Adults
05/07/2023,WAVERLEY LOCAL CARE OP,Astor Care & Nursing Agency,Home Care Services,925.46,Dom Care - Adults
05/07/2023,WAVERLEY LOCAL CARE OP,Astor Care & Nursing Agency,Home Care Services,936.79,Dom Care - Adults
05/07/2023,WAVERLEY LOCAL CARE OP,Astor Care & Nursing Agency,Home Care Services,642.04,Dom Care - Adults
05/07/2023,RUNNYMEDE LOCAL CARE PD,Astor Care & Nursing Agency,Home Care Services,"1,773.66",Dom Care - Adults
05/07/2023,WAVERLEY LOCAL CARE OP,Astor Care & Nursing Agency,Home Care Services,759.07,Dom Care - Adults
05/07/2023,WOKING LOCAL CARE PD,Astor Care & Nursing Agency,Home Care Services,416.38,Dom Care - Adults
05/07/2023,WAVERLEY LOCAL CARE OP,Astor Care & Nursing Agency,Home Care Services,442.90,Dom Care - Adults
05/07/2023,GUILDFORD LOCAL CARE PD,Astor Care & Nursing Agency,Home Care Services,458.42,Dom Care - Adults
05/07/2023,LD-Autism Central Team Care,Astor Care & Nursing Agency,Home Care Services,427.40,Dom Care - Adults
05/07/2023,LD-Autism Central Team Care,Astor Care & Nursing Agency,Home Care Services,316.32,Dom Care - Adults
05/07/2023,WAVERLEY LOCAL CARE OP,Astor Care & Nursing Agency,Home Care Services,461.44,Dom Care - Adults
05/07/2023,SURREY HEATH LOCAL CARE OP,Astor Care & Nursing Agency,Home Care Services,541.32,Dom Care - Adults
05/07/2023,WAVERLEY LOCAL CARE OP,Astor Care & Nursing Agency,Home Care Services,"1,833.26",Dom Care - Adults
05/07/2023,Collaborative Reablement Serv East,County Care Independent Living Ltd,Home Care Services,"12,750.00",Dom Care - Adults
05/07/2023,Collaborative Reablement Serv East,County Care Independent Living Ltd,Home Care Services,"12,750.00",Dom Care - Adults
05/07/2023,SOUTH EAST CWD NON-LAC CARE,Topaz Care & Support Company Ltd,Home Care Services,"125,335.00",Short break
05/07/2023,SE CARE - CARE LEAVERS,Aster Group,Housing related support,845.45,Sup Living Children
05/07/2023,SW CARE - CARE LEAVERS,Redacted Personal Data,Housing related support,"1,288.76",Invoicing Plan Req.
05/07/2023,NE CARE - CARE LEAVERS,Redacted Personal Data,Housing related support,"3,600.00",Invoicing Plan Req.
05/07/2023,RUNNYMEDE LOCAL CARE OP,Rodwell Farm Nursing Home,Independent Living - working age,"2,095.72",Residential - LD
05/07/2023,BAD DEBT ADJUSTMENTS,Judge & Priestly LLP,Legal Expenses,"1,410.50",Insurance Services
05/07/2023,BAD DEBT ADJUSTMENTS,Judge & Priestly LLP,Legal Expenses,561.00,Insurance Services
05/07/2023,INSURANCE FUND - PROPERTY,SCC St Nicholas COE (A) Infant School,Long Term - Other provisions,"2,239.00",Schools
05/07/2023,INSURANCE FUND - MOTOR FLEET,SCC Woodlands School,Long Term - Other provisions,"4,791.41",Schools
05/07/2023,REIGATE & BANSTEAD LOCAL CARE OP,Amberley Lodge Care Home,Nursing Care,"1,085.71",Residential - OP
05/07/2023,LOGISTICS,Drager Safety UK Ltd,Operational Fire Equipment,"2,616.00",Fire Serv Spec Equip
05/07/2023,COMMUNITY SAFETY,Fireblitz Extinguisher Ltd,Operational Fire Equipment,"3,582.00",Fire Serv Spec Equip
05/07/2023,DOLS,Action First Assessments Ltd,Other Community Care,300.00,Other Care
05/07/2023,DOLS,Action First Assessments Ltd,Other Community Care,600.00,Other Care
05/07/2023,DOLS,Action First Assessments Ltd,Other Community Care,420.00,Other Care
05/07/2023,DOLS,Action First Assessments Ltd,Other Community Care,300.00,Other Care
05/07/2023,DOLS,Action First Assessments Ltd,Other Community Care,420.00,Other Care
05/07/2023,DOLS,Action First Assessments Ltd,Other Community Care,420.00,Other Care
05/07/2023,DOLS,Action First Assessments Ltd,Other Community Care,420.00,Other Care
05/07/2023,DOLS,Action First Assessments Ltd,Other Community Care,420.00,Other Care
05/07/2023,DOLS,Action First Assessments Ltd,Other Community Care,420.00,Other Care
05/07/2023,DOLS,Action First Assessments Ltd,Other Community Care,300.00,Other Care
05/07/2023,DOLS,Action First Assessments Ltd,Other Community Care,900.00,Other Care
05/07/2023,DOLS,Action First Assessments Ltd,Other Community Care,420.00,Other Care
05/07/2023,DOLS,Action First Assessments Ltd,Other Community Care,420.00,Other Care
05/07/2023,DOLS,Action First Assessments Ltd,Other Community Care,600.00,Other Care
05/07/2023,DOLS,Action First Assessments Ltd,Other Community Care,300.00,Other Care
05/07/2023,DOLS,Action First Assessments Ltd,Other Community Care,600.00,Other Care
05/07/2023,DOLS,Action First Assessments Ltd,Other Community Care,600.00,Other Care
05/07/2023,DOLS,Action First Assessments Ltd,Other Community Care,300.00,Other Care
05/07/2023,DOLS,Action First Assessments Ltd,Other Community Care,300.00,Other Care
05/07/2023,DOLS,Action First Assessments Ltd,Other Community Care,420.00,Other Care
05/07/2023,DOLS,Action First Assessments Ltd,Other Community Care,900.00,Other Care
05/07/2023,DOLS,Action First Assessments Ltd,Other Community Care,"1,200.00",Other Care
05/07/2023,DOLS,Eddie & Mac Ltd,Other Community Care,284.20,Specialist Serv
05/07/2023,SW UASC & NRPF 18+ CARE,Redacted Personal Data,Other Community Care,400.00,Invoicing Plan Req.
05/07/2023,NW CARE - CARE LEAVERS,Redacted Personal Data,Other Community Care,"1,797.15",Foster Carers
05/07/2023,NE CARE - CARE LEAVERS,Redacted Personal Data,Other Community Care,"5,983.88",Misc One-off
05/07/2023,LD-Autism Central Team Care,Voyage Ltd,Other Community Care,"1,066.00",Residential - MH
05/07/2023,SE IPSB - OUT COUNTY,Chipstead Valley Primary Academy,Payments to Other Local Authorities,"9,110.00",SEN Specialist Supp
05/07/2023,NE IPSB - OUT COUNTY,Churchmead C of E V A School,Payments to Other Local Authorities,"8,017.20",SEN OLA
05/07/2023,SE IPSB - OUT COUNTY,Coulsdon CoE Primary School,Payments to Other Local Authorities,"21,054.45",SEN OLA
